Workbook

Sheet AUTOR
B2: Dieses Tabellenblatt darf nicht gelöscht werden!
B5: Release 0.9.1
B6: Copyright 2008 Norbert Kaufmann
B7: Email: | C7: norbert5403-varianz@yahoo.de
B9: This program is free software: you can redistribute it and/or modify
B10: it under the terms of the GNU General Public License as published by
B11: the Free Software Foundation, either version 3 of the License, or
B12: (at your option) any later version.
B14: This program is distributed in the hope that it will be useful,
B15: but WITHOUT ANY WARRANTY; without even the implied warranty of
B16: MERCHANTABILITY or FITNESS FOR A PARTICULAR PURPOSE. See the
B17: GNU General Public License for more details.
B19: You should have received a copy of the GNU General Public License
B20: along with this program. If not, see <http://www.gnu.org/licenses/>.
B23: Es ist alles andere als selbstverständlich, dass Norbert Kaufmann
B24: sein Tool als "free software" bereitstellt. Ich danke ihm - auch im
B25: Namen künftiger Nutzer - sehr dafür.
B26: Meine Arbeit beschränkte sich darauf, das Tool neu zu "layouten",
B27: für den praktischen Einsatz zu ergänzen und die Anleitung zu erweitern.
B29: Update: | C29: 2018-03-01
B30: Max Lüscher-Marty
B31: Institut für Banken und Finanzplanung
B32: max.luescher@ibf-chur.ch
B33: www.ibf-chur.ch

Sheet ANLEITUNG

Sheet MONATS-JAHRES-RENDITEN
B2: Beachten Sie die Eingabetabelle für Monats- oder Jahresendwerte weiter rechts
B4: Monat | C4: Schreiben Sie ins Feld Monat, wenn es sich um Monatswerte handelt, bzw. Jahr, wenn es Jahreswerte sind!
B6: Tabelle für stetige Monats- oder Jahresrenditen | AA6: Eingabetabelle für Monats- oder Jahresendwerte
B8: Datum/Assets | C8: =AB8 -> CHF-GM | D8: =AC8 -> CHF-B | E8: =AD8 -> FW-B | F8: =AE8 -> CH-A | G8: =AF8 -> W-A | H8: =AG8 -> CH-IF | I8: =AH8 -> RS | J8: =AI8 -> HF | AA8: Datum/Assets | AB8: CHF-GM | AC8: CHF-B | AD8: FW-B | AE8: CH-A | AF8: W-A | AG8: CH-IF | AH8: RS | AI8: HF
A10: 0 | B10: =AA10 -> 1994-12-31 | Z10: 0 | AA10: 1994-12-31 | AB10: 155.974 | AC10: 58.79608225 | AD10: 180.4930612 | AE10: 1725.53 | AF10: 1946.943389 | AG10: 100 | AH10: 147.912009 | AI10: 95.26
A11: 1 | B11: =AA11 -> 1995-01-31 | C11: =LN(AB11/AB10) -> 0.003551969636 | D11: =LN(AC11/AC10) -> 0.009156186674 | E11: =LN(AD11/AD10) -> -0.005278610948 | F11: =LN(AE11/AE10) -> -0.03793984066 | G11: =LN(AF11/AF10) -> -0.05205772039 | H11: =LN(AG11/AG10) -> -0.008435478821 | I11: =LN(AH11/AH10) -> -0.04286465514 | J11: =LN(AI11/AI10) -> -0.02164770443 | Z11: 1 | AA11: 1995-01-31 | AB11: 156.529 | AC11: 59.3369023 | AD11: 179.5428187 | AE11: 1661.29 | AF11: 1848.18288 | AG11: 99.16 | AH11: 141.705776 | AI11: 93.22
A12: 2 | B12: 1995-02-28 | C12: =LN(AB12/AB11) -> 0.002959922039 | D12: =LN(AC12/AC11) -> 0.00672343567 | E12: =LN(AD12/AD11) -> -0.002191280549 | F12: =LN(AE12/AE11) -> 0.02326910849 | G12: =LN(AF12/AF11) -> -0.002651608955 | H12: =LN(AG12/AG11) -> 0.003121383997 | I12: =LN(AH12/AH11) -> -0.01861994823 | J12: =LN(AI12/AI11) -> 0.00225020186 | Z12: 2 | AA12: 1995-02-28 | AB12: 156.993 | AC12: 59.73719431 | AD12: 179.1498208 | AE12: 1700.4 | AF12: 1843.288713 | AG12: 99.47 | AH12: 139.0916349 | AI12: 93.43
A13: 3 | B13: 1995-03-31 | C13: 0.003224239899 | D13: 0.01176400782 | E13: -0.0477850761 | F13: -0.03564911725 | G13: -0.02863098524 | H13: 0.007611453872 | I13: -0.05143368239 | J13: 0.02890496592 | Z13: 3 | AA13: 1995-03-31 | AB13: 157.5 | AC13: 60.44409296 | AD13: 170.7904501 | AE13: 1640.85 | AF13: 1791.261885 | AG13: 100.23 | AH13: 132.118504 | AI13: 96.17
A14: 4 | B14: 1995-04-30 | C14: 0.002713774698 | D14: 0.01385315655 | E14: 0.02992108521 | F14: 0.03385970257 | G14: 0.01869297652 | H14: 0.04219788084 | I14: 0.004024135952 | J14: 0.01229798995 | Z14: 4 | AA14: 1995-04-30 | AB14: 157.928 | AC14: 61.28726122 | AD14: 175.9779059 | AE14: 1697.36 | AF14: 1825.060819 | AG14: 104.55 | AH14: 132.651238 | AI14: 97.36
A15: 5 | B15: 1995-05-31 | C15: 0.003249362786 | D15: 0.00961180169 | E15: 0.04959683425 | F15: 0.06876189793 | G15: 0.01967476796 | H15: -0.006525308635 | I15: 0.004107984168 | J15: 0.007571917892 | Z15: 5 | AA15: 1995-05-31 | AB15: 158.442 | AC15: 61.87918238 | AD15: 184.9259152 | AE15: 1818.18 | AF15: 1861.324032 | AG15: 103.87 | AH15: 133.197288 | AI15: 98.1
A16: 6 | B16: 1995-06-30 | C16: 0.002735427997 | D16: 0.006106155983 | E16: -0.007051856062 | F16: 0.02624509135 | G16: 0.004326479369 | H16: 0.02039331205 | I16: -0.005494541561 | J16: 0.001018848789 | Z16: 6 | AA16: 1995-06-30 | AB16: 158.876 | AC16: 62.25818226 | AD16: 183.6264316 | AE16: 1866.53 | AF16: 1869.394458 | AG16: 106.01 | AH16: 132.4674369 | AI16: 98.2
A17: 7 | B17: 1995-07-31 | C17: 0.002828393913 | D17: 0.007835161868 | E17: -0.0001411057284 | F17: 0.002568315902 | G17: 0.04631314035 | H17: -0.002644754541 | I17: 0.01653854255 | J17: 0.02454357759 | Z17: 7 | AA17: 1995-07-31 | AB17: 159.326 | AC17: 62.7479012 | AD17: 183.6005227 | AE17: 1871.33 | AF17: 1958.008136 | AG17: 105.73 | AH17: 134.676472 | AI17: 100.64
A18: 8 | B18: 1995-08-31 | C18: 0.002288280306 | D18: 0.007774249059 | E18: 0.02240791714 | F18: 0.02040147666 | G18: 0.02652667336 | H18: -0.003885340116 | I18: 0.06580283697 | J18: 0.05790888292 | Z18: 8 | AA18: 1995-08-31 | AB18: 159.691 | AC18: 63.23762015 | AD18: 187.7610685 | AE18: 1909.9 | AF18: 2010.642601 | AG18: 105.32 | AH18: 143.8366435 | AI18: 106.64
A19: 9 | B19: 1995-09-30 | C19: 0.002620381048 | D19: 0.01311230989 | E19: -0.02613356427 | F19: 0.029433235 | G19: -0.02766834807 | H19: 0.006435759484 | I19: -0.04709233847 | J19: 0.0008436050554 | Z19: 9 | AA19: 1995-09-30 | AB19: 160.11 | AC19: 64.07227157 | AD19: 182.9177645 | AE19: 1966.95 | AF19: 1955.774003 | AG19: 106 | AH19: 137.2200576 | AI19: 106.73
A20: 10 | B20: 1995-10-31 | C20: 0.002351863391 | D20: 0.01241759681 | E20: -0.001222119235 | F20: 0.02129730617 | G20: -0.01532987748 | H20: 0.03010820249 | I20: 0.008849298566 | J20: -0.004413359903 | Z20: 10 | AA20: 1995-10-31 | AB20: 160.487 | AC20: 64.87285558 | AD20: 182.6943538 | AE20: 2009.29 | AF20: 1926.020866 | AG20: 109.24 | AH20: 138.4397476 | AI20: 106.26
A21: 11 | B21: 1995-11-30 | C21: 0.001500552871 | D21: 0.01685853706 | E21: 0.04329700741 | F21: 0.03730392608 | G21: 0.05421179227 | H21: 0.07874620242 | I21: 0.03539858159 | J21: 0.0286648261 | Z21: 11 | AA21: 1995-11-30 | AB21: 160.728 | AC21: 65.97578781 | AD21: 190.7782132 | AE21: 2085.66 | AF21: 2033.315963 | AG21: 118.19 | AH21: 143.4280875 | AI21: 109.35
A22: 12 | B22: 1995-12-31 | C22: 0.002318002212 | D22: 0.0005807388452 | E22: -0.007486093579 | F22: 0.01794735386 | G22: 0.01992546277 | H22: -0.01397313354 | I22: 0.0424922927 | J22: 0.02644200437 | Z22: 12 | AA22: 1995-12-31 | AB22: 161.101 | AC22: 66.01411364 | AD22: 189.3553621 | AE22: 2123.43 | AF22: 2074.237056 | AG22: 116.55 | AH22: 149.654016 | AI22: 112.28
A23: 13 | B23: 1996-01-31 | C23: 0.001680761266 | D23: -0.006212003929 | E23: 0.0400174572 | F23: -0.0005464352304 | G23: 0.07068927773 | H23: -0.002233294177 | I23: 0.05974984222 | J23: 0.06699586633 | Z23: 13 | AA23: 1996-01-31 | AB23: 161.372 | AC23: 65.60530478 | AD23: 197.0865416 | AE23: 2122.27 | AF23: 2226.170133 | AG23: 116.29 | AH23: 158.8683564 | AI23: 120.06
A24: 14 | B24: 1996-02-29 | C24: 0.001479954323 | D24: 0.004727222661 | E24: -0.01547550064 | F24: 0.02580137126 | G24: -0.008848389579 | H24: -0.02410803845 | I24: 0.006011463159 | J24: -0.03958726375 | Z24: 14 | AA24: 1996-02-29 | AB24: 161.611 | AC24: 65.91616985 | AD24: 194.0600076 | AE24: 2177.74 | AF24: 2206.559004 | AG24: 113.52 | AH24: 159.826264 | AI24: 115.4
A25: 15 | B25: 1996-03-31 | C25: 0.00131711182 | D25: 0.005861719254 | E25: -0.008300967695 | F25: 0.06563022712 | G25: 0.01131827978 | H25: 0.02985296315 | I25: 0.04110787572 | J25: 0.007166632582 | Z25: 15 | AA25: 1996-03-31 | AB25: 161.824 | AC25: 66.30368658 | AD25: 192.4557893 | AE25: 2325.46 | AF25: 2231.675325 | AG25: 116.96 | AH25: 166.5332936 | AI25: 116.23
A26: 16 | B26: 1996-04-30 | C26: 0.001525185927 | D26: 0.006721100673 | E26: 0.04087605682 | F26: 0.01137367098 | G26: 0.06249084972 | H26: 0.005712108971 | I26: 0.08688507084 | J26: 0.02858185486 | Z26: 16 | AA26: 1996-04-30 | AB26: 162.071 | AC26: 66.75082127 | AD26: 200.4856189 | AE26: 2352.06 | AF26: 2375.58428 | AG26: 117.63 | AH26: 181.649739 | AI26: 119.6
A27: 17 | B27: 1996-05-31 | C27: 0.001177801963 | D27: -0.008456710018 | E27: 0.007107834629 | F27: -0.02270420788 | G27: 0.01906921035 | H27: -0.02583455485 | I27: 0.01350743785 | J27: 0.01592601677 | Z27: 17 | AA27: 1996-05-31 | AB27: 162.262 | AC27: 66.18870909 | AD27: 201.915714 | AE27: 2299.26 | AF27: 2421.319478 | AG27: 114.63 | AH27: 184.1200075 | AI27: 121.52
A28: 18 | B28: 1996-06-30 | C28: 0.00222847491 | D28: -0.0003861003909 | E28: 0.008226038902 | F28: 0.04581044482 | G28: -0.0001912147765 | H28: 0.0006104740084 | I28: -0.00707725531 | J28: 0.01494698469 | Z28: 18 | AA28: 1996-06-30 | AB28: 162.624 | AC28: 66.16315854 | AD28: 203.5835308 | AE28: 2407.04 | AF28: 2420.85653 | AG28: 114.7 | AH28: 182.8215434 | AI28: 123.35
A29: 19 | B29: 1996-07-31 | C29: 0.002364626309 | D29: 0.008332313301 | E29: -0.02645204519 | F29: -0.06662791325 | G29: -0.09135032261 | H29: -0.01157501524 | I29: -0.06985066504 | J29: -0.04340944935 | Z29: 19 | AA29: 1996-07-31 | AB29: 163.009 | AC29: 66.71675386 | AD29: 198.268931 | AE29: 2251.89 | AF29: 2209.51071 | AG29: 113.38 | AH29: 170.487135 | AI29: 118.11
A30: 20 | B30: 1996-08-31 | C30: 0.002224395107 | D30: 0.00908606181 | E30: 0.004657159127 | F30: 0.03965802787 | G30: 0.0237795759 | H30: 0.0006172023297 | I30: 0.05955081668 | J30: 0.02185742084 | Z30: 20 | AA30: 1996-08-31 | AB30: 163.372 | AC30: 67.32570872 | AD30: 199.1944544 | AE30: 2342.99 | AF30: 2262.681623 | AG30: 113.45 | AH30: 180.9481735 | AI30: 120.72
A31: 21 | B31: 1996-09-30 | C31: 0.002170597522 | D31: 0.01307043868 | E31: 0.05119404441 | F31: 0.02151682989 | G31: 0.08548695893 | H31: 0.01261293764 | I31: 0.05198081097 | J31: 0.02268636667 | Z31: 21 | AA31: 1996-09-30 | AB31: 163.727 | AC31: 68.21146125 | AD31: 209.6575635 | AE31: 2393.95 | AF31: 2464.619976 | AG31: 114.89 | AH31: 190.6027591 | AI31: 123.49
A32: 22 | B32: 1996-10-31 | C32: 0.001117090066 | D32: 0.01031000996 | E32: 0.02370625157 | F32: 4.177109441e-05 | G32: 0.006738385955 | H32: 0.03186565118 | I32: -0.01443190289 | J32: 0.02967908304 | Z32: 22 | AA32: 1996-10-31 | AB32: 163.91 | AC32: 68.9183599 | AD32: 214.6871391 | AE32: 2394.05 | AF32: 2481.283617 | AG32: 118.61 | AH32: 187.8717528 | AI32: 127.21
A33: 23 | B33: 1996-11-30 | C33: 0.001073183922 | D33: 0.002406888563 | E33: 0.04821978968 | F33: 0.04018337457 | G33: 0.08633735222 | H33: 0.01431406016 | I33: 0.08592688591 | J33: 0.04751286931 | Z33: 23 | AA33: 1996-11-30 | AB33: 164.086 | AC33: 69.0844385 | AD33: 225.2929581 | AE33: 2492.21 | AF33: 2705.030982 | AG33: 120.32 | AH33: 204.728856 | AI33: 133.4
A34: 24 | B34: 1996-12-31 | C34: 0.002234134472 | D34: 0.006941272994 | E34: 0.0236481778 | F34: 0.007861609727 | G34: 0.02407853398 | H34: -0.005082708938 | I34: 0.05359820766 | J34: -0.0001499362774 | Z34: 24 | AA34: 1996-12-31 | AB34: 164.453 | AC34: 69.56564059 | AD34: 230.6842215 | AE34: 2511.88 | AF34: 2770.95465 | AG34: 119.71 | AH34: 216.00135 | AI34: 133.38
A35: 25 | B35: 1997-01-31 | C35: 0.001616176697 | D35: 0.01059499651 | E35: 0.03281903668 | F35: 0.08265822364 | G35: 0.06326467812 | H35: 0.007324210852 | I35: 0.05749506802 | J35: 0.0532856104 | Z35: 25 | AA35: 1997-01-31 | AB35: 164.719 | AC35: 70.30660664 | AD35: 238.3806595 | AE35: 2728.33 | AF35: 2951.922278 | AG35: 120.59 | AH35: 228.78432 | AI35: 140.68
A36: 26 | B36: 1997-02-28 | C36: 0.001316528075 | D36: 0.01860239661 | E36: 0.02881380505 | F36: 0.04417651254 | G36: 0.05005906609 | H36: 0.04531309683 | I36: 0.04888260921 | J36: 0.01025432415 | Z36: 26 | AA36: 1997-02-28 | AB36: 164.936 | AC36: 71.62671858 | AD36: 245.3492267 | AE36: 2851.56 | AF36: 3103.453873 | AG36: 126.18 | AH36: 240.2457445 | AI36: 142.13
A37: 27 | B37: 1997-03-31 | C37: 0.001550913896 | D37: -0.007279702773 | E37: -0.03123522725 | F37: 0.03266696232 | G37: -0.03227439384 | H37: 0.01728515694 | I37: 0.008178642712 | J37: -0.01745963443 | Z37: 27 | AA37: 1997-03-31 | AB37: 165.192 | AC37: 71.10719066 | AD37: 237.8041376 | AE37: 2946.25 | AF37: 3004.890867 | AG37: 128.38 | AH37: 242.2186856 | AI37: 139.67
A38: 28 | B38: 1997-04-30 | C38: 0.001645214733 | D38: 0.006506514523 | E38: 0.01687009858 | F38: 0.04914163885 | G38: 0.03698592553 | H38: -0.009469841851 | I38: 0.01249002464 | J38: 0.02523904781 | Z38: 28 | AA38: 1997-04-30 | AB38: 165.464 | AC38: 71.57135905 | AD38: 241.8499475 | AE38: 3094.65 | AF38: 3118.110395 | AG38: 127.17 | AH38: 245.262975 | AI38: 143.24
A39: 29 | B39: 1997-05-31 | C39: 0.002010499951 | D39: 0.01012292202 | E39: -0.0173331053 | F39: 0.03208753222 | G39: 0.02335499139 | H39: 0.02845042864 | I39: -0.02206049259 | J39: 0.004875000949 | Z39: 29 | AA39: 1997-05-31 | AB39: 165.797 | AC39: 72.29954982 | AD39: 237.6940581 | AE39: 3195.56 | AF39: 3191.790891 | AG39: 130.84 | AH39: 239.911597 | AI39: 143.94
A40: 30 | B40: 1997-06-30 | C40: 0.0007235148666 | D40: 0.005521306244 | E40: 0.04138425802 | F40: 0.1047259968 | G40: 0.07751372524 | H40: 0.04461789926 | I40: -0.03050389758 | J40: 0.01885679712 | Z40: 30 | AA40: 1997-06-30 | AB40: 165.917 | AC40: 72.69984183 | AD40: 247.7372317 | AE40: 3548.37 | AF40: 3449.039865 | AG40: 136.81 | AH40: 232.7038493 | AI40: 146.68
A41: 31 | B41: 1997-07-31 | C41: 0.001210715886 | D41: 0.00081972017 | E41: 0.03282014918 | F41: 0.05597657874 | G41: 0.08291507616 | H41: 0.04599825366 | I41: 0.06969003779 | J41: 0.06614362033 | Z41: 31 | AA41: 1997-07-31 | AB41: 166.118 | AC41: 72.75945979 | AD41: 256.0029029 | AE41: 3752.66 | AF41: 3747.207772 | AG41: 143.25 | AH41: 249.4994348 | AI41: 156.71
A42: 32 | B42: 1997-08-31 | C42: 0.001377588836 | D42: -0.003341641685 | E42: -0.01992115299 | F42: -0.1049354261 | G42: -0.08625717333 | H42: -0.03857031389 | I42: -0.01818017213 | J42: -0.01614650241 | Z42: 32 | AA42: 1997-08-31 | AB42: 166.347 | AC42: 72.51672953 | AD42: 250.953492 | AE42: 3378.83 | AF42: 3437.53208 | AG42: 137.83 | AH42: 245.0044755 | AI42: 154.2
A43: 33 | B43: 1997-09-30 | C43: 0.001075485349 | D43: 0.0007631123613 | E43: 0.0002977832796 | F43: 0.07061992144 | G43: 0.03475476604 | H43: 0.009100163913 | I43: -0.00716573653 | J43: 0.03398153118 | Z43: 33 | AA43: 1997-09-30 | AB43: 166.526 | AC43: 72.57208906 | AD43: 251.0282329 | AE43: 3626.07 | AF43: 3559.103051 | AG43: 139.09 | AH43: 243.2551132 | AI43: 159.53
A44: 34 | B44: 1997-10-31 | C44: 0.001122317734 | D44: -0.002820544824 | E44: -0.01827639026 | F44: -0.04262112739 | G44: -0.08713052369 | H44: 0.004161291699 | I44: -0.02926853155 | J44: -0.02000699846 | Z44: 34 | AA44: 1997-10-31 | AB44: 166.713 | AC44: 72.36768463 | AD44: 246.4820137 | AE44: 3474.77 | AF44: 3262.122436 | AG44: 139.67 | AH44: 236.238576 | AI44: 156.37
A45: 35 | B45: 1997-11-30 | C45: 0.001276829321 | D45: 0.004286433855 | E45: 0.008690471174 | F45: 0.04498453047 | G45: 0.02969015038 | H45: 0.03087796421 | I45: -0.02851483447 | J45: 0.006882953692 | Z45: 35 | AA45: 1997-11-30 | AB45: 166.926 | AC45: 72.6785497 | AD45: 248.6333932 | AE45: 3634.65 | AF45: 3360.427466 | AG45: 144.05 | AH45: 229.597408 | AI45: 157.45
A46: 36 | B46: 1997-12-31 | C46: 0.001980951205 | D46: 0.01136077936 | E46: 0.02171740633 | F46: 0.06998926138 | G46: 0.03240095312 | H46: 0.0166601678 | I46: -0.02061618204 | J46: 0.02855011418 | Z46: 36 | AA46: 1997-12-31 | AB46: 167.257 | AC46: 73.50894269 | AD46: 254.0921259 | AE46: 3898.15 | AF46: 3471.09165 | AG46: 146.47 | AH46: 224.912445 | AI46: 162.01
A47: 37 | B47: 1998-01-31 | C47: 0.001159219509 | D47: 0.01859557716 | E47: 0.02156522161 | F47: 0.04520512496 | G47: 0.04129268374 | H47: 0.03620426241 | I47: 0.01733918755 | J47: -0.01636677375 | Z47: 37 | AA47: 1998-01-31 | AB47: 167.451 | AC47: 74.88867259 | AD47: 259.6311898 | AE47: 4078.41 | AF47: 3617.42275 | AG47: 151.87 | AH47: 228.84625 | AI47: 159.38
A48: 38 | B48: 1998-02-28 | C48: 0.0009013499967 | D48: 0.01102734052 | E48: 0.001970942696 | F48: 0.08181998803 | G48: 0.06030332194 | H48: 0.01061052658 | I48: -0.04926449407 | J48: 0.0154404761 | Z48: 38 | AA48: 1998-02-28 | AB48: 167.602 | AC48: 75.71906558 | AD48: 260.1434126 | AE48: 4426.137 | AF48: 3842.27695 | AG48: 153.49 | AH48: 217.8454544 | AI48: 161.86
A49: 39 | B49: 1998-03-31 | C49: 0.0005010617842 | D49: -0.00417042985 | E49: 0.0304941308 | F49: 0.06356885104 | G49: 0.07981613298 | H49: -0.02587090765 | I49: 0.04120255084 | J49: 0.05563330071 | Z49: 39 | AA49: 1998-03-31 | AB49: 167.686 | AC49: 75.40394209 | AD49: 268.1984514 | AE49: 4716.637 | AF49: 4161.523693 | AG49: 149.57 | AH49: 227.0087215 | AI49: 171.12
A50: 40 | B50: 1998-04-30 | C50: 0.001120515077 | D50: -0.007084390195 | E50: -0.00102115585 | F50: -0.01259618105 | G50: -0.008598501092 | H50: -0.03358575359 | I50: -0.03163893247 | J50: 0.005536305991 | Z50: 40 | AA50: 1998-04-30 | AB50: 167.874 | AC50: 74.87163889 | AD50: 267.9247187 | AE50: 4657.598 | AF50: 4125.894227 | AG50: 144.63 | AH50: 219.9388394 | AI50: 172.07
A51: 41 | B51: 1998-05-31 | C51: 0.001119260928 | D51: 0.007084390195 | E51: -0.009992808682 | F51: 0.03509468102 | G51: -0.02145719503 | H51: 0.00887976924 | I51: -0.05950001206 | J51: -0.001046633425 | Z51: 41 | AA51: 1998-05-31 | AB51: 168.062 | AC51: 75.40394209 | AD51: 265.2607308 | AE51: 4823.957 | AF51: 4038.307157 | AG51: 145.92 | AH51: 207.2341872 | AI51: 171.89
A52: 42 | B52: 1998-06-30 | C52: 0.001326011724 | D52: -0.00441476832 | E52: 0.02826378857 | F52: 0.02222282698 | G52: 0.05086528639 | H52: -0.01338412528 | I52: 0.005569856474 | J52: 0.01237296081 | Z52: 42 | AA52: 1998-06-30 | AB52: 168.285 | AC52: 75.07178489 | AD52: 272.86496 | AE52: 4932.359 | AF52: 4249.03063 | AG52: 143.98 | AH52: 208.3916724 | AI52: 174.03
A53: 43 | B53: 1998-07-31 | C53: 0.002059855233 | D53: 0.004584178491 | E53: -0.01476305837 | F53: 0.04254574334 | G53: -0.02180800979 | H53: -0.03563221578 | I53: -0.08246925881 | J53: 0.005501131288 | Z53: 43 | AA53: 1998-07-31 | AB53: 168.632 | AC53: 75.41671736 | AD53: 268.866228 | AE53: 5146.738 | AF53: 4157.370821 | AG53: 138.94 | AH53: 191.8953345 | AI53: 174.99
A54: 44 | B54: 1998-08-31 | C54: 0.001730083736 | D54: 0.009665168518 | E54: -0.002848927638 | F54: -0.1993086243 | G54: -0.1711372957 | H54: -0.02973083374 | I54: -0.09363724689 | J54: -0.07966656645 | Z54: 44 | AA54: 1998-08-31 | AB54: 168.924 | AC54: 76.14916657 | AD54: 268.1013377 | AE54: 4216.707 | AF54: 3503.440776 | AG54: 134.87 | AH54: 174.742392 | AI54: 161.59
A55: 45 | B55: 1998-09-30 | C55: 0.001407926027 | D55: 0.004171016382 | E55: 0.007083855557 | F55: -0.1327670055 | G55: -0.02896287316 | H55: -0.01298525708 | I55: 0.02805775755 | J55: -0.02608134796 | Z55: 45 | AA55: 1998-09-30 | AB55: 169.162 | AC55: 76.46744931 | AD55: 270.0072715 | AE55: 3692.44 | AF55: 3403.426408 | AG55: 133.13 | AH55: 179.7147014 | AI55: 157.43
A56: 46 | B56: 1998-10-31 | C56: 0.00130558733 | D56: 0.005963639581 | E56: 0.0001710834533 | F56: 0.1152118435 | G56: 0.05904884182 | H56: 0.03621740379 | I56: -0.05784858857 | J56: -0.04967984394 | Z56: 46 | AA56: 1998-10-31 | AB56: 169.383 | AC56: 76.9248361 | AD56: 270.0534693 | AE56: 4143.328 | AF56: 3610.446804 | AG56: 138.04 | AH56: 169.613448 | AI56: 149.8
A57: 47 | B57: 1998-11-30 | C57: 0.0004603888596 | D57: 0.004252169571 | E57: 0.01580629756 | F57: 0.07431042865 | G57: 0.1013933525 | H57: 0.04967288632 | I57: -0.03130223419 | J57: 0.01002964138 | Z57: 47 | AA57: 1998-11-30 | AB57: 169.461 | AC57: 77.25262997 | AD57: 274.3559281 | AE57: 4462.949 | AF57: 3995.724385 | AG57: 145.07 | AH57: 164.386404 | AI57: 151.31
A58: 48 | B58: 1998-12-31 | C58: 0.001509532155 | D58: 0.002168556789 | E58: 0.005648454352 | F58: 0.007626766504 | G58: 0.02579504163 | H58: 0.0001378549768 | I58: -0.05658644855 | J58: 0.02602801769 | Z58: 48 | AA58: 1998-12-31 | AB58: 169.717 | AC58: 77.42033847 | AD58: 275.91 | AE58: 4497.117 | AF58: 4100.135112 | AG58: 145.09 | AH58: 155.3426512 | AI58: 155.3
A59: 49 | B59: 1999-01-31 | C59: 0.0009776208081 | D59: 0.008236955769 | E59: 0.02048391891 | F59: 0.007779332438 | G59: 0.04936786487 | H59: 0.05647661217 | I59: 0.02320025848 | J59: 0.004881818534 | Z59: 49 | AA59: 1999-01-31 | AB59: 169.883 | AC59: 78.06067998 | AD59: 281.62 | AE59: 4532.238 | AF59: 4307.629669 | AG59: 153.52 | AH59: 158.9887728 | AI59: 156.06
A60: 50 | B60: 1999-02-28 | C60: 0.0009060956139 | D60: 0.003314812434 | E60: -0.02019401131 | F60: -0.01373394067 | G60: -0.008343018937 | H60: 0.01999163762 | I60: -0.01698814409 | J60: -0.01667028331 | Z60: 50 | AA60: 1999-02-28 | AB60: 170.037 | AC60: 78.31986583 | AD60: 275.99 | AE60: 4470.418 | AF60: 4271.840536 | AG60: 156.62 | AH60: 156.3106611 | AI60: 153.48
A61: 51 | B61: 1999-03-31 | C61: 0.001204893777 | D61: 0.00107009106 | E61: 0.02022951952 | F61: 0.01528164602 | G61: 0.07199765621 | H61: -0.0008942830363 | I61: 0.1225832624 | J61: 0.00875747545 | Z61: 51 | AA61: 1999-03-31 | AB61: 170.242 | AC61: 78.40372008 | AD61: 281.63 | AE61: 4539.258 | AF61: 4590.745501 | AG61: 156.48 | AH61: 176.6956404 | AI61: 154.83
A62: 52 | B62: 1999-04-30 | C62: 0.001045024195 | D62: 0.008326926503 | E62: 0.02489784267 | F62: 0.03789330262 | G62: 0.06087076244 | H62: 0.01742149158 | I62: 0.06170461702 | J62: 0.02336375902 | Z62: 52 | AA62: 1999-04-30 | AB62: 170.42 | AC62: 79.05930782 | AD62: 288.73 | AE62: 4714.566 | AF62: 4878.867834 | AG62: 159.23 | AH62: 187.9419848 | AI62: 158.49
A63: 53 | B63: 1999-05-31 | C63: 0.0008270255999 | D63: -0.002316826985 | E63: -0.01916209546 | F63: -0.04784938553 | G63: -0.03564037394 | H63: 0.001380695588 | I63: -0.06197313394 | J63: -0.002400506522 | Z63: 53 | AA63: 1999-05-31 | AB63: 170.561 | AC63: 78.8763531 | AD63: 283.25 | AE63: 4494.289 | AF63: 4708.045331 | AG63: 159.45 | AH63: 176.648201 | AI63: 158.11
A64: 54 | B64: 1999-06-30 | C64: 0.0007267484774 | D64: -0.01519164478 | E64: -0.004032834106 | F64: 0.008101638782 | G64: 0.06290636418 | H64: -0.005218988801 | I64: 0.07156550618 | J64: 0.02923146025 | Z64: 54 | AA64: 1999-06-30 | AB64: 170.685 | AC64: 77.68714743 | AD64: 282.11 | AE64: 4530.848 | AF64: 5013.725152 | AG64: 158.62 | AH64: 189.7534686 | AI64: 162.8
A65: 55 | B65: 1999-07-31 | C65: 0.001059871099 | D65: -0.003046535696 | E65: -0.01420843552 | F65: 0.0001456574871 | G65: -0.04215873764 | H65: -0.003536696878 | I65: -0.02185775854 | J65: -0.001106262789 | Z65: 55 | AA65: 1999-07-31 | AB65: 170.866 | AC65: 77.45083092 | AD65: 278.13 | AE65: 4531.508 | AF65: 4806.746464 | AG65: 158.06 | AH65: 185.6508831 | AI65: 162.62
A66: 56 | B66: 1999-08-31 | C66: 0.0009359681518 | D66: -0.004043597403 | E66: 0.01200829268 | F66: 0.01656704064 | G66: 0.01797203359 | H66: -0.007939826384 | I66: 0.07599602454 | J66: -0.01330918157 | Z66: 56 | AA66: 1999-08-31 | AB66: 171.026 | AC66: 77.13828327 | AD66: 281.49 | AE66: 4607.207 | AF66: 4893.914419 | AG66: 156.81 | AH66: 200.3095584 | AI66: 160.47
A67: 57 | B67: 1999-09-30 | C67: 0.0006838726159 | D67: -0.004953447814 | E67: 0.004041698759 | F67: -0.007975360149 | G67: -0.0249964471 | H67: -0.01775765635 | I67: 0.03533075884 | J67: -0.007129486109 | Z67: 57 | AA67: 1999-09-30 | AB67: 171.143 | AC67: 76.75712761 | AD67: 282.63 | AE67: 4570.609 | AF67: 4773.1002 | AG67: 154.05 | AH67: 207.513152 | AI67: 159.33
A68: 58 | B68: 1999-10-31 | C68: 0.001039525416 | D68: -0.01188884576 | E68: 0.01136355875 | F68: 0.02902989982 | G68: 0.06947966459 | H68: -0.06309846796 | I68: -0.02176818086 | J68: 0.02019266522 | Z68: 58 | AA68: 1999-10-31 | AB68: 171.321 | AC68: 75.84997713 | AD68: 285.86 | AE68: 4705.238 | AF68: 5116.526012 | AG68: 144.63 | AH68: 203.0447788 | AI68: 162.58
A69: 59 | B69: 1999-11-30 | C69: 0.0004493477239 | D69: 0.007609167671 | E69: 0.02330430811 | F69: 0.03595643727 | G69: 0.0686874461 | H69: 0.004552987998 | I69: 0.06399698478 | J69: 0.04662625139 | Z69: 59 | AA69: 1999-11-30 | AB69: 171.398 | AC69: 76.42933374 | AD69: 292.6 | AE69: 4877.5 | AF69: 5480.318072 | AG69: 145.29 | AH69: 216.4638426 | AI69: 170.34
A70: 60 | B70: 1999-12-31 | C70: 0.002202964985 | D70: 0.007254690203 | E70: 0.003105221652 | F70: 0.02936649998 | G70: 0.08441581457 | H70: 0.00665411476 | I70: 0.03480577666 | J70: 0.07827997145 | Z70: 60 | AA70: 1999-12-31 | AB70: 171.776 | AC70: 76.98582101 | AD70: 293.51 | AE70: 5022.859 | AF70: 5963.031282 | AG70: 146.26 | AH70: 224.130686 | AI70: 184.21
A71: 61 | B71: 2000-01-31 | C71: 0.000983355766 | D71: -0.005560534633 | E71: 0.00119175321 | F71: -0.06277986246 | G71: -0.03260280661 | H71: 0.005386805157 | I71: 0.0790444153 | J71: -0.004952256318 | Z71: 61 | AA71: 2000-01-31 | AB71: 171.945 | AC71: 76.55892667 | AD71: 293.86 | AE71: 4717.219 | AF71: 5771.754745 | AG71: 147.05 | AH71: 242.5659705 | AI71: 183.3
A72: 62 | B72: 2000-02-29 | C72: 0.0016793591 | D72: -0.004190786417 | E72: 0.005599213773 | F72: 0.007118431493 | G72: 0.004948791286 | H72: -0.03607300323 | I72: 0.01946279577 | J72: 0.05997616541 | Z72: 62 | AA72: 2000-02-29 | AB72: 172.234 | AC72: 76.23875591 | AD72: 295.51 | AE72: 4750.918 | AF72: 5800.388748 | AG72: 141.84 | AH72: 247.333224 | AI72: 194.63
A73: 63 | B73: 2000-03-31 | C73: 0.001647561518 | D73: -0.01156547311 | E73: 0.02172434015 | F73: 0.06614175413 | G73: 0.07820144461 | H73: 0.00330811493 | I73: 0.02089487203 | J73: -0.02497138545 | Z73: 63 | AA73: 2000-03-31 | AB73: 172.518 | AC73: 75.36209788 | AD73: 302 | AE73: 5075.777 | AF73: 6272.195077 | AG73: 142.31 | AH73: 252.5555904 | AI73: 189.83
A74: 64 | B74: 2000-04-30 | C74: 0.001691146212 | D74: 0.0003034134031 | E74: -0.004879434772 | F74: -0.002574345723 | G74: -0.003864839558 | H74: -0.02497372862 | I74: 0.02686491775 | J74: -0.05200609727 | Z74: 64 | AA74: 2000-04-30 | AB74: 172.81 | AC74: 75.38496722 | AD74: 300.53 | AE74: 5062.727 | AF74: 6248.000833 | AG74: 138.8 | AH74: 259.4324349 | AI74: 180.21
A75: 65 | B75: =AA75 -> 2000-05-31 | C75: 0.002837241979 | D75: -0.001416717501 | E75: -0.00661015961 | F75: 0.04005981435 | G75: -0.05075897525 | H75: -0.0004323701155 | I75: 0.03989225621 | J75: -0.01475794016 | Z75: 65 | AA75: 2000-05-31 | AB75: 173.301 | AC75: 75.27824363 | AD75: 298.55 | AE75: 5269.656 | AF75: 5938.773144 | AG75: 138.74 | AH75: 269.990982 | AI75: 177.57
A76: 66 | B76: 2000-06-30 | C76: =LN(AB76/AB75) -> 0.002178800793 | D76: =LN(AC76/AC75) -> 0.009273325198 | E76: =LN(AD76/AD75) -> -0.01318315086 | F76: =LN(AE76/AE75) -> 0.004484341315 | G76: =LN(AF76/AF75) -> -0.003599619395 | H76: =LN(AG76/AG75) -> -0.00817808068 | I76: =LN(AH76/AH75) -> -0.01352664117 | J76: =LN(AI76/AI75) -> 0.03159557796 | Z76: 66 | AA76: 2000-06-30 | AB76: 173.679 | AC76: 75.97957006 | AD76: 294.64 | AE76: 5293.34 | AF76: 5917.43425 | AG76: 137.61 | AH76: 266.3635 | AI76: 183.27
A77: 67 | B77: 2000-07-31 | C77: 0.002828807406 | D77: 0.005403255091 | E77: 0.002271379907 | F77: 0.03905056471 | G77: 0.002294582017 | H77: -0.01390334118 | I77: -0.0206741599 | J77: -0.002075596113 | Z77: 67 | AA77: 2000-07-31 | AB77: 174.171 | AC77: 76.39121817 | AD77: 295.31 | AE77: 5504.137 | AF77: 5931.027878 | AG77: 135.71 | AH77: 260.9131928 | AI77: 182.89
A78: 68 | B78: 2000-08-31 | C78: 0.002694863046 | D78: 0.008545362016 | E78: 0.02303030658 | F78: 0.03177090863 | G78: 0.06535184842 | H78: 0.04622187566 | I78: 0.1270310621 | J78: 0.03164446356 | Z78: 68 | AA78: 2000-08-31 | AB78: 174.641 | AC78: 77.04680592 | AD78: 302.19 | AE78: 5681.816 | AF78: 6331.577288 | AG78: 142.13 | AH78: 296.2544814 | AI78: 188.77
A79: 69 | B79: 2000-09-30 | C79: 0.002596245482 | D79: 0.00434396971 | E79: -0.009108499912 | F79: -0.0465114671 | G79: -0.05584296017 | H79: -0.01853417159 | I79: -0.007557830894 | J79: -0.007070548581 | Z79: 69 | AA79: 2000-09-30 | AB79: 175.095 | AC79: 77.3822229 | AD79: 299.45 | AE79: 5423.598 | AF79: 5987.69435 | AG79: 139.52 | AH79: 294.02388 | AI79: 187.44
A80: 70 | B80: 2000-10-31 | C80: 0.002948332223 | D80: 0.00452133658 | E80: 0.01823316176 | F80: 0.02715577304 | G80: 0.02766212264 | H80: -0.005678362068 | I80: 0.01995775339 | J80: -0.01472590699 | Z80: 70 | AA80: 2000-10-31 | AB80: 175.612 | AC80: 77.73288611 | AD80: 304.96 | AE80: 5572.898 | AF80: 6155.638827 | AG80: 138.73 | AH80: 299.9508842 | AI80: 184.7
A81: 71 | B81: 2000-11-30 | C81: 0.002513750165 | D81: 0.009078990464 | E81: -0.01137743735 | F81: -0.007147630781 | G81: -0.1057731454 | H81: -0.0002162707718 | I81: 0.03407127906 | J81: -0.01813860919 | Z81: 71 | AA81: 2000-11-30 | AB81: 176.054 | AC81: 78.44183565 | AD81: 301.51 | AE81: 5533.207 | AF81: 5537.789416 | AG81: 138.7 | AH81: 310.346688 | AI81: 181.38
A82: 72 | B82: 2000-12-31 | C82: 0.002841676402 | D82: 0.01514230601 | E82: -0.01540780134 | F82: 0.0157649583 | G82: -0.04126398603 | H82: 0.01146965979 | I82: -0.02595667147 | J82: 0.02154374179 | Z82: 72 | AA82: 2000-12-31 | AB82: 176.555 | AC82: 79.63866443 | AD82: 296.9 | AE82: 5621.129 | AF82: 5313.928609 | AG82: 140.3 | AH82: 302.3947701 | AI82: 185.33
A83: 73 | B83: 2001-01-31 | C83: 0.003059515862 | D83: 0.007343507323 | E83: 0.01155307953 | F83: -0.01019908407 | G83: 0.02375104517 | H83: 0.04447035609 | I83: -0.0192569918 | J83: 0.00634683714 | Z83: 73 | AA83: 2001-01-31 | AB83: 177.096 | AC83: 80.22564415 | AD83: 300.35 | AE83: 5564.09 | AF83: 5441.65073 | AG83: 146.68 | AH83: 296.6272671 | AI83: 186.51
A84: 74 | B84: 2001-02-28 | C84: 0.002746146832 | D84: 0.00313078383 | E84: 0.01398531713 | F84: -0.04470677429 | G84: -0.0703171166 | H84: -0.01283080486 | I84: 0.01363542733 | J84: -0.007966882856 | Z84: 74 | AA84: 2001-02-28 | AB84: 177.583 | AC84: 80.47720689 | AD84: 304.58 | AE84: 5320.816 | AF84: 5072.152792 | AG84: 144.81 | AH84: 300.6996076 | AI84: 185.03
A85: 75 | B85: 2001-03-31 | C85: 0.00292954408 | D85: 0.0105531932 | E85: -0.003716926142 | F85: -0.07177920424 | G85: -0.03526084848 | H85: -0.0143276898 | I85: -0.01106450972 | J85: -0.005310514269 | Z85: 75 | AA85: 2001-03-31 | AB85: 178.104 | AC85: 81.33099558 | AD85: 303.45 | AE85: 4952.277 | AF85: 4896.420818 | AG85: 142.75 | AH85: 297.3908525 | AI85: 184.05
A86: 76 | B86: 2001-04-30 | C86: 0.002971370529 | D86: -0.007054537087 | E86: 0.001350216734 | F86: 0.02233073828 | G86: 0.0701536696 | H86: 0.01045305685 | I86: 0.03318915191 | J86: 0.005040251301 | Z86: 76 | AA86: 2001-04-30 | AB86: 178.634 | AC86: 80.75926208 | AD86: 303.86 | AE86: 5064.109 | AF86: 5252.258436 | AG86: 144.25 | AH86: 307.4266208 | AI86: 184.98
A87: 77 | B87: 2001-05-31 | C87: 0.002672288632 | D87: 0.002733658676 | E87: 0.0192952991 | F87: 0.02329245572 | G87: 0.02777886747 | H87: 0.01013906675 | I87: 0.01908408137 | J87: 0.007164241906 | Z87: 77 | AA87: 2001-05-31 | AB87: 179.112 | AC87: 80.98033237 | AD87: 309.78 | AE87: 5183.449 | AF87: 5400.205616 | AG87: 145.72 | AH87: 313.349916 | AI87: 186.31
A88: 78 | B88: 2001-06-30 | C88: 0.002637324952 | D88: 0.008063047621 | E88: -0.004756597815 | F88: -0.03472580681 | G88: -0.03168608942 | H88: -0.009099745682 | I88: -0.04069757853 | J88: 0.004872442911 | Z88: 78 | AA88: 2001-06-30 | AB88: 179.585 | AC88: 81.63592011 | AD88: 308.31 | AE88: 5006.539 | AF88: 5231.776736 | AG88: 144.4 | AH88: 300.853348 | AI88: 187.22
A89: 79 | B89: 2001-07-31 | C89: 0.002930246163 | D89: 0.005494263484 | E89: -0.008959611632 | F89: -0.05624751477 | G89: -0.05324310945 | H89: 0.008001146285 | I89: -0.02705129888 | J89: -0.001015364149 | Z89: 79 | AA89: 2001-07-31 | AB89: 180.112 | AC89: 82.08568379 | AD89: 305.56 | AE89: 4732.707 | AF89: 4960.506394 | AG89: 145.56 | AH89: 292.8239664 | AI89: 187.03
A90: 80 | B90: 2001-08-31 | C90: 0.0027888144 | D90: 0.006940937588 | E90: 0.007661373807 | F90: -0.04141461644 | G90: -0.09293686187 | H90: 0.008959469022 | I90: -0.04438757726 | J90: 0.008094191909 | Z90: 80 | AA90: 2001-08-31 | AB90: 180.615 | AC90: 82.65741729 | AD90: 307.91 | AE90: 4540.707 | AF90: 4520.266576 | AG90: 146.87 | AH90: 280.110468 | AI90: 188.55
A91: 81 | B91: 2001-09-30 | C91: 0.003172991352 | D91: 0.006618279512 | E91: -0.02632510283 | F91: -0.1056361593 | G91: -0.1154395044 | H91: -0.01357300793 | I91: -0.09318130206 | J91: -0.00862900848 | Z91: 81 | AA91: 2001-09-30 | AB91: 181.189 | AC91: 83.20628145 | AD91: 299.91 | AE91: 4085.51 | AF91: 4027.44212 | AG91: 144.89 | AH91: 255.1885674 | AI91: 186.93
A92: 82 | B92: 2001-10-31 | C92: 0.002106076421 | D92: 0.01923659717 | E92: 0.01977582151 | F92: 0.01276311185 | G92: 0.02531362742 | H92: 0.0002070321942 | I92: -0.04238802172 | J92: 0.003737723275 | Z92: 82 | AA92: 2001-10-31 | AB92: 181.571 | AC92: 84.82238146 | AD92: 305.9 | AE92: 4137.988 | AF92: 4130.692598 | AG92: 144.92 | AH92: 244.597678 | AI92: 187.63
A93: 83 | B93: 2001-11-30 | C93: 0.001843308352 | D93: -0.0103889999 | E93: -0.003635236282 | F93: 0.02912285919 | G93: 0.08075657954 | H93: 0.01418269123 | I93: 0.03083370907 | J93: 0.00499735224 | Z93: 83 | AA93: 2001-11-30 | AB93: 181.906 | AC93: 83.94572343 | AD93: 304.79 | AE93: 4260.27 | AF93: 4478.112639 | AG93: 146.99 | AH93: 252.2570076 | AI93: 188.57
A94: 84 | B94: 2001-12-31 | C94: 0.001916735218 | D94: -0.01013105913 | E94: -0.01754198686 | F94: 0.02838673722 | G94: 0.01644908475 | H94: -0.01094477031 | I94: -0.009834589623 | J94: 0.011704056 | Z94: 84 | AA94: 2001-12-31 | AB94: 182.255 | AC94: 83.09955786 | AD94: 299.49 | AE94: 4382.938 | AF94: 4552.382656 | AG94: 145.39 | AH94: 249.7883226 | AI94: 190.79
A95: 85 | B95: 2002-01-31 | C95: 0.001611824781 | D95: 0.000183452578 | E95: 0.008474126844 | F95: -0.02724239438 | G95: -0.01322636144 | H95: 0.01019613993 | I95: 0.01067772225 | J95: 0.005175534986 | Z95: 85 | AA95: 2002-01-31 | AB95: 182.549 | AC95: 83.11480409 | AD95: 302.0387 | AE95: 4265.148 | AF95: 4492.567637 | AG95: 146.88 | AH95: 252.4697834 | AI95: 191.78
A96: 86 | B96: 2002-02-28 | C96: 0.001198958856 | D96: 0.004666705637 | E96: -0.0001062834196 | F96: 0.01575071987 | G96: -0.009999998701 | H96: 0.002991164705 | I96: 0.02411772171 | J96: -0.0060145052 | Z96: 86 | AA96: 2002-02-28 | AB96: 182.768 | AC96: 83.50358286 | AD96: 302.0066 | AE96: 4332.859 | AF96: 4447.865848 | AG96: 147.32 | AH96: 258.6327996 | AI96: 190.63
A97: 87 | B97: 2002-03-31 | C97: 0.001498045714 | D97: 0.0002738350617 | E97: -0.01441970952 | F97: 0.0514478109 | G97: 0.02892734557 | H97: 0.01529112681 | I97: 0.0828246183 | J97: 0.006848446664 | Z97: 87 | AA97: 2002-03-31 | AB97: 183.042 | AC97: 83.5264522 | AD97: 297.683 | AE97: 4561.609 | AF97: 4578.409843 | AG97: 149.59 | AH97: 280.9660692 | AI97: 191.94
A98: 88 | B98: 2002-04-30 | C98: 0.001315771704 | D98: 0.01179472937 | E98: 0.0004735460797 | F98: -0.009350161421 | G98: -0.07064902261 | H98: 0.001069018609 | I98: -0.03647185868 | J98: 0.007008828629 | Z98: 88 | AA98: 2002-04-30 | AB98: 183.283 | AC98: 84.51745693 | AD98: 297.824 | AE98: 4519.156 | AF98: 4266.111341 | AG98: 149.75 | AH98: 270.9033332 | AI98: 193.29
A99: 89 | B99: 2002-05-31 | C99: 0.001373978592 | D99: 0.006652307883 | E99: -0.0012219373 | F99: 0.005932813391 | G99: -0.03483880076 | H99: 0.01583391257 | I99: -0.05265205603 | J99: 0.005931980359 | Z99: 89 | AA99: 2002-05-31 | AB99: 183.535 | AC99: 85.08156731 | AD99: 297.4603 | AE99: 4546.047 | AF99: 4120.044312 | AG99: 152.14 | AH99: 257.0087156 | AI99: 194.44
A100: 90 | B100: 2002-06-30 | C100: 0.0009367121003 | D100: 0.009541291341 | E100: 0.004811570444 | F100: -0.09188976269 | G100: -0.1134895456 | H100: 0.01189167885 | I100: -0.03190324544 | J100: -0.008833386466 | Z100: 90 | AA100: 2002-06-30 | AB100: 183.707 | AC100: 85.89724043 | AD100: 298.895 | AE100: 4146.93 | AF100: 3678.019297 | AG100: 153.96 | AH100: 248.9387175 | AI100: 192.73
A101: 91 | B101: 2002-07-31 | C101: 0.001316448174 | D101: 0.01269858334 | E101: 0.004553094384 | F101: -0.1349334114 | G101: -0.08596700433 | H101: 0.00660324792 | I101: -0.003478798705 | J101: -0.01452936608 | Z101: 91 | AA101: 2002-07-31 | AB101: 183.949 | AC101: 86.99496875 | AD101: 300.259 | AE101: 3623.48 | AF101: 3375.04065 | AG101: 154.98 | AH101: 248.0742144 | AI101: 189.95
A102: 92 | B102: 2002-08-31 | C102: 0.0006901705321 | D102: 0.00742069842 | E102: 0.02955986928 | F102: 0.007946857804 | G102: 0.005435201859 | H102: 0.002642009463 | I102: 0.04200352619 | J102: 0.007343332238 | Z102: 92 | AA102: 2002-08-31 | AB102: 184.076 | AC102: 87.64293337 | AD102: 309.2671 | AE102: 3652.39 | AF102: 3393.434619 | AG102: 155.39 | AH102: 258.7161408 | AI102: 191.35
A103: 93 | B103: 2002-09-30 | C103: 0.0005756833683 | D103: 0.02048969753 | E103: -0.005411894253 | F103: -0.09054631568 | G103: -0.1182047539 | H103: -0.005032268684 | I103: 0.03502205055 | J103: -0.0005227391651 | Z103: 93 | AA103: 2002-09-30 | AB103: 184.182 | AC103: 89.45723433 | AD103: 307.5979 | AE103: 3336.21 | AF103: 3015.114531 | AG103: 154.61 | AH103: 267.9374425 | AI103: 191.25
A104: 94 | B104: 2002-10-31 | C104: 0.0006513173122 | D104: 0.0007666425692 | E104: -0.0002409279346 | F104: 0.03137123402 | G104: 0.06720415052 | H104: 0.03270427614 | I104: -0.01454392872 | J104: -0.001674603981 | Z104: 94 | AA104: 2002-10-31 | AB104: 184.302 | AC104: 89.52584235 | AD104: 307.5238 | AE104: 3442.53 | AF104: 3224.706592 | AG104: 159.75 | AH104: 264.0687804 | AI104: 190.93
A105: 95 | B105: 2002-11-30 | C105: 0.0004936329587 | D105: 0.005519480747 | E105: 0.008432632858 | F105: 0.03402848514 | G105: 0.05589047009 | H105: -0.02600019637 | I105: 0.005996443386 | J105: 0.009798379326 | Z105: 95 | AA105: 2002-11-30 | AB105: 184.393 | AC105: 90.02134472 | AD105: 310.128 | AE105: 3561.69 | AF105: 3410.068698 | AG105: 155.65 | AH105: 265.657011 | AI105: 192.81
A106: 96 | B106: 2002-12-31 | C106: 0.0007156062086 | D106: 0.01862469943 | E106: -0.01384651843 | F106: -0.09296572983 | G106: -0.1189420286 | H106: 0.006276439203 | I106: -0.0216680114 | J106: 0.008983951379 | Z106: 96 | AA106: 2002-12-31 | AB106: 184.525 | AC106: 91.71367587 | AD106: 305.8634 | AE106: 3245.5 | AF106: 3027.661104 | AG106: 156.63 | AH106: 259.9626672 | AI106: 194.55
A107: 97 | B107: 2003-01-31 | C107: 0.0005363687962 | D107: 0.003153529584 | E107: 0.009127668568 | F107: -0.04920189581 | G107: -0.05328137075 | H107: 0.03321605001 | I107: 0.05155457831 | J107: 0.0115495969 | Z107: 97 | AA107: 2003-01-31 | AB107: 184.624 | AC107: 92.00335417 | AD107: 308.668 | AE107: 3089.68 | AF107: 2870.565469 | AG107: 161.92 | AH107: 273.7164212 | AI107: 196.81
A108: 98 | B108: 2003-02-28 | C108: 0.0004657031389 | D108: 0.005371247884 | E108: 0.004583412737 | F108: -0.06090806512 | G108: -0.01403172819 | H108: 0.03417942808 | I108: 0.03633320254 | J108: 0.005826193748 | Z108: 98 | AA108: 2003-02-28 | AB108: 184.71 | AC108: 92.49885653 | AD108: 310.086 | AE108: 2907.11 | AF108: 2830.567749 | AG108: 167.55 | AH108: 283.8442902 | AI108: 197.96
A109: 99 | B109: 2003-03-31 | C109: 0.0005574754625 | D109: -0.005205547801 | E109: 0.001336477439 | F109: -0.008525772167 | G109: -0.004664103618 | H109: -0.01273366956 | I109: -0.08036010468 | J109: 0.001615183069 | Z109: 99 | AA109: 2003-03-31 | AB109: 184.813 | AC109: 92.0186004 | AD109: 310.5007 | AE109: 2882.43 | AF109: 2817.396428 | AG109: 165.43 | AH109: 261.926966 | AI109: 198.28
A110: 100 | B110: 2003-04-30 | C110: 0.0002488692692 | D110: -0.002986810484 | E110: 0.01894022597 | F110: 0.1154910619 | G110: 0.08664912315 | H110: -0.009535739905 | I110: -0.00514227749 | J110: 0.01833996886 | Z110: 100 | AA110: 2003-04-30 | AB110: 184.859 | AC110: 91.74416832 | AD110: 316.4377 | AE110: 3235.31 | AF110: 3072.410182 | AG110: 163.86 | AH110: 260.583522 | AI110: 201.95
A111: 101 | B111: 2003-05-31 | C111: 0.0002271743844 | D111: 0.01729861917 | E111: 0.01060318917 | F111: 0.02298052649 | G111: 0.005114488118 | H111: 0.02964293399 | I111: 0.005887573933 | J111: 0.02450539587 | Z111: 101 | AA111: 2003-05-31 | AB111: 184.901 | AC111: 93.34502211 | AD111: 319.8108 | AE111: 3310.52 | AF111: 3088.16424 | AG111: 168.79 | AH111: 262.122252 | AI111: 206.96
A112: 102 | B112: 2003-06-30 | C112: 0.0002000870656 | D112: -0.004829938578 | E112: 0.02060940886 | F112: 0.0377060931 | G112: 0.06594537337 | H112: -0.01654707567 | I112: 0.02338690746 | J112: 0.007413503361 | Z112: 102 | AA112: 2003-06-30 | AB112: 184.938 | AC112: 92.89525842 | AD112: 326.4703 | AE112: 3437.73 | AF112: 3298.679347 | AG112: 166.02 | AH112: 268.3247265 | AI112: 208.5
A113: 103 | B113: 2003-07-31 | C113: 0.0002324833285 | D113: -0.006091055131 | E113: -0.01625102541 | F113: 0.05176762286 | G113: 0.02778099526 | H113: -0.002110405076 | I113: 0.01348961173 | J113: -0.0002398369121 | Z113: 103 | AA113: 2003-07-31 | AB113: 184.981 | AC113: 92.33114804 | AD113: 321.2077 | AE113: 3620.38 | AF113: 3391.604746 | AG113: 165.67 | AH113: 271.9688465 | AI113: 208.45
A114: 104 | B114: 2003-08-31 | C114: 0.0001837857712 | D114: -0.005547060628 | E114: 0.009342979399 | F114: 0.01489250398 | G114: 0.05259601405 | H114: 0.0136089148 | I114: 0.06971851621 | J114: 0.006741437403 | Z114: 104 | AA114: 2003-08-31 | AB114: 185.015 | AC114: 91.82039945 | AD114: 324.2228 | AE114: 3674.7 | AF114: 3574.764143 | AG114: 167.94 | AH114: 291.6067188 | AI114: 209.86
A115: 105 | B115: 2003-09-30 | C115: 0.0002323865842 | D115: 0.008844129227 | E115: 0.004273712013 | F115: -0.0132228034 | G115: -0.0597444147 | H115: -0.00339984223 | I115: -0.0652318962 | J115: 0.01311292429 | Z115: 105 | AA115: 2003-09-30 | AB115: 185.058 | AC115: 92.63607257 | AD115: 325.6114 | AE115: 3626.43 | AF115: 3367.446646 | AG115: 167.37 | AH115: 273.1918088 | AI115: 212.63
A116: 106 | B116: 2003-10-31 | C116: 0.0001675010203 | D116: -0.003049411025 | E116: 0.005860658199 | F116: 0.03869102052 | G116: 0.06674235231 | H116: 0.02490097977 | I116: 0.05555696926 | J116: 0.01280391324 | Z116: 106 | AA116: 2003-10-31 | AB116: 185.089 | AC116: 92.35401738 | AD116: 327.5253 | AE116: 3769.49 | AF116: 3599.867854 | AG116: 171.59 | AH116: 288.799049 | AI116: 215.37
A117: 107 | B117: 2003-11-30 | C117: 0.0001134524946 | D117: -0.002727612552 | E117: -0.01157423172 | F117: 0.01924594002 | G117: -0.01299924682 | H117: 0.0167022116 | I117: -0.0314996495 | J117: 0.009335496213 | Z117: 107 | AA117: 2003-11-30 | AB117: 185.11 | AC117: 92.10245464 | AD117: 323.7563 | AE117: 3842.74 | AF117: 3553.375123 | AG117: 174.48 | AH117: 279.8437648 | AI117: 217.39
A118: 108 | B118: 2003-12-31 | C118: 0.0002322673353 | D118: 0.01111168271 | E118: 0.005362172732 | F118: 0.03045728177 | G118: 0.01537497041 | H118: 0.01179400048 | I118: 0.02545896643 | J118: 0.01746470601 | Z118: 108 | AA118: 2003-12-31 | AB118: 185.153 | AC118: 93.13157494 | AD118: 325.497 | AE118: 3961.58 | AF118: 3608.430312 | AG118: 176.55 | AH118: 287.059764 | AI118: 221.22
A119: 109 | B119: 2004-01-31 | C119: 0.0001890149895 | D119: 0.004654779545 | E119: 0.01829356895 | F119: 0.04702331528 | G119: 0.03758703881 | H119: 0.01890818528 | I119: 0.03942010712 | J119: 0.01609791954 | Z119: 109 | AA119: 2004-01-31 | AB119: 185.188 | AC119: 93.56609239 | AD119: 331.5063 | AE119: 4152.316 | AF119: 3746.64173 | AG119: 179.92 | AH119: 298.601688 | AI119: 224.81
A120: 110 | B120: 2004-02-29 | C120: 0.0001457871564 | D120: 0.00980996152 | E120: 0.01258538839 | F120: 0.01647143804 | G120: 0.02090988223 | H120: -0.0076996419 | I120: 0.06681564112 | J120: 0.01299293512 | Z120: 110 | AA120: 2004-02-29 | AB120: 185.215 | AC120: 94.4884891 | AD120: 335.7048 | AE120: 4221.277 | AF120: 3825.808365 | AG120: 178.54 | AH120: 319.2345756 | AI120: 227.75
A121: 111 | B121: 2004-03-31 | C121: 0.0002105439329 | D121: 0.003623921824 | E121: 0.007315342419 | F121: -0.0296291223 | G121: -0.001464508473 | H121: -0.002242907747 | I121: 0.0352098797 | J121: 0.001754771233 | Z121: 111 | AA121: 2004-03-31 | AB121: 185.254 | AC121: 94.8315292 | AD121: 338.1696 | AE121: 4098.039 | AF121: 3820.209537 | AG121: 178.14 | AH121: 330.6750129 | AI121: 228.15
A122: 112 | B122: 2004-04-30 | C122: 0.0001835149597 | D122: -0.008800670423 | E122: -0.01976288471 | F122: 0.03697190572 | G122: -0.001539504289 | H122: -0.02161970325 | I122: 0.000692121451 | J122: -0.00703763626 | Z122: 112 | AA122: 2004-04-30 | AB122: 185.288 | AC122: 94.00060985 | AD122: 331.552 | AE122: 4252.387 | AF122: 3814.332833 | AG122: 174.33 | AH122: 330.9039594 | AI122: 226.55
A123: 113 | B123: 2004-05-31 | C123: 0.0001942732567 | D123: -0.004144494169 | E123: -0.02157123747 | F123: -0.02165078409 | G123: -0.03097810809 | H123: 0.005662820795 | I123: -0.02391987942 | J123: -0.003227449361 | Z123: 113 | AA123: 2004-05-31 | AB123: 185.324 | AC123: 93.61183107 | AD123: 324.4766 | AE123: 4161.309 | AF123: 3697.983464 | AG123: 175.32 | AH123: 323.0826914 | AI123: 225.82
A124: 114 | B124: 2004-06-30 | C124: 0.0001025178935 | D124: -0.005716634596 | E124: -0.001127372891 | F124: 0.001239226276 | G124: 0.03286929946 | H124: -0.001769760403 | I124: -0.03022073663 | J124: 0.002300071785 | Z124: 114 | AA124: 2004-06-30 | AB124: 185.343 | AC124: 93.07821314 | AD124: 324.111 | AE124: 4166.469 | AF124: 3821.553292 | AG124: 175.01 | AH124: 313.464954 | AI124: 226.34
A125: 115 | B125: 2004-07-31 | C125: 0.0003344589887 | D125: 0.007912918068 | E125: 0.01622653652 | F125: -0.01642126666 | G125: -0.02086249747 | H125: 0.00342251204 | I125: 0.02957088565 | J125: -0.00433916997 | Z125: 115 | AA125: 2004-07-31 | AB125: 185.405 | AC125: 93.81765513 | AD125: 329.4131 | AE125: 4098.609 | AF125: 3742.652046 | AG125: 175.61 | AH125: 322.872804 | AI125: 225.36
A126: 116 | B126: 2004-08-31 | C126: 0.000328955354 | D126: 0.01123107996 | E126: 0.01471902799 | F126: -0.02029403665 | G126: 0.005488084571 | H126: 0.002047898776 | I126: -0.01768928878 | J126: 8.874295609e-05 | Z126: 116 | AA126: 2004-08-31 | AB126: 185.466 | AC126: 94.87726788 | AD126: 334.2976 | AE126: 4016.27 | AF126: 3763.248503 | AG126: 175.97 | AH126: 317.2116324 | AI126: 225.38
A127: 117 | B127: 2004-09-30 | C127: 0.0002857258399 | D127: 0.00352903799 | E127: 0.004289948379 | F127: 0.01017397528 | G127: 0.005736471511 | H127: 0.01270521622 | I127: 0.05290572601 | J127: 0.008570849905 | Z127: 117 | AA127: 2004-09-30 | AB127: 185.519 | AC127: 95.21268486 | AD127: 335.7348 | AE127: 4057.34 | AF127: 3784.898308 | AG127: 178.22 | AH127: 334.4458179 | AI127: 227.32
A128: 118 | B128: 2004-10-31 | C128: 0.0004526813362 | D128: 0.01035453298 | E128: -0.005490198391 | F128: -0.01741829231 | G128: -0.02685907249 | H128: 0.03012192696 | I128: -0.03449154991 | J128: 0.0109376774 | Z128: 118 | AA128: 2004-10-31 | AB128: 185.603 | AC128: 96.20368959 | AD128: 333.8966 | AE128: 3987.28 | AF128: 3684.59254 | AG128: 183.67 | AH128: 323.1069352 | AI128: 229.82
A129: 119 | B129: 2004-11-30 | C129: 0.0005440242306 | D129: 0.008599997775 | E129: -0.00723372095 | F129: 0.01628636886 | G129: 0.003986939484 | H129: 0.002338419099 | I129: -0.05968085464 | J129: 0.0235649019 | Z129: 119 | AA129: 2004-11-30 | AB129: 185.704 | AC129: 97.03460893 | AD129: 331.49 | AE129: 4052.75 | AF129: 3699.312111 | AG129: 184.1 | AH129: 304.3877806 | AI129: 235.3
A130: 120 | B130: 2004-12-31 | C130: 0.0006298365056 | D130: -0.0001571338784 | E130: 0.01897476737 | F130: 0.04388352741 | G130: 0.02904735255 | H130: 0.02250423927 | I130: -0.05906074704 | J130: 0.01426244692 | Z130: 120 | AA130: 2004-12-31 | AB130: 185.821 | AC130: 97.01936271 | AD130: 337.84 | AE130: 4234.559 | AF130: 3808.3432 | AG130: 188.29 | AH130: 286.9309905 | AI130: 238.68
A131: 121 | B131: 2005-01-31 | C131: 0.000564900337 | D131: 0.01070699143 | E131: 0.02481966712 | F131: 0.01666494858 | G131: 0.02898756388 | H131: 0.02724250404 | I131: 0.06194681329 | J131: -0.005335138366 | Z131: 121 | AA131: 2005-01-31 | AB131: 185.926 | AC131: 98.06372923 | AD131: 346.33 | AE131: 4305.719 | AF131: 3920.3534 | AG131: 193.49 | AH131: 305.2675328 | AI131: 237.41
A132: 122 | B132: 2005-02-28 | C132: 0.0005538304506 | D132: -0.004362736742 | E132: -0.02162798642 | F132: 0.02970071901 | G132: 0.006045876727 | H132: -0.03700909268 | I132: 0.04268093901 | J132: 0.01218276429 | Z132: 122 | AA132: 2005-02-28 | AB132: 186.029 | AC132: 97.63683488 | AD132: 338.92 | AE132: 4435.52 | AF132: 3944.127168 | AG132: 186.46 | AH132: 318.5786833 | AI132: 240.32
A133: 123 | B133: 2005-03-31 | C133: 0.0005965032192 | D133: 0.005372798597 | E133: 0.01432508787 | F133: 0.004767987041 | G133: 0.009917952455 | H133: 0.01907045657 | I133: 0.06412965839 | J133: -0.003626741787 | Z133: 123 | AA133: 2005-03-31 | AB133: 186.14 | AC133: 98.1628297 | AD133: 343.81 | AE133: 4456.719 | AF133: 3983.43946 | AG133: 190.05 | AH133: 339.678352 | AI133: 239.45
A134: 124 | B134: 2005-04-30 | C134: 0.0006068857549 | D134: 0.01326872819 | E134: 0.01265912859 | F134: -0.002844697067 | G134: -0.02971251133 | H134: 0.01467734165 | I134: -0.0685142384 | J134: -0.01243870305 | Z134: 124 | AA134: 2005-04-30 | AB134: 186.253 | AC134: 99.47400518 | AD134: 348.19 | AE134: 4444.059 | AF134: 3866.82254 | AG134: 192.86 | AH134: 317.1849074 | AI134: 236.49
A135: 125 | B135: 2005-05-31 | C135: 0.0006601740845 | D135: 0.006568920657 | E135: 0.01700048063 | F135: 0.04430653617 | G135: 0.06707417701 | H135: 0.01818885884 | I135: 0.04091748845 | J135: -0.0008460595284 | Z135: 125 | AA135: 2005-05-31 | AB135: 186.376 | AC135: 100.1295929 | AD135: 354.16 | AE135: 4645.387 | AF135: 4135.082574 | AG135: 196.4 | AH135: 330.432498 | AI135: 236.29
A136: 126 | B136: 2005-06-30 | C136: 0.0006114797464 | D136: 0.001141335486 | E136: 0.01782638259 | F136: 0.02277233395 | G136: 0.03911413911 | H136: -0.002753277628 | I136: 0.04675336367 | J136: 0.01106890365 | Z136: 126 | AA136: 2005-06-30 | AB136: 186.49 | AC136: 100.2439396 | AD136: 360.53 | AE136: 4752.387 | AF136: 4300.027581 | AG136: 195.86 | AH136: 346.2481658 | AI136: 238.92
A137: 127 | B137: 2005-07-31 | C137: 0.0005843109987 | D137: 0.0009121314102 | E137: -0.005646510976 | F137: 0.05578002785 | G137: 0.04061101838 | H137: 0.0197665865 | I137: 0.04991661801 | J137: 0.01680921106 | Z137: 127 | AA137: 2005-07-31 | AB137: 186.599 | AC137: 100.335417 | AD137: 358.5 | AE137: 5025.008 | AF137: 4478.250493 | AG137: 199.77 | AH137: 363.970339 | AI137: 242.97
A138: 128 | B138: 2005-08-31 | C138: 0.0006750169011 | D138: 0.003488816584 | E138: -0.001814755855 | F138: -0.009565991403 | G138: -0.009375249386 | H138: -0.009000689299 | I138: 0.05542153055 | J138: 0.005704568853 | Z138: 128 | AA138: 2005-08-31 | AB138: 186.725 | AC138: 100.6860802 | AD138: 357.85 | AE138: 4977.168 | AF138: 4436.461973 | AG138: 197.98 | AH138: 384.7115792 | AI138: 244.36
A139: 129 | B139: =AA139 -> 2005-09-30 | C139: 0.0006049849875 | D139: -7.571455616e-05 | E139: 0.003152772445 | F139: 0.05736056103 | G139: 0.04574474528 | H139: 0.001917546129 | I139: 0.06529664268 | J139: 0.01393906547 | Z139: 129 | AA139: 2005-09-30 | AB139: 186.838 | AC139: 100.6784571 | AD139: 358.98 | AE139: 5271.008 | AF139: 4644.120222 | AG139: 198.36 | AH139: 410.6702378 | AI139: 247.79
A140: 130 | B140: 2005-10-31 | C140: =LN(AB140/AB139) -> 0.0006313638203 | D140: =LN(AC140/AC139) -> -0.01119286821 | E140: =LN(AD140/AD139) -> -0.01852815982 | F140: =LN(AE140/AE139) -> 0.01270399235 | G140: =LN(AF140/AF139) -> -0.03632758947 | H140: =LN(AG140/AG139) -> -0.003079954973 | I140: =LN(AH140/AH139) -> -0.0768710817 | J140: =LN(AI140/AI139) -> -0.01762895527 | Z140: 130 | AA140: 2005-10-31 | AB140: 186.956 | AC140: 99.55785943 | AD140: 352.39 | AE140: 5338.398 | AF140: 4478.438164 | AG140: 197.75 | AH140: 380.2844288 | AI140: 243.46
A141: 131 | B141: 2005-11-30 | C141: 0.000518704107 | D141: -0.001916076463 | E141: 0.002607341707 | F141: 0.04814094479 | G141: 0.06060925494 | H141: -0.02420979617 | I141: 0.02988456635 | J141: 0.01196298844 | Z141: 131 | AA141: 2005-11-30 | AB141: 187.053 | AC141: 99.3672816 | AD141: 353.31 | AE141: 5601.68 | AF141: 4758.267429 | AG141: 193.02 | AH141: 391.820582 | AI141: 246.39
A142: 132 | B142: 2005-12-31 | C142: 0.0008015903982 | D142: 0.007109306402 | E142: 0.01215307388 | F142: 0.02481173352 | G142: 0.0229229659 | H142: 0.03562355107 | I142: 0.03214715753 | J142: 0.01290392517 | Z142: 132 | AA142: 2005-12-31 | AB142: 187.203 | AC142: 100.0762311 | AD142: 357.63 | AE142: 5742.406 | AF142: 4868.600784 | AG142: 200.02 | AH142: 404.6211485 | AI142: 249.59
A143: 133 | B143: 2006-01-31 | C143: 0.0007902732728 | D143: -0.004045343837 | E143: -0.009976056095 | F143: 0.03196867663 | G143: 0.01978522772 | H143: -0.005213044387 | I143: -0.005760648166 | J143: 0.02762093523 | Z143: 133 | AA143: 2006-01-31 | AB143: 187.351 | AC143: 99.67220613 | AD143: 354.08 | AE143: 5928.949 | AF143: 4965.886395 | AG143: 198.98 | AH143: 402.2969692 | AI143: 256.58
A144: 134 | B144: 2006-02-28 | C144: 0.0006243013497 | D144: 0.0002294191881 | E144: 0.01558065481 | F144: 0.01395342224 | G144: 0.02521933392 | H144: 0.03029334792 | I144: -0.03835902911 | J144: 0.0003117449951 | Z144: 134 | AA144: 2006-02-28 | AB144: 187.468 | AC144: 99.69507547 | AD144: 359.64 | AE144: 6012.258 | AF144: 5092.71529 | AG144: 205.1 | AH144: 387.1574726 | AI144: 256.66
A145: 135 | B145: 2006-03-31 | C145: 0.000837125775 | D145: -0.01277431761 | E145: -0.01495951925 | F145: 0.02482607896 | G145: 0.010670184 | H145: -0.01172127885 | I145: 0.01047589046 | J145: 0.01462025655 | Z145: 135 | AA145: 2006-03-31 | AB145: 187.625 | AC145: 98.42963866 | AD145: 354.3 | AE145: 6163.387 | AF145: 5147.346443 | AG145: 202.71 | AH145: 391.2346104 | AI145: 260.44
A146: 136 | B146: 2006-04-30 | C146: 0.0008257748768 | D146: -0.009728081699 | E146: -0.02007023296 | F146: 0.0141992898 | G146: -0.006708537813 | H146: 0.01469102373 | I146: 0.02846377652 | J146: 0.01773460493 | Z146: 136 | AA146: 2006-04-30 | AB146: 187.78 | AC146: 97.4767495 | AD146: 347.26 | AE146: 6251.527 | AF146: 5112.930843 | AG146: 205.71 | AH146: 402.5306259 | AI146: 265.1
A147: 137 | B147: 2006-05-31 | C147: 0.001138982597 | D147: 0.002967361228 | E147: -0.001931253753 | F147: -0.05371831851 | G147: -0.06958620682 | H147: -0.003213558126 | I147: -0.02623631365 | J147: -0.01666007877 | Z147: 137 | AA147: 2006-05-31 | AB147: 187.994 | AC147: 97.76642781 | AD147: 346.59 | AE147: 5924.566 | AF147: 4769.23819 | AG147: 205.05 | AH147: 392.1070423 | AI147: 260.72
A148: 138 | B148: 2006-06-30 | C148: 0.001057984559 | D148: -0.004924385611 | E148: -0.004337272587 | F148: 0.005230730627 | G148: 0.01746816421 | H148: -0.02959733017 | I148: 0.001690174439 | J148: -0.00453620122 | Z148: 138 | AA148: 2006-06-30 | AB148: 188.193 | AC148: 97.28617167 | AD148: 345.09 | AE148: 5955.637 | AF148: 4853.279916 | AG148: 199.07 | AH148: 392.7703319 | AI148: 259.54
A149: 139 | B149: 2006-07-31 | C149: 0.001221403385 | D149: 0.007494180273 | E149: 0.01232627996 | F149: 0.03619468382 | G149: 0.00651837705 | H149: 0.004710843632 | I149: 0.03167752078 | J149: -0.0007708911883 | Z149: 139 | AA149: 2006-07-31 | AB149: 188.423 | AC149: 98.01799055 | AD149: 349.37 | AE149: 6175.148 | AF149: 4885.018755 | AG149: 200.01 | AH149: 405.4114854 | AI149: 259.34
A150: 140 | B150: 2006-08-31 | C150: 0.001145700302 | D150: 0.01313470169 | E150: 0.009146014321 | F150: 0.0291600939 | G150: 0.02100092823 | H150: 0.001698471784 | I150: -0.04182689466 | J150: 0.004808348848 | Z150: 140 | AA150: 2006-08-31 | AB150: 188.639 | AC150: 99.3139198 | AD150: 352.58 | AE150: 6357.867 | AF150: 4988.693506 | AG150: 200.35 | AH150: 388.8041203 | AI150: 260.59
A151: 141 | B151: 2006-09-30 | C151: 0.001176159076 | D151: 0.006960673685 | E151: 0.01192588036 | F151: 0.03244928243 | G151: 0.03343593275 | H151: -0.006258626012 | I151: -0.04080283549 | J151: -0.00199746542 | Z151: 141 | AA151: 2006-09-30 | AB151: 188.861 | AC151: 100.0076231 | AD151: 356.81 | AE151: 6567.559 | AF151: 5158.315051 | AG151: 199.1 | AH151: 373.2591067 | AI151: 260.07
A152: 142 | B152: 2006-10-31 | C152: 0.001539629894 | D152: 0.001827736401 | E152: 0.002127719944 | F152: 0.02002425371 | G152: 0.0348044399 | H152: -0.002111720831 | I152: 0.04490753172 | J152: 0.01401294383 | Z152: 142 | AA152: 2006-10-31 | AB152: 189.152 | AC152: 100.1905778 | AD152: 357.57 | AE152: 6700.395 | AF152: 5341.008141 | AG152: 198.68 | AH152: 390.403323 | AI152: 263.74
A153: 143 | B153: 2006-11-30 | C153: 0.001347214244 | D153: 0.007051092559 | E153: -0.007410560229 | F153: -0.005484090728 | G153: -0.01185238405 | H153: 0.007771215565 | I153: 0.01669453567 | J153: 0.01650816815 | Z153: 143 | AA153: 2006-11-30 | AB153: 189.407 | AC153: 100.8995274 | AD153: 354.93 | AE153: 6663.75 | AF153: 5278.078133 | AG153: 200.23 | AH153: 396.9756334 | AI153: 268.13
A154: 144 | B154: 2006-12-31 | C154: 0.001440302871 | D154: -0.008955057188 | E154: -0.003104015134 | F154: 0.03905909093 | G154: 0.03119274197 | H154: 0.03088213157 | I154: -0.03621408282 | J154: 0.01546918568 | Z154: 144 | AA154: 2006-12-31 | AB154: 189.68 | AC154: 100 | AD154: 353.83 | AE154: 6929.18 | AF154: 5445.310522 | AG154: 206.51 | AH154: 382.8567197 | AI154: 272.31
A155: 145 | B155: 2007-01-31 | C155: 0.001859299533 | D155: -0.00471107973 | E155: 0.006479260934 | F155: 0.04412513819 | G155: 0.04143159085 | H155: 0.02534080903 | I155: 0.03160069202 | J155: 0.01022989448 | Z155: 145 | AA155: 2007-01-31 | AB155: 190.033 | AC155: 99.53 | AD155: 356.13 | AE155: 7241.777 | AF155: 5675.657265 | AG155: 211.81 | AH155: 395.1484477 | AI155: 275.11
A156: 146 | B156: 2007-02-28 | C156: 0.001593190108 | D156: 0.006110100644 | E156: 0.002523979129 | F156: -0.03761486729 | G156: -0.03184365017 | H156: -0.007392347553 | I156: 0.006079811615 | J156: 0.00442478598 | Z156: 146 | AA156: 2007-02-28 | AB156: 190.336 | AC156: 100.14 | AD156: 357.03 | AE156: 6974.438 | AF156: 5497.770928 | AG156: 210.25 | AH156: 397.5581938 | AI156: 276.33
A157: 147 | B157: 2007-03-31 | C157: 0.001737519564 | D157: -0.003401023584 | E157: 0.002098460501 | F157: 0.02953873709 | G157: 0.01716520604 | H157: 0.02382799484 | I157: 0.008309692144 | J157: 0.009329198685 | Z157: 147 | AA157: 2007-03-31 | AB157: 190.667 | AC157: 99.8 | AD157: 357.78 | AE157: 7183.527 | AF157: 5592.955896 | AG157: 215.32 | AH157: 400.875544 | AI157: 278.92
A158: 148 | B158: 2007-04-30 | C158: 0.001912502319 | D158: -0.0008019246621 | E158: -0.0004752652489 | F158: 0.05899966106 | G158: 0.03417305422 | H158: 0.001855976776 | I158: 0.001934896737 | J158: 0.01695709034 | Z158: 148 | AA158: 2007-04-30 | AB158: 191.032 | AC158: 99.72 | AD158: 357.61 | AE158: 7620.105 | AF158: 5787.387521 | AG158: 215.72 | AH158: 401.6519476 | AI158: 283.69
A159: 149 | B159: 2007-05-31 | C159: 0.001814801851 | D159: -0.01383371382 | E159: -0.007691481888 | F159: 0.008130915068 | G159: 0.04207059732 | H159: -0.005065655075 | I159: 0.01476824249 | J159: 0.02027320432 | Z159: 149 | AA159: 2007-05-31 | AB159: 191.379 | AC159: 98.35 | AD159: 354.87 | AE159: 7682.316 | AF159: 6036.060607 | AG159: 214.63 | AH159: 407.6276577 | AI159: 289.5
A160: 150 | B160: 2007-06-30 | C160: 0.001754139121 | D160: -0.0104252784 | E160: -0.007013008411 | F160: -0.02214433348 | G160: -0.002342495261 | H160: -0.01810067989 | I160: -0.009019806164 | J160: 0.005064872061 | Z160: 150 | AA160: 2007-06-30 | AB160: 191.715 | AC160: 97.33 | AD160: 352.39 | AE160: 7514.066 | AF160: 6021.937712 | AG160: 210.78 | AH160: 403.9674672 | AI160: 290.97
A161: 151 | B161: 2007-07-31 | C161: 0.002344483725 | D161: 0.005226224941 | E161: 0.01453669568 | F161: -0.03279267969 | G161: -0.04493651653 | H161: -0.005613983059 | I161: -0.002210566792 | J161: -0.002753210949 | Z161: 151 | AA161: 2007-07-31 | AB161: 192.165 | AC161: 97.84 | AD161: 357.55 | AE161: 7271.656 | AF161: 5757.322771 | AG161: 209.6 | AH161: 403.0754564 | AI161: 290.17
A162: 152 | B162: 2007-08-31 | C162: 0.002141695773 | D162: 0.008852767051 | E162: 0.02089607617 | F162: -0.005545173137 | G162: 0.001418813595 | H162: -0.006557714427 | I162: -0.03524268311 | J162: -0.01822342206 | Z162: 152 | AA162: 2007-08-31 | AB162: 192.577 | AC162: 98.71 | AD162: 365.1 | AE162: 7231.445 | AF162: 5765.497137 | AG162: 208.23 | AH162: 389.1174002 | AI162: 284.93
A163: 153 | B163: 2007-09-30 | C163: 0.002220021556 | D163: 0.001922980199 | E163: -0.006512532807 | F163: 0.004288962011 | G163: 0.0175869685 | H163: -0.001826572321 | I163: 0.04780550834 | J163: 0.02317375703 | Z163: 153 | AA163: 2007-09-30 | AB163: 193.005 | AC163: 98.9 | AD163: 362.73 | AE163: 7262.527 | AF163: 5867.791642 | AG163: 207.85 | AH163: 408.1711642 | AI163: 291.61
A164: 154 | B164: 2007-10-31 | C164: 0.002447715611 | D164: 0.005746852536 | E164: 0.009766613531 | F164: 0.01497978357 | G164: 0.01977766131 | H164: -0.02365994895 | I164: 0.02214957389 | J164: 0.028431846 | Z164: 154 | AA164: 2007-10-31 | AB164: 193.478 | AC164: 99.47 | AD164: 366.29 | AE164: 7372.137 | AF164: 5984.998051 | AG164: 202.99 | AH164: 417.31285 | AI164: 300.02
A165: 155 | B165: 2007-11-30 | C165: 0.001559684041 | D165: 0.007611453872 | E165: 0.0007368493204 | F165: -0.02993981728 | G165: -0.07505085786 | H165: -0.02524328391 | I165: -0.06565268285 | J165: -0.01419939602 | Z165: 155 | AA165: 2007-11-30 | AB165: 193.78 | AC165: 100.23 | AD165: 366.56 | AE165: 7154.688 | AF165: 5552.260574 | AG165: 197.93 | AH165: 390.7951452 | AI165: 295.79
A166: 156 | B166: 2007-12-31 | C166: 0.002510006549 | D166: -0.00720940341 | E166: -0.003826605008 | F166: -0.03256650702 | G166: -0.00726207245 | H166: 0.007650145519 | I166: 0.0507131649 | J166: 0.002161359796 | Z166: 156 | AA166: 2007-12-31 | AB166: 194.267 | AC166: 99.51 | AD166: 365.16 | AE166: 6925.438 | AF166: 5512.085709 | AG166: 199.45 | AH166: 411.124736 | AI166: 296.43
A167: 157 | B167: 2008-01-31 | C167: 0.002031219764 | D167: 0.01009857105 | E167: -0.004391268446 | F167: -0.1051542443 | G167: -0.1191942426 | H167: 0.0005513646414 | I167: 0.001430321614 | J167: -0.01642810274 | Z167: 157 | AA167: 2008-01-31 | AB167: 194.662 | AC167: 100.52 | AD167: 363.56 | AE167: 6234.18 | AF167: 4892.722223 | AG167: 199.56 | AH167: 411.7131973 | AI167: 291.6
A168: 158 | B168: 2008-02-29 | C168: 0.001960452866 | D168: -0.0009953220688 | E168: -0.01173098889 | F168: -0.007346729144 | G168: -0.03723657589 | H168: 0.02830867064 | I168: 0.08394247477 | J168: 0.01450336933 | Z168: 158 | AA168: 2008-02-29 | AB168: 195.044 | AC168: 100.42 | AD168: 359.32 | AE168: 6188.547 | AF168: 4713.88432 | AG168: 205.29 | AH168: 447.7654108 | AI168: 295.86
A169: 159 | B169: 2008-03-31 | C169: 0.002125464625 | D169: -0.005492050352 | E169: -0.01726382895 | F169: -0.03738339848 | G169: -0.06343007351 | H169: 0.000486997185 | I169: -0.1198154932 | J169: -0.02110950401 | Z169: 159 | AA169: 2008-03-31 | AB169: 195.459 | AC169: 99.87 | AD169: 353.17 | AE169: 5961.469 | AF169: 4424.167792 | AG169: 205.39 | AH169: 397.2055741 | AI169: 289.68
A170: 160 | B170: 2008-04-30 | C170: 0.002376190171 | D170: -0.002606779098 | E170: 0.01495123824 | F170: 0.05438790499 | G170: 0.09563756193 | H170: 0.00988332254 | I170: 0.07866550285 | J170: 0.005679779817 | Z170: 160 | AA170: 2008-04-30 | AB170: 195.924 | AC170: 99.61 | AD170: 358.49 | AE170: 6294.68 | AF170: 4868.178064 | AG170: 207.43 | AH170: 429.713827 | AI170: 291.33
A171: 161 | B171: 2008-05-31 | C171: 0.001993683084 | D171: -0.001305942222 | E171: -0.01223668829 | F171: 0.006157489234 | G171: 0.02995752533 | H171: 0.01388379253 | I171: 0.04057098083 | J171: 0.019309163 | Z171: 161 | AA171: 2008-05-31 | AB171: 196.315 | AC171: 99.48 | AD171: 354.13 | AE171: 6333.559 | AF171: 5016.223092 | AG171: 210.33 | AH171: 447.5062255 | AI171: 297.01
A172: 162 | B172: 2008-06-30 | C172: 0.002071052575 | D172: -0.005847380307 | E172: -0.02209876945 | F172: -0.07847751536 | G172: -0.1174723107 | H172: -0.002904418183 | I172: 0.05234409037 | J172: -0.0003704264998 | Z172: 162 | AA172: 2008-06-30 | AB172: 196.722 | AC172: 98.9 | AD172: 346.39 | AE172: 5855.52 | AF172: 4460.250666 | AG172: 209.72 | AH172: 471.554432 | AI172: 296.9
A173: 163 | B173: 2008-07-31 | C173: 0.002051553603 | D173: 0.01654587759 | E173: 0.02938585241 | F173: 0.0184365675 | G173: 0.006070628471 | H173: -0.00780262928 | I173: -0.09563083808 | J173: -0.02755710203 | Z173: 163 | AA173: 2008-07-31 | AB173: 197.126 | AC173: 100.55 | AD173: 356.72 | AE173: 5964.477 | AF173: 4487.409543 | AG173: 208.09 | AH173: 428.5484076 | AI173: 288.83
A174: 164 | B174: 2008-08-31 | C174: 0.001829641196 | D174: 0.009502199578 | E174: 0.02075200697 | F174: 0.01618161784 | G174: 0.02976891345 | H174: -0.007815555028 | I174: -0.03217661084 | J174: -0.01605451018 | Z174: 164 | AA174: 2008-08-31 | AB174: 197.487 | AC174: 101.51 | AD174: 364.2 | AE174: 6061.777 | AF174: 4623.003072 | AG174: 206.47 | AH174: 414.9786573 | AI174: 284.23
A175: 165 | B175: 2008-09-30 | C175: 0.001679711808 | D175: -0.005036798955 | E175: 0.005722202091 | F175: -0.08569829831 | G175: -0.121487964 | H175: 0.01098224033 | I175: -0.1178301659 | J175: -0.06963893536 | Z175: 165 | AA175: 2008-09-30 | AB175: 197.819 | AC175: 101 | AD175: 366.29 | AE175: 5563.93 | AF175: 4094.139437 | AG175: 208.75 | AH175: 368.8525331 | AI175: 265.11
A176: 166 | B176: 2008-10-31 | C176: 0.00315951245 | D176: -0.01566663785 | E176: 0.02133832042 | F176: -0.09793716859 | G176: -0.1651395163 | H176: -0.06159515251 | I176: -0.1945457336 | J176: -0.06853225239 | Z176: 166 | AA176: 2008-10-31 | AB176: 198.445 | AC176: 99.43 | AD176: 374.19 | AE176: 5044.848 | AF176: 3470.91077 | AG176: 196.28 | AH176: 303.6425512 | AI176: 247.55
A177: 167 | B177: 2008-11-30 | C177: 0.001747068316 | D177: 0.0402143474 | E177: 0.07293140705 | F177: -0.05386651958 | G177: -0.02050037864 | H177: 0.003661517516 | I177: -0.02644036239 | J177: -0.04536843458 | Z177: 167 | AA177: 2008-11-30 | AB177: 198.792 | AC177: 103.51 | AD177: 402.5 | AE177: 4780.289 | AF177: 3400.480178 | AG177: 197 | AH177: 295.71934 | AI177: 236.57
A178: 168 | B178: 2008-12-31 | C178: 0.000965367518 | D178: 0.004914961949 | E178: -0.05605124473 | F178: -0.04552054584 | G178: -0.09772979079 | H178: 0.01766039208 | I178: -0.1756840674 | J178: -0.001522907355 | Z178: 168 | AA178: 2008-12-31 | AB178: 198.984 | AC178: 104.02 | AD178: 380.56 | AE178: 4567.566 | AF178: 3083.874805 | AG178: 200.51 | AH178: 248.0739188 | AI178: 236.21
A179: 169 | B179: 2009-01-31 | C179: 0.0002763659404 | D179: 0.005751549598 | E179: 0.0428716059 | F179: -0.04290960992 | G179: -0.001766725497 | H179: 0.02841882499 | I179: 0.03434510267 | J179: 0.01144938213 | Z179: 169 | AA179: 2009-01-31 | AB179: 199.039 | AC179: 104.62 | AD179: 397.23 | AE179: 4375.719 | AF179: 3078.431254 | AG179: 206.29 | AH179: 256.7420448 | AI179: 238.93
A180: 170 | B180: 2009-02-28 | C180: 0.0002511755027 | D180: -0.009507874746 | E180: -0.03279580342 | F180: -0.1074517797 | G180: -0.09262483501 | H180: -0.001018502889 | I180: -0.03073708224 | J180: -0.009334858804 | Z180: 170 | AA180: 2009-02-28 | AB180: 199.089 | AC180: 103.63 | AD180: 384.41383 | AE180: 3929.92 | AF180: 2806.099103 | AG180: 206.08 | AH180: 248.9705912 | AI180: 236.71
A181: 171 | B181: 2009-03-31 | C181: 0.0002963059707 | D181: 0.0002894495654 | E181: 0.0004803043955 | F181: 0.05143593343 | G181: 0.04671426488 | H181: 0.02444640746 | I181: 0.008858653954 | J181: 0.005854990295 | Z181: 171 | AA181: 2009-03-31 | AB181: 199.148 | AC181: 103.66 | AD181: 384.59851 | AE181: 4137.348 | AF181: 2940.293964 | AG181: 211.18 | AH181: 251.1859335 | AI181: 238.1
A182: 172 | B182: 2009-04-30 | C182: 0.0002058558464 | D182: 0.009409574947 | E182: 0.005143633063 | F182: 0.08124520776 | G182: 0.09763483199 | H182: 0.0164842768 | I182: -0.002291271419 | J182: 0.0162056495 | Z182: 172 | AA182: 2009-04-30 | AB182: 199.189 | AC182: 104.64 | AD182: 386.58184 | AE182: 4487.52 | AF182: 3241.850783 | AG182: 214.69 | AH182: 250.6110572 | AI182: 241.99
A183: 173 | B183: 2009-05-31 | C183: 0.0001706775904 | D183: 0.00267226729 | E183: -0.02544711261 | F183: 0.02804545957 | G183: 0.0428412028 | H183: 0.02593129529 | I183: 0.07721035846 | J183: 0.03683538172 | Z183: 173 | AA183: 2009-05-31 | AB183: 199.223 | AC183: 104.92 | AD183: 376.86856 | AE183: 4615.156 | AF183: 3383.753509 | AG183: 220.33 | AH183: 270.7274304 | AI183: 251.07
A184: 174 | B184: 2009-06-30 | C184: 0.000185704284 | D184: 0.00958034361 | E184: 0.02102992151 | F184: 0.01023549772 | G184: -0.003450634803 | H184: -0.0001361686678 | I184: -0.01856274083 | J184: 0.003975042003 | Z184: 174 | AA184: 2009-06-30 | AB184: 199.26 | AC184: 105.93 | AD184: 384.878 | AE184: 4662.637 | AF184: 3372.097533 | AG184: 220.3 | AH184: 265.748343 | AI184: 252.07
A185: 175 | B185: 2009-07-31 | C185: 0.00017563448 | D185: 0.02249593162 | E185: 0.008847741004 | F185: 0.09150042114 | G185: 0.08784743178 | H185: 0.006425070743 | I185: 0.03807367812 | J185: 0.0242600027 | Z185: 175 | AA185: 2009-07-31 | AB185: 199.295 | AC185: 108.34 | AD185: 388.29841 | AE185: 5109.398 | AF185: 3681.728695 | AG185: 221.72 | AH185: 276.0614429 | AI185: 258.26
A186: 176 | B186: 2009-08-31 | C186: 0.0001605531058 | D186: 0.009370762186 | E186: 0.003430820501 | F186: 0.04529845353 | G186: 0.01620117577 | H186: 0.01219308633 | I186: -0.03049493382 | J186: 0.01460665576 | Z186: 176 | AA186: 2009-08-31 | AB186: 199.327 | AC186: 109.36 | AD186: 389.63288 | AE186: 5346.168 | AF186: 3741.862835 | AG186: 224.44 | AH186: 267.770033 | AI186: 262.06
A187: 177 | B187: 2009-09-30 | C187: 0.0001053489686 | D187: 0.005471470881 | E187: 0.007402553137 | F187: 0.02130864513 | G187: 0.01162774969 | H187: 0.02277380662 | I187: -0.01217765321 | J187: 0.02892211896 | Z187: 177 | AA187: 2009-09-30 | AB187: 199.348 | AC187: 109.96 | AD187: 392.52786 | AE187: 5461.31 | AF187: 3785.626221 | AG187: 229.61 | AH187: 264.5289966 | AI187: 269.75
A188: 178 | B188: 2009-10-31 | C188: 9.029028332e-05 | D188: 0.00154482288 | E188: -0.01203069561 | F188: -0.01081207047 | G188: -0.03226688589 | H188: 0.008802224854 | I188: 0.01773681732 | J188: 0.0008152375757 | Z188: 178 | AA188: 2009-10-31 | AB188: 199.366 | AC188: 110.13 | AD188: 387.83377 | AE188: 5402.58 | AF188: 3665.425532 | AG188: 231.64 | AH188: 269.2627559 | AI188: 269.97
A189: 179 | B189: 2009-11-30 | C189: 6.520457939e-05 | D189: 0.005252683695 | E189: 0.01556947447 | F189: -0.002633689937 | G189: 0.02469138315 | H189: -0.002420471445 | I189: 0.0187255275 | J189: 0.02002267111 | Z189: 179 | AA189: 2009-11-30 | AB189: 199.379 | AC189: 110.71 | AD189: 393.91939 | AE189: 5388.37 | AF189: 3757.056551 | AG189: 231.08 | AH189: 274.3523469 | AI189: 275.43
A190: 180 | B190: 2009-12-31 | C190: 0.0001003064362 | D190: -0.0002710149527 | E190: -0.02915989663 | F190: 0.0432268787 | G190: 0.04519482786 | H190: 0.03716636811 | I190: 0.0466806044 | J190: 0.008639909146 | Z190: 180 | AA190: 2009-12-31 | AB190: 199.399 | AC190: 110.68 | AD190: 382.5986 | AE190: 5626.4 | AF190: 3930.751569 | AG190: 239.83 | AH190: 287.462904 | AI190: 277.82
A191: 181 | B191: 2010-01-31 | C191: 8.525256076e-05 | D191: 0.008815384963 | E191: 0.02043639859 | F191: -0.01004064134 | G191: -0.02171788104 | H191: 0.02067459696 | I191: -0.05528778547 | J191: 0.00129496421 | Z191: 181 | AA191: 2010-01-31 | AB191: 199.416 | AC191: 111.66 | AD191: 390.49798 | AE191: 5570.19 | AF191: 3846.304301 | AG191: 244.84 | AH191: 272.00108 | AI191: 278.18
A192: 182 | B192: 2010-02-28 | C192: 8.023106551e-05 | D192: 0.007672443739 | E192: 0.01872026668 | F192: 0.03407585729 | G192: 0.03958523324 | H192: -0.03681550474 | I192: 0.06167063268 | J192: 0.006485502067 | Z192: 182 | AA192: 2010-02-28 | AB192: 199.432 | AC192: 112.52 | AD192: 397.87706 | AE192: 5763.27 | AF192: 4001.614876 | AG192: 235.99 | AH192: 289.303604 | AI192: 279.99
A193: 183 | B193: 2010-03-31 | C193: 9.025225511e-05 | D193: 0.001420959387 | E193: -0.03986271945 | F193: 0.04156026099 | G193: 0.04884680546 | H193: 0.03194333804 | I193: -0.02428015372 | J193: 0.02113302197 | Z193: 183 | AA193: 2010-03-31 | AB193: 199.45 | AC193: 112.68 | AD193: 382.32856 | AE193: 6007.84 | AF193: 4201.933616 | AG193: 243.65 | AH193: 282.363858 | AI193: 285.97
A194: 184 | B194: 2010-04-30 | C194: 7.019056742e-05 | D194: 0.002127660377 | E194: 0.02095879859 | F194: -0.02707329544 | G194: 0.0144120627 | H194: -0.003783054802 | I194: 0.03298152824 | J194: 0.01216475449 | Z194: 184 | AA194: 2010-04-30 | AB194: 199.464 | AC194: 112.92 | AD194: 390.42627 | AE194: 5847.37 | AF194: 4262.930637 | AG194: 242.73 | AH194: 291.831927 | AI194: 289.47
A195: 185 | B195: 2010-05-31 | C195: 9.525074767e-05 | D195: 0.01188446577 | E195: 0.05568904225 | F195: -0.04994613777 | G195: -0.03064163856 | H195: 0.01122502569 | I195: -0.002747607399 | J195: -0.03051583586 | Z195: 185 | AA195: 2010-05-31 | AB195: 199.483 | AC195: 114.27 | AD195: 412.78554 | AE195: 5562.49 | AF195: 4134.288427 | AG195: 245.47 | AH195: 291.031188 | AI195: 280.77
A196: 186 | B196: 2010-06-30 | C196: 1.503876241e-05 | D196: 0.002185411071 | E196: -0.05253143817 | F196: -0.02819979557 | G196: -0.101927268 | H196: -0.0151465184 | I196: -0.06425146825 | J196: -0.008512820562 | Z196: 186 | AA196: 2010-06-30 | AB196: 199.486 | AC196: 114.52 | AD196: 391.66103 | AE196: 5407.82 | AF196: 3733.656171 | AG196: 241.78 | AH196: 272.92007 | AI196: 278.39
A197: 187 | B197: 2010-07-31 | C197: 1.503853625e-05 | D197: 0.002703293558 | E197: 0.01322704222 | F197: 0.01504030613 | G197: 0.03741368133 | H197: 0.01872506722 | I197: 0.0247522164 | J197: 0.01472633627 | Z197: 187 | AA197: 2010-07-31 | AB197: 199.489 | AC197: 114.83 | AD197: 396.87596 | AE197: 5489.77 | AF197: 3875.992045 | AG197: 246.35 | AH197: 279.759746 | AI197: 282.52
A198: 188 | B198: 2010-08-31 | C198: 0.0001102756893 | D198: 0.0149533881 | E198: -0.01004827532 | F198: -0.004476494054 | G198: -0.05463202049 | H198: 0.008770036206 | I198: -0.04278372093 | J198: 0.001803554551 | Z198: 188 | AA198: 2010-08-31 | AB198: 199.511 | AC198: 116.56 | AD198: 392.90801 | AE198: 5465.25 | AF198: 3669.919111 | AG198: 248.52 | AH198: 268.043013 | AI198: 283.03
A199: 189 | B199: 2010-09-30 | C199: 0.0001052518151 | D199: -0.006368900089 | E199: -0.00656081755 | F199: 0.02339555544 | G199: 0.04634206801 | H199: 0.02291269687 | I199: 0.02695070917 | J199: 0.03229619354 | Z199: 189 | AA199: 2010-09-30 | AB199: 199.532 | AC199: 115.82 | AD199: 390.33865 | AE199: 5594.62 | AF199: 3843.993073 | AG199: 254.28 | AH199: 275.365188 | AI199: 292.32
A200: 190 | B200: 2010-10-31 | C200: 0.0001202742254 | D200: 0.0001726668398 | E200: 0.02467312651 | F200: 0.02820106424 | G200: 0.04881499596 | H200: -0.02904768544 | I200: 0.06062584458 | J200: 0.0186737613 | Z200: 190 | AA200: 2010-10-31 | AB200: 199.556 | AC200: 115.84 | AD200: 400.08932 | AE200: 5754.64 | AF200: 4036.292954 | AG200: 247 | AH200: 292.57587 | AI200: 297.83
A201: 191 | B201: 2010-11-30 | C201: 0.0001102386668 | D201: -0.003372392837 | E201: -0.04736176526 | F201: -0.01791209901 | G201: -0.01158545348 | H201: 0.0008498412118 | I201: 0.006204452023 | J201: -0.002319445718 | Z201: 191 | AA201: 2010-11-30 | AB201: 199.578 | AC201: 115.45 | AD201: 381.58211 | AE201: 5652.48 | AF201: 3989.800508 | AG201: 247.21 | AH201: 294.396786 | AI201: 297.14
A202: 192 | B202: 2010-12-31 | C202: 0.0001202465055 | D202: -0.006343158949 | E202: -0.04092277411 | F202: 0.02414498012 | G202: 0.007057008556 | H202: 0.02520453754 | I202: 0.03735910458 | J202: 0.02630507036 | Z202: 192 | AA202: 2010-12-31 | AB202: 199.602 | AC202: 114.72 | AD202: 366.28191 | AE202: 5790.62 | AF202: 4018.056147 | AG202: 253.52 | AH202: 305.603214 | AI202: 305.06
A203: 193 | B203: =AA203 -> 2011-01-31 | C203: 0.000120232048 | D203: -0.001395673639 | E203: 0.007852822052 | F203: 0.004192820455 | G203: 0.02906128482 | H203: 0.02796596309 | I203: 0.01646367661 | J203: 0.006534689659 | Z203: 193 | AA203: 2011-01-31 | AB203: 199.626 | AC203: 114.56 | AD203: 369.16958 | AE203: 5814.95 | AF203: 4136.539319 | AG203: 260.71 | AH203: 310.676212 | AI203: 307.06
A204: 194 | B204: 2011-02-28 | C204: =LN(AB204/AB203) -> 0.0001102000131 | D204: =LN(AC204/AC203) -> 0.0001745657681 | E204: =LN(AD204/AD203) -> -0.005445992176 | F204: =LN(AE204/AE203) -> 0.02334551201 | G204: =LN(AF204/AF203) -> 0.01707518067 | H204: =LN(AG204/AG203) -> 0.01609470679 | I204: =LN(AH204/AH203) -> -0.004682762724 | J204: =LN(AI204/AI203) -> 0.01310337916 | Z204: 194 | AA204: 2011-02-28 | AB204: 199.648 | AC204: 114.58 | AD204: 367.16455 | AE204: 5952.3 | AF204: 4207.777951 | AG204: 264.94 | AH204: 309.22479 | AI204: 311.11
A205: 195 | B205: 2011-03-31 | C205: 0.0001151961215 | D205: -0.002621691618 | E205: -0.01101699647 | F205: -0.02737774079 | G205: -0.02102444732 | H205: -0.01513624638 | I205: 0.008876851839 | J205: 0.0008353682532 | Z205: 195 | AA205: 2011-03-31 | AB205: 199.671 | AC205: 114.28 | AD205: 363.1417 | AE205: 5791.55 | AF205: 4120.235238 | AG205: 260.96 | AH205: 311.981952 | AI205: 311.37
... 419 more rows

Sheet KORRELATIONEN
D2: Varianz / Kovarianz Matrix:
D4: ='MONATS-JAHRES-RENDITEN'!C8 -> CHF-GM | E4: ='MONATS-JAHRES-RENDITEN'!D8 -> CHF-B | F4: ='MONATS-JAHRES-RENDITEN'!E8 -> FW-B | G4: ='MONATS-JAHRES-RENDITEN'!F8 -> CH-A | H4: ='MONATS-JAHRES-RENDITEN'!G8 -> W-A | I4: ='MONATS-JAHRES-RENDITEN'!H8 -> CH-IF | J4: ='MONATS-JAHRES-RENDITEN'!I8 -> RS | K4: ='MONATS-JAHRES-RENDITEN'!J8 -> HF | L4: ='MONATS-JAHRES-RENDITEN'!K8 -> 0 | M4: ='MONATS-JAHRES-RENDITEN'!L8 -> 0 | N4: ='MONATS-JAHRES-RENDITEN'!M8 -> 0 | O4: ='MONATS-JAHRES-RENDITEN'!N8 -> 0 | P4: ='MONATS-JAHRES-RENDITEN'!O8 -> 0 | Q4: ='MONATS-JAHRES-RENDITEN'!P8 -> 0 | R4: ='MONATS-JAHRES-RENDITEN'!Q8 -> 0 | S4: ='MONATS-JAHRES-RENDITEN'!R8 -> 0 | T4: ='MONATS-JAHRES-RENDITEN'!S8 -> 0 | U4: ='MONATS-JAHRES-RENDITEN'!T8 -> 0 | V4: ='MONATS-JAHRES-RENDITEN'!U8 -> 0 | W4: ='MONATS-JAHRES-RENDITEN'!V8 -> 0 | X4: ='MONATS-JAHRES-RENDITEN'!W8 -> 0 | Y4: ='MONATS-JAHRES-RENDITEN'!X8 -> 0 | Z4: ='MONATS-JAHRES-RENDITEN'!Y8 -> 0
B7: =TRANSPOSE(D4:Z4) -> CHF-GM | D7: =1*D36*D36/(100*100) -> 1.451096588e-05 | E7: =(E36*$D36*E37)/(100*100) -> 1.603418663e-05 | F7: =(F36*$D36*F38)/(100*100) -> 7.453601377e-06 | G7: =(G36*$D36*G39)/(100*100) -> -5.696030178e-05 | H7: =(H36*$D36*H40)/(100*100) -> -9.824836091e-05 | I7: =(I36*$D36*I41)/(100*100) -> -1.865582918e-05 | J7: =(J36*$D36*J42)/(100*100) -> -1.013985317e-05 | K7: =(K36*$D36*K43)/(100*100) -> 2.939289522e-06 | L7: =(L36*$D36*L44)/(100*100) -> 0 | M7: =(M36*$D36*M45)/(100*100) -> 0 | N7: =(N36*$D36*N46)/(100*100) -> 0 | O7: =(O36*$D36*O47)/(100*100) -> 0 | P7: =(P36*$D36*P48)/(100*100) -> 0 | Q7: =(Q36*$D36*Q49)/(100*100) -> 0 | R7: =(R36*$D36*R50)/(100*100) -> 0 | S7: =(S36*$D36*S51)/(100*100) -> 0 | T7: =(T36*$D36*T52)/(100*100) -> 0 | U7: =(U36*$D36*U53)/(100*100) -> 0 | V7: =(V36*$D36*V54)/(100*100) -> 0 | W7: =(W36*$D36*W55)/(100*100) -> 0 | X7: =(X36*$D36*X56)/(100*100) -> 0 | Y7: =(Y36*$D36*Y57)/(100*100) -> 0 | Z7: =(Z36*$D36*Z58)/(100*100) -> 0
B8: CHF-B | D8: =E7 -> 1.603418663e-05 | E8: =1*E37*E37/(100*100) -> 0.0007597170193 | F8: =(F37*$E37*F38)/(100*100) -> 0.0006375041574 | G8: =(G37*$E37*G39)/(100*100) -> -0.0003050936609 | H8: =(H37*$E37*H40)/(100*100) -> -0.0005430653575 | I8: =(I37*$E37*I41)/(100*100) -> 0.000446241465 | J8: =(J37*$E37*J42)/(100*100) -> -0.000391265849 | K8: =(K37*$E37*K43)/(100*100) -> -4.04627247e-05 | L8: =(L37*$E37*L44)/(100*100) -> 0 | M8: =(M37*$E37*M45)/(100*100) -> 0 | N8: =(N37*$E37*N46)/(100*100) -> 0 | O8: =(O37*$E37*O47)/(100*100) -> 0 | P8: =(P37*$E37*P48)/(100*100) -> 0 | Q8: =(Q37*$E37*Q49)/(100*100) -> 0 | R8: =(R37*$E37*R50)/(100*100) -> 0 | S8: =(S37*$E37*S51)/(100*100) -> 0 | T8: =(T37*$E37*T52)/(100*100) -> 0 | U8: =(U37*$E37*U53)/(100*100) -> 0 | V8: =(V37*$E37*V54)/(100*100) -> 0 | W8: =(W37*$E37*W55)/(100*100) -> 0 | X8: =(X37*$E37*X56)/(100*100) -> 0 | Y8: =(Y37*$E37*Y57)/(100*100) -> 0 | Z8: =(Z37*$E37*Z58)/(100*100) -> 0
B9: FW-B | D9: =F7 -> 7.453601377e-06 | E9: =F8 -> 0.0006375041574 | F9: =1*F38*F38/(100*100) -> 0.005270936869 | G9: =(G38*$F38*G39)/(100*100) -> 0.00163229338 | H9: =(H38*$F38*H40)/(100*100) -> 0.00368150916 | I9: =(I38*$F38*I41)/(100*100) -> 0.0006516766126 | J9: =(J38*$F38*J42)/(100*100) -> 0.002865409727 | K9: =(K38*$F38*K43)/(100*100) -> 0.0001168150704 | L9: =(L38*$F38*L44)/(100*100) -> 0 | M9: =(M38*$F38*M45)/(100*100) -> 0 | N9: =(N38*$F38*N46)/(100*100) -> 0 | O9: =(O38*$F38*O47)/(100*100) -> 0 | P9: =(P38*$F38*P48)/(100*100) -> 0 | Q9: =(Q38*$F38*Q49)/(100*100) -> 0 | R9: =(R38*$F38*R50)/(100*100) -> 0 | S9: =(S38*$F38*S51)/(100*100) -> 0 | T9: =(T38*$F38*T52)/(100*100) -> 0 | U9: =(U38*$F38*U53)/(100*100) -> 0 | V9: =(V38*$F38*V54)/(100*100) -> 0 | W9: =(W38*$F38*W55)/(100*100) -> 0 | X9: =(X38*$F38*X56)/(100*100) -> 0 | Y9: =(Y38*$F38*Y57)/(100*100) -> 0 | Z9: =(Z38*$F38*Z58)/(100*100) -> 0
B10: CH-A | D10: =G7 -> -5.696030178e-05 | E10: =G8 -> -0.0003050936609 | F10: =G9 -> 0.00163229338 | G10: =1*G39*G39/(100*100) -> 0.02136355877 | H10: =(H39*$G39*H40)/(100*100) -> 0.01939914232 | I10: =(I39*$G39*I41)/(100*100) -> 0.00265685289 | J10: =(J39*$G39*J42)/(100*100) -> 0.006614506602 | K10: =(K39*$G39*K43)/(100*100) -> 0.004645516498 | L10: =(L39*$G39*L44)/(100*100) -> 0 | M10: =(M39*$G39*M45)/(100*100) -> 0 | N10: =(N39*$G39*N46)/(100*100) -> 0 | O10: =(O39*$G39*O47)/(100*100) -> 0 | P10: =(P39*$G39*P48)/(100*100) -> 0 | Q10: =(Q39*$G39*Q49)/(100*100) -> 0 | R10: =(R39*$G39*R50)/(100*100) -> 0 | S10: =(S39*$G39*S51)/(100*100) -> 0 | T10: =(T39*$G39*T52)/(100*100) -> 0 | U10: =(U39*$G39*U53)/(100*100) -> 0 | V10: =(V39*$G39*V54)/(100*100) -> 0 | W10: =(W39*$G39*W55)/(100*100) -> 0 | X10: =(X39*$G39*X56)/(100*100) -> 0 | Y10: =(Y39*$G39*Y57)/(100*100) -> 0 | Z10: =(Z39*$G39*Z58)/(100*100) -> 0
B11: W-A | D11: =H7 -> -9.824836091e-05 | E11: =H8 -> -0.0005430653575 | F11: =H9 -> 0.00368150916 | G11: =H10 -> 0.01939914232 | H11: =1*H40*H40/(100*100) -> 0.02688328357 | I11: =(I40*$H40*I41)/(100*100) -> 0.002835174458 | J11: =(J40*$H40*J42)/(100*100) -> 0.01245047744 | K11: =(K40*$H40*K43)/(100*100) -> 0.006015864904 | L11: =(L40*$H40*L44)/(100*100) -> 0 | M11: =(M40*$H40*M45)/(100*100) -> 0 | N11: =(N40*$H40*N46)/(100*100) -> 0 | O11: =(O40*$H40*O47)/(100*100) -> 0 | P11: =(P40*$H40*P48)/(100*100) -> 0 | Q11: =(Q40*$H40*Q49)/(100*100) -> 0 | R11: =(R40*$H40*R50)/(100*100) -> 0 | S11: =(S40*$H40*S51)/(100*100) -> 0 | T11: =(T40*$H40*T52)/(100*100) -> 0 | U11: =(U40*$H40*U53)/(100*100) -> 0 | V11: =(V40*$H40*V54)/(100*100) -> 0 | W11: =(W40*$H40*W55)/(100*100) -> 0 | X11: =(X40*$H40*X56)/(100*100) -> 0 | Y11: =(Y40*$H40*Y57)/(100*100) -> 0 | Z11: =(Z40*$H40*Z58)/(100*100) -> 0
B12: CH-IF | D12: =I7 -> -1.865582918e-05 | E12: =I8 -> 0.000446241465 | F12: =I9 -> 0.0006516766126 | G12: =I10 -> 0.00265685289 | H12: =I11 -> 0.002835174458 | I12: =1*I41*I41/(100*100) -> 0.004968976336 | J12: =(J41*$I41*J42)/(100*100) -> 0.001743977352 | K12: =(K41*$I41*K43)/(100*100) -> 0.0009241816097 | L12: =(L41*$I41*L44)/(100*100) -> 0 | M12: =(M41*$I41*M45)/(100*100) -> 0 | N12: =(N41*$I41*N46)/(100*100) -> 0 | O12: =(O41*$I41*O47)/(100*100) -> 0 | P12: =(P41*$I41*P48)/(100*100) -> 0 | Q12: =(Q41*$I41*Q49)/(100*100) -> 0 | R12: =(R41*$I41*R50)/(100*100) -> 0 | S12: =(S41*$I41*S51)/(100*100) -> 0 | T12: =(T41*$I41*T52)/(100*100) -> 0 | U12: =(U41*$I41*U53)/(100*100) -> 0 | V12: =(V41*$I41*V54)/(100*100) -> 0 | W12: =(W41*$I41*W55)/(100*100) -> 0 | X12: =(X41*$I41*X56)/(100*100) -> 0 | Y12: =(Y41*$I41*Y57)/(100*100) -> 0 | Z12: =(Z41*$I41*Z58)/(100*100) -> 0
B13: RS | D13: =J7 -> -1.013985317e-05 | E13: =J8 -> -0.000391265849 | F13: =J9 -> 0.002865409727 | G13: =J10 -> 0.006614506602 | H13: =J11 -> 0.01245047744 | I13: =J12 -> 0.001743977352 | J13: =1*J42*J42/(100*100) -> 0.0238169556 | K13: =(K42*$J42*K43)/(100*100) -> 0.004234041529 | L13: =(L42*$J42*L44)/(100*100) -> 0 | M13: =(M42*$J42*M45)/(100*100) -> 0 | N13: =(N42*$J42*N46)/(100*100) -> 0 | O13: =(O42*$J42*O47)/(100*100) -> 0 | P13: =(P42*$J42*P48)/(100*100) -> 0 | Q13: =(Q42*$J42*Q49)/(100*100) -> 0 | R13: =(R42*$J42*R50)/(100*100) -> 0 | S13: =(S42*$J42*S51)/(100*100) -> 0 | T13: =(T42*$J42*T52)/(100*100) -> 0 | U13: =(U42*$J42*U53)/(100*100) -> 0 | V13: =(V42*$J42*V54)/(100*100) -> 0 | W13: =(W42*$J42*W55)/(100*100) -> 0 | X13: =(X42*$J42*X56)/(100*100) -> 0 | Y13: =(Y42*$J42*Y57)/(100*100) -> 0 | Z13: =(Z42*$J42*Z58)/(100*100) -> 0
B14: HF | D14: =K7 -> 2.939289522e-06 | E14: =K8 -> -4.04627247e-05 | F14: =K9 -> 0.0001168150704 | G14: =K10 -> 0.004645516498 | H14: =K11 -> 0.006015864904 | I14: =K12 -> 0.0009241816097 | J14: =K13 -> 0.004234041529 | K14: =1*K43*K43/(100*100) -> 0.004313277093 | L14: =(L43*$K43*L44)/(100*100) -> 0 | M14: =(M43*$K43*M45)/(100*100) -> 0 | N14: =(N43*$K43*N46)/(100*100) -> 0 | O14: =(O43*$K43*O47)/(100*100) -> 0 | P14: =(P43*$K43*P48)/(100*100) -> 0 | Q14: =(Q43*$K43*Q49)/(100*100) -> 0 | R14: =(R43*$K43*R50)/(100*100) -> 0 | S14: =(S43*$K43*S51)/(100*100) -> 0 | T14: =(T43*$K43*T52)/(100*100) -> 0 | U14: =(U43*$K43*U53)/(100*100) -> 0 | V14: =(V43*$K43*V54)/(100*100) -> 0 | W14: =(W43*$K43*W55)/(100*100) -> 0 | X14: =(X43*$K43*X56)/(100*100) -> 0 | Y14: =(Y43*$K43*Y57)/(100*100) -> 0 | Z14: =(Z43*$K43*Z58)/(100*100) -> 0
B15: 0 | D15: =L7 -> 0 | E15: =L8 -> 0 | F15: =L9 -> 0 | G15: =L10 -> 0 | H15: =L11 -> 0 | I15: =L12 -> 0 | J15: =L13 -> 0 | K15: =L14 -> 0 | L15: =1*L44*L44/(100*100) -> 0 | M15: =(M44*$L44*M45)/(100*100) -> 0 | N15: =(N44*$L44*N46)/(100*100) -> 0 | O15: =(O44*$L44*O47)/(100*100) -> 0 | P15: =(P44*$L44*P48)/(100*100) -> 0 | Q15: =(Q44*$L44*Q49)/(100*100) -> 0 | R15: =(R44*$L44*R50)/(100*100) -> 0 | S15: =(S44*$L44*S51)/(100*100) -> 0 | T15: =(T44*$L44*T52)/(100*100) -> 0 | U15: =(U44*$L44*U53)/(100*100) -> 0 | V15: =(V44*$L44*V54)/(100*100) -> 0 | W15: =(W44*$L44*W55)/(100*100) -> 0 | X15: =(X44*$L44*X56)/(100*100) -> 0 | Y15: =(Y44*$L44*Y57)/(100*100) -> 0 | Z15: =(Z44*$L44*Z58)/(100*100) -> 0
B16: 0 | D16: =M7 -> 0 | E16: =M8 -> 0 | F16: =M9 -> 0 | G16: =M10 -> 0 | H16: =M11 -> 0 | I16: =M12 -> 0 | J16: =M13 -> 0 | K16: =M14 -> 0 | L16: =M15 -> 0 | M16: =1*M45*M45/(100*100) -> 0 | N16: =(N45*$M45*N46)/(100*100) -> 0 | O16: =(O45*$M45*O47)/(100*100) -> 0 | P16: =(P45*$M45*P48)/(100*100) -> 0 | Q16: =(Q45*$M45*Q49)/(100*100) -> 0 | R16: =(R45*$M45*R50)/(100*100) -> 0 | S16: =(S45*$M45*S51)/(100*100) -> 0 | T16: =(T45*$M45*T52)/(100*100) -> 0 | U16: =(U45*$M45*U53)/(100*100) -> 0 | V16: =(V45*$M45*V54)/(100*100) -> 0 | W16: =(W45*$M45*W55)/(100*100) -> 0 | X16: =(X45*$M45*X56)/(100*100) -> 0 | Y16: =(Y45*$M45*Y57)/(100*100) -> 0 | Z16: =(Z45*$M45*Z58)/(100*100) -> 0
B17: 0 | D17: =N7 -> 0 | E17: =N8 -> 0 | F17: =N9 -> 0 | G17: =N10 -> 0 | H17: =N11 -> 0 | I17: =N12 -> 0 | J17: =N13 -> 0 | K17: =N14 -> 0 | L17: =N15 -> 0 | M17: =N16 -> 0 | N17: =1*N46*N46/(100*100) -> 0 | O17: =(O46*$N46*O47)/(100*100) -> 0 | P17: =(P46*$N46*P48)/(100*100) -> 0 | Q17: =(Q46*$N46*Q49)/(100*100) -> 0 | R17: =(R46*$N46*R50)/(100*100) -> 0 | S17: =(S46*$N46*S51)/(100*100) -> 0 | T17: =(T46*$N46*T52)/(100*100) -> 0 | U17: =(U46*$N46*U53)/(100*100) -> 0 | V17: =(V46*$N46*V54)/(100*100) -> 0 | W17: =(W46*$N46*W55)/(100*100) -> 0 | X17: =(X46*$N46*X56)/(100*100) -> 0 | Y17: =(Y46*$N46*Y57)/(100*100) -> 0 | Z17: =(Z46*$N46*Z58)/(100*100) -> 0
B18: 0 | D18: =O7 -> 0 | E18: =O8 -> 0 | F18: =O9 -> 0 | G18: =O10 -> 0 | H18: =O11 -> 0 | I18: =O12 -> 0 | J18: =O13 -> 0 | K18: =O14 -> 0 | L18: =O15 -> 0 | M18: =O16 -> 0 | N18: =O17 -> 0 | O18: =1*O47*O47/(100*100) -> 0 | P18: =(P47*$O47*P48)/(100*100) -> 0 | Q18: =(Q47*$O47*Q49)/(100*100) -> 0 | R18: =(R47*$O47*R50)/(100*100) -> 0 | S18: =(S47*$O47*S51)/(100*100) -> 0 | T18: =(T47*$O47*T52)/(100*100) -> 0 | U18: =(U47*$O47*U53)/(100*100) -> 0 | V18: =(V47*$O47*V54)/(100*100) -> 0 | W18: =(W47*$O47*W55)/(100*100) -> 0 | X18: =(X47*$O47*X56)/(100*100) -> 0 | Y18: =(Y47*$O47*Y57)/(100*100) -> 0 | Z18: =(Z47*$O47*Z58)/(100*100) -> 0
B19: 0 | D19: =P7 -> 0 | E19: =P8 -> 0 | F19: =P9 -> 0 | G19: =P10 -> 0 | H19: =P11 -> 0 | I19: =P12 -> 0 | J19: =P13 -> 0 | K19: =P14 -> 0 | L19: =P15 -> 0 | M19: =P16 -> 0 | N19: =P17 -> 0 | O19: =P18 -> 0 | P19: =1*P48*P48/(100*100) -> 0 | Q19: =(Q48*$P48*Q49)/(100*100) -> 0 | R19: =(R48*$P48*R51)/(100*100) -> 0 | S19: =(S48*$P48*S51)/(100*100) -> 0 | T19: =(T48*$P48*T52)/(100*100) -> 0 | U19: =(U48*$P48*U53)/(100*100) -> 0 | V19: =(V48*$P48*V54)/(100*100) -> 0 | W19: =(W48*$P48*W55)/(100*100) -> 0 | X19: =(X48*$P48*X56)/(100*100) -> 0 | Y19: =(Y48*$P48*Y57)/(100*100) -> 0 | Z19: =(Z48*$P48*Z58)/(100*100) -> 0
B20: 0 | D20: =Q7 -> 0 | E20: =Q8 -> 0 | F20: =Q9 -> 0 | G20: =Q10 -> 0 | H20: =Q11 -> 0 | I20: =Q12 -> 0 | J20: =Q13 -> 0 | K20: =Q14 -> 0 | L20: =Q15 -> 0 | M20: =Q16 -> 0 | N20: =Q17 -> 0 | O20: =Q18 -> 0 | P20: =Q19 -> 0 | Q20: =1*Q49*Q49/(100*100) -> 0 | R20: =(R49*$Q49*R50)/(100*100) -> 0 | S20: =(S49*$Q49*S51)/(100*100) -> 0 | T20: =(T49*$Q49*T52)/(100*100) -> 0 | U20: =(U49*$Q49*U53)/(100*100) -> 0 | V20: =(V49*$Q49*V54)/(100*100) -> 0 | W20: =(W49*$Q49*W55)/(100*100) -> 0 | X20: =(X49*$Q49*X56)/(100*100) -> 0 | Y20: =(Y49*$Q49*Y57)/(100*100) -> 0 | Z20: =(Z49*$Q49*Z58)/(100*100) -> 0
B21: 0 | D21: =R7 -> 0 | E21: =R8 -> 0 | F21: =R9 -> 0 | G21: =R10 -> 0 | H21: =R11 -> 0 | I21: =R12 -> 0 | J21: =R13 -> 0 | K21: =R14 -> 0 | L21: =R15 -> 0 | M21: =R16 -> 0 | N21: =R17 -> 0 | O21: =R18 -> 0 | P21: =R19 -> 0 | Q21: =R20 -> 0 | R21: =1*R50*R50/(100*100) -> 0 | S21: =(S50*$R50*S51)/(100*100) -> 0 | T21: =(T50*$R50*T52)/(100*100) -> 0 | U21: =(U50*$R50*U53)/(100*100) -> 0 | V21: =(V50*$R50*V54)/(100*100) -> 0 | W21: =(W50*$R50*W55)/(100*100) -> 0 | X21: =(X50*$R50*X56)/(100*100) -> 0 | Y21: =(Y50*$R50*Y57)/(100*100) -> 0 | Z21: =(Z50*$R50*Z58)/(100*100) -> 0
B22: 0 | D22: =S7 -> 0 | E22: =S8 -> 0 | F22: =S9 -> 0 | G22: =S10 -> 0 | H22: =S11 -> 0 | I22: =S12 -> 0 | J22: =S13 -> 0 | K22: =S14 -> 0 | L22: =S15 -> 0 | M22: =S16 -> 0 | N22: =S17 -> 0 | O22: =S18 -> 0 | P22: =S19 -> 0 | Q22: =S20 -> 0 | R22: =S21 -> 0 | S22: =1*S51*S51/(100*100) -> 0 | T22: =(T51*$S51*T52)/(100*100) -> 0 | U22: =(U51*$S51*U53)/(100*100) -> 0 | V22: =(V51*$S51*V54)/(100*100) -> 0 | W22: =(W51*$S51*W55)/(100*100) -> 0 | X22: =(X51*$S51*X56)/(100*100) -> 0 | Y22: =(Y51*$S51*Y57)/(100*100) -> 0 | Z22: =(Z51*$S51*Z58)/(100*100) -> 0
B23: 0 | D23: =TRANSPOSE(T7:T22) -> 0 | E23: 0 | F23: 0 | G23: 0 | H23: 0 | I23: 0 | J23: 0 | K23: 0 | L23: 0 | M23: 0 | N23: 0 | O23: 0 | P23: 0 | Q23: 0 | R23: 0 | S23: 0 | T23: =1*T52*T52/(100*100) -> 0 | U23: =(U52*$T52*U53)/(100*100) -> 0 | V23: =(V52*$T52*V54)/(100*100) -> 0 | W23: =(W52*$T52*W55)/(100*100) -> 0 | X23: =(X52*$T52*X56)/(100*100) -> 0 | Y23: =(Y52*$T52*Y57)/(100*100) -> 0 | Z23: =(Z52*$T52*Z58)/(100*100) -> 0
B24: 0 | D24: =TRANSPOSE(U7:U23) -> 0 | E24: 0 | F24: 0 | G24: 0 | H24: 0 | I24: 0 | J24: 0 | K24: 0 | L24: 0 | M24: 0 | N24: 0 | O24: 0 | P24: 0 | Q24: 0 | R24: 0 | S24: 0 | T24: 0 | U24: =1*U53*U53/(100*100) -> 0 | V24: =(V53*$U53*V54)/(100*100) -> 0 | W24: =(W53*$U53*W55)/(100*100) -> 0 | X24: =(X53*$U53*X56)/(100*100) -> 0 | Y24: =(Y53*$U53*Y57)/(100*100) -> 0 | Z24: =(Z53*$U53*Z58)/(100*100) -> 0
B25: 0 | D25: =TRANSPOSE(V7:V24) -> 0 | E25: 0 | F25: 0 | G25: 0 | H25: 0 | I25: 0 | J25: 0 | K25: 0 | L25: 0 | M25: 0 | N25: 0 | O25: 0 | P25: 0 | Q25: 0 | R25: 0 | S25: 0 | T25: 0 | U25: 0 | V25: =1*V54*V54/(100*100) -> 0 | W25: =(W54*$V54*W55)/(100*100) -> 0 | X25: =(X54*$V54*X56)/(100*100) -> 0 | Y25: =(Y54*$V54*Y57)/(100*100) -> 0 | Z25: =(Z54*$V54*Z58)/(100*100) -> 0
B26: 0 | D26: =TRANSPOSE(W7:W25) -> 0 | E26: 0 | F26: 0 | G26: 0 | H26: 0 | I26: 0 | J26: 0 | K26: 0 | L26: 0 | M26: 0 | N26: 0 | O26: 0 | P26: 0 | Q26: 0 | R26: 0 | S26: 0 | T26: 0 | U26: 0 | V26: 0 | W26: =1*W55*W55/(100*100) -> 0 | X26: =(X55*$W55*X56)/(100*100) -> 0 | Y26: =(Y55*$W55*Y57)/(100*100) -> 0 | Z26: =(Z55*$W55*Z58)/(100*100) -> 0
B27: 0 | D27: =TRANSPOSE(X7:X26) -> 0 | E27: 0 | F27: 0 | G27: 0 | H27: 0 | I27: 0 | J27: 0 | K27: 0 | L27: 0 | M27: 0 | N27: 0 | O27: 0 | P27: 0 | Q27: 0 | R27: 0 | S27: 0 | T27: 0 | U27: 0 | V27: 0 | W27: 0 | X27: =1*X56*X56/(100*100) -> 0 | Y27: =(Y56*$X56*Y57)/(100*100) -> 0 | Z27: =(Z56*$X56*Z58)/(100*100) -> 0
B28: 0 | D28: =TRANSPOSE(Y7:Y27) -> 0 | E28: 0 | F28: 0 | G28: 0 | H28: 0 | I28: 0 | J28: 0 | K28: 0 | L28: 0 | M28: 0 | N28: 0 | O28: 0 | P28: 0 | Q28: 0 | R28: 0 | S28: 0 | T28: 0 | U28: 0 | V28: 0 | W28: 0 | X28: 0 | Y28: =1*Y57*Y57/(100*100) -> 0 | Z28: =(Z57*$Y57*Z58)/(100*100) -> 0
B29: 0 | D29: =TRANSPOSE(Z7:Z28) -> 0 | E29: 0 | F29: 0 | G29: 0 | H29: 0 | I29: 0 | J29: 0 | K29: 0 | L29: 0 | M29: 0 | N29: 0 | O29: 0 | P29: 0 | Q29: 0 | R29: 0 | S29: 0 | T29: 0 | U29: 0 | V29: 0 | W29: 0 | X29: 0 | Y29: 0 | Z29: =1*Z58*Z58/(100*100) -> 0
D31: Volatilitäten / Korrelation: Tabelle muss mit Werten der Hilfstabelle (siehe unten) aufgefüllt werden
D33: =D4 -> CHF-GM | E33: CHF-B | F33: FW-B | G33: CH-A | H33: W-A | I33: CH-IF | J33: RS | K33: HF | L33: 0 | M33: 0 | N33: 0 | O33: 0 | P33: 0 | Q33: 0 | R33: 0 | S33: 0 | T33: 0 | U33: 0 | V33: 0 | W33: 0 | X33: 0 | Y33: 0 | Z33: 0
B36: =B7 -> CHF-GM | D36: ='MONATS-JAHRES-RENDITEN'!$C$627*100 -> 0.3809326172 | E36: =E65 -> 0.1527118878 | F36: 0.02695095103 | G36: -0.1023027531 | H36: -0.1573026346 | I36: -0.06947570008 | J36: -0.01724806508 | K36: =K65 -> 0.01174871927
B37: =B8 -> CHF-B | E37: ='MONATS-JAHRES-RENDITEN'!$D$627*100 -> 2.756296463 | F37: =F66 -> 0.3185760962 | G37: -0.07573043587 | H37: -0.1201669436 | I37: 0.2296733106 | J37: -0.09198200913 | K37: -0.02235246981
B38: FW-B | F38: ='MONATS-JAHRES-RENDITEN'!$E$627*100 -> 7.26012181 | G38: =G67 -> 0.1538216665 | H38: =H67 -> 0.3092721557 | I38: =I67 -> 0.1273370439 | J38: =J67 -> 0.2557406119 | K38: =K67 -> 0.02449916532
B39: CH-A | G39: ='MONATS-JAHRES-RENDITEN'!$F$627*100 -> 14.61627818 | H39: =H68 -> 0.8094771105 | I39: =I68 -> 0.2578678766 | J39: =J68 -> 0.2932361649 | K39: =K68 -> 0.4839422367
B40: W-A | H40: ='MONATS-JAHRES-RENDITEN'!$G$627*100 -> 16.39612258 | I40: =I69 -> 0.2453043032 | J40: =J69 -> 0.4920414909 | K40: =K69 -> 0.5586672832
B41: CH-IF | I41: ='MONATS-JAHRES-RENDITEN'!$H$627*100 -> 7.049096634 | J41: =J70 -> 0.1603113432 | K41: =K70 -> 0.1996274129
B42: RS | J42: ='MONATS-JAHRES-RENDITEN'!$I$627*100 -> 15.43274298 | K42: =K71 -> 0.4177421623
B43: HF | K43: ='MONATS-JAHRES-RENDITEN'!$J$627*100 -> 6.56755441
B44: 0 | L44: ='MONATS-JAHRES-RENDITEN'!$K$627*100 -> 0
B45: 0 | M45: ='MONATS-JAHRES-RENDITEN'!$L$627*100 -> 0
B46: 0 | N46: ='MONATS-JAHRES-RENDITEN'!$M$627*100 -> 0
B47: 0 | O47: ='MONATS-JAHRES-RENDITEN'!$N$627*100 -> 0
B48: 0 | P48: ='MONATS-JAHRES-RENDITEN'!$O$627*100 -> 0
B49: 0 | Q49: ='MONATS-JAHRES-RENDITEN'!$P$627*100 -> 0
B50: 0 | R50: ='MONATS-JAHRES-RENDITEN'!$Q$627*100 -> 0
B51: 0 | S51: ='MONATS-JAHRES-RENDITEN'!$R$627*100 -> 0
B52: 0 | T52: ='MONATS-JAHRES-RENDITEN'!$S$627*100 -> 0
B53: 0 | U53: ='MONATS-JAHRES-RENDITEN'!$T$627*100 -> 0
B54: 0 | V54: ='MONATS-JAHRES-RENDITEN'!$U$627*100 -> 0
B55: 0 | W55: ='MONATS-JAHRES-RENDITEN'!$V$627*100 -> 0
B56: 0 | X56: ='MONATS-JAHRES-RENDITEN'!$W$627*100 -> 0
B57: 0 | Y57: ='MONATS-JAHRES-RENDITEN'!$X$627*100 -> 0
B58: 0 | Z58: ='MONATS-JAHRES-RENDITEN'!$Y$627*100 -> 0
D60: Hilfstabelle: Volatilitäten/Korrelationen vollständig
D62: =D33 -> CHF-GM | E62: CHF-B | F62: FW-B | G62: CH-A | H62: W-A | I62: CH-IF | J62: RS | K62: HF | L62: 0 | M62: 0 | N62: 0 | O62: 0 | P62: 0 | Q62: 0 | R62: 0 | S62: 0 | T62: 0 | U62: 0 | V62: 0 | W62: 0 | X62: 0 | Y62: 0 | Z62: 0
B65: =B36 -> CHF-GM | D65: ='MONATS-JAHRES-RENDITEN'!$C$627*100 -> 0.3809326172 | E65: =CORREL('MONATS-JAHRES-RENDITEN'!$C$10:$C$610,'MONATS-JAHRES-RENDITEN'!D$10:D$610) -> 0.1527118878 | F65: =CORREL('MONATS-JAHRES-RENDITEN'!$C$10:$C$610,'MONATS-JAHRES-RENDITEN'!E$10:E$610) -> 0.02695095103 | G65: =CORREL('MONATS-JAHRES-RENDITEN'!$C$10:$C$610,'MONATS-JAHRES-RENDITEN'!F$10:F$610) -> -0.1023027531 | H65: =CORREL('MONATS-JAHRES-RENDITEN'!$C$10:$C$610,'MONATS-JAHRES-RENDITEN'!G$10:G$610) -> -0.1573026346 | I65: =CORREL('MONATS-JAHRES-RENDITEN'!$C$10:$C$610,'MONATS-JAHRES-RENDITEN'!H$10:H$610) -> -0.06947570008 | J65: =CORREL('MONATS-JAHRES-RENDITEN'!$C$10:$C$610,'MONATS-JAHRES-RENDITEN'!I$10:I$610) -> -0.01724806508 | K65: =CORREL('MONATS-JAHRES-RENDITEN'!$C$10:$C$610,'MONATS-JAHRES-RENDITEN'!J$10:J$610) -> 0.01174871927 | L65: =CORREL('MONATS-JAHRES-RENDITEN'!$C$10:$C$610,'MONATS-JAHRES-RENDITEN'!K$10:K$610) ->  | M65: =CORREL('MONATS-JAHRES-RENDITEN'!$C$10:$C$610,'MONATS-JAHRES-RENDITEN'!L$10:L$610) ->  | N65: =CORREL('MONATS-JAHRES-RENDITEN'!$C$10:$C$610,'MONATS-JAHRES-RENDITEN'!M$10:M$610) ->  | O65: =CORREL('MONATS-JAHRES-RENDITEN'!$C$10:$C$610,'MONATS-JAHRES-RENDITEN'!N$10:N$610) ->  | P65: =CORREL('MONATS-JAHRES-RENDITEN'!$C$10:$C$610,'MONATS-JAHRES-RENDITEN'!O$10:O$610) ->  | Q65: =CORREL('MONATS-JAHRES-RENDITEN'!$C$10:$C$610,'MONATS-JAHRES-RENDITEN'!P$10:P$610) ->  | R65: =CORREL('MONATS-JAHRES-RENDITEN'!$C$10:$C$610,'MONATS-JAHRES-RENDITEN'!Q$10:Q$610) ->  | S65: =CORREL('MONATS-JAHRES-RENDITEN'!$C$10:$C$610,'MONATS-JAHRES-RENDITEN'!R$10:R$610) ->  | T65: =CORREL('MONATS-JAHRES-RENDITEN'!$C$10:$C$610,'MONATS-JAHRES-RENDITEN'!S$10:S$610) ->  | U65: =CORREL('MONATS-JAHRES-RENDITEN'!$C$10:$C$610,'MONATS-JAHRES-RENDITEN'!T$10:T$610) ->  | V65: =CORREL('MONATS-JAHRES-RENDITEN'!$C$10:$C$610,'MONATS-JAHRES-RENDITEN'!U$10:U$610) ->  | W65: =CORREL('MONATS-JAHRES-RENDITEN'!$C$10:$C$610,'MONATS-JAHRES-RENDITEN'!V$10:V$610) ->  | X65: =CORREL('MONATS-JAHRES-RENDITEN'!$C$10:$C$610,'MONATS-JAHRES-RENDITEN'!W$10:W$610) ->  | Y65: =CORREL('MONATS-JAHRES-RENDITEN'!$C$10:$C$610,'MONATS-JAHRES-RENDITEN'!X$10:X$610) ->  | Z65: =CORREL('MONATS-JAHRES-RENDITEN'!$C$10:$C$610,'MONATS-JAHRES-RENDITEN'!Y$10:Y$610) -> 
B66: =B37 -> CHF-B | D66: =CORREL('MONATS-JAHRES-RENDITEN'!$C$10:$C$610,'MONATS-JAHRES-RENDITEN'!D$10:D$610) -> 0.1527118878 | E66: ='MONATS-JAHRES-RENDITEN'!$D$627*100 -> 2.756296463 | F66: =CORREL('MONATS-JAHRES-RENDITEN'!$D$10:$D$610,'MONATS-JAHRES-RENDITEN'!E$10:E$610) -> 0.3185760962 | G66: =CORREL('MONATS-JAHRES-RENDITEN'!$D$10:$D$610,'MONATS-JAHRES-RENDITEN'!F$10:F$610) -> -0.07573043587 | H66: =CORREL('MONATS-JAHRES-RENDITEN'!$D$10:$D$610,'MONATS-JAHRES-RENDITEN'!G$10:G$610) -> -0.1201669436 | I66: =CORREL('MONATS-JAHRES-RENDITEN'!$D$10:$D$610,'MONATS-JAHRES-RENDITEN'!H$10:H$610) -> 0.2296733106 | J66: =CORREL('MONATS-JAHRES-RENDITEN'!$D$10:$D$610,'MONATS-JAHRES-RENDITEN'!I$10:I$610) -> -0.09198200913 | K66: =CORREL('MONATS-JAHRES-RENDITEN'!$D$10:$D$610,'MONATS-JAHRES-RENDITEN'!J$10:J$610) -> -0.02235246981 | L66: =CORREL('MONATS-JAHRES-RENDITEN'!$D$10:$D$610,'MONATS-JAHRES-RENDITEN'!K$10:K$610) ->  | M66: =CORREL('MONATS-JAHRES-RENDITEN'!$D$10:$D$610,'MONATS-JAHRES-RENDITEN'!L$10:L$610) ->  | N66: =CORREL('MONATS-JAHRES-RENDITEN'!$D$10:$D$610,'MONATS-JAHRES-RENDITEN'!M$10:M$610) ->  | O66: =CORREL('MONATS-JAHRES-RENDITEN'!$D$10:$D$610,'MONATS-JAHRES-RENDITEN'!N$10:N$610) ->  | P66: =CORREL('MONATS-JAHRES-RENDITEN'!$D$10:$D$610,'MONATS-JAHRES-RENDITEN'!O$10:O$610) ->  | Q66: =CORREL('MONATS-JAHRES-RENDITEN'!$D$10:$D$610,'MONATS-JAHRES-RENDITEN'!P$10:P$610) ->  | R66: =CORREL('MONATS-JAHRES-RENDITEN'!$D$10:$D$610,'MONATS-JAHRES-RENDITEN'!Q$10:Q$610) ->  | S66: =CORREL('MONATS-JAHRES-RENDITEN'!$D$10:$D$610,'MONATS-JAHRES-RENDITEN'!R$10:R$610) ->  | T66: =CORREL('MONATS-JAHRES-RENDITEN'!$D$10:$D$610,'MONATS-JAHRES-RENDITEN'!S$10:S$610) ->  | U66: =CORREL('MONATS-JAHRES-RENDITEN'!$D$10:$D$610,'MONATS-JAHRES-RENDITEN'!T$10:T$610) ->  | V66: =CORREL('MONATS-JAHRES-RENDITEN'!$D$10:$D$610,'MONATS-JAHRES-RENDITEN'!U$10:U$610) ->  | W66: =CORREL('MONATS-JAHRES-RENDITEN'!$D$10:$D$610,'MONATS-JAHRES-RENDITEN'!V$10:V$610) ->  | X66: =CORREL('MONATS-JAHRES-RENDITEN'!$D$10:$D$610,'MONATS-JAHRES-RENDITEN'!W$10:W$610) ->  | Y66: =CORREL('MONATS-JAHRES-RENDITEN'!$D$10:$D$610,'MONATS-JAHRES-RENDITEN'!X$10:X$610) ->  | Z66: =CORREL('MONATS-JAHRES-RENDITEN'!$D$10:$D$610,'MONATS-JAHRES-RENDITEN'!Y$10:Y$610) -> 
B67: FW-B | D67: =CORREL('MONATS-JAHRES-RENDITEN'!$C$10:$C$610,'MONATS-JAHRES-RENDITEN'!E$10:E$610) -> 0.02695095103 | E67: =CORREL('MONATS-JAHRES-RENDITEN'!$D$10:$D$610,'MONATS-JAHRES-RENDITEN'!E$10:E$610) -> 0.3185760962 | F67: ='MONATS-JAHRES-RENDITEN'!$E$627*100 -> 7.26012181 | G67: =CORREL('MONATS-JAHRES-RENDITEN'!$E$10:$E$610,'MONATS-JAHRES-RENDITEN'!F$10:F$610) -> 0.1538216665 | H67: =CORREL('MONATS-JAHRES-RENDITEN'!$E$10:$E$610,'MONATS-JAHRES-RENDITEN'!G$10:G$610) -> 0.3092721557 | I67: =CORREL('MONATS-JAHRES-RENDITEN'!$E$10:$E$610,'MONATS-JAHRES-RENDITEN'!H$10:H$610) -> 0.1273370439 | J67: =CORREL('MONATS-JAHRES-RENDITEN'!$E$10:$E$610,'MONATS-JAHRES-RENDITEN'!I$10:I$610) -> 0.2557406119 | K67: =CORREL('MONATS-JAHRES-RENDITEN'!$E$10:$E$610,'MONATS-JAHRES-RENDITEN'!J$10:J$610) -> 0.02449916532 | L67: =CORREL('MONATS-JAHRES-RENDITEN'!$E$10:$E$610,'MONATS-JAHRES-RENDITEN'!K$10:K$610) ->  | M67: =CORREL('MONATS-JAHRES-RENDITEN'!$E$10:$E$610,'MONATS-JAHRES-RENDITEN'!L$10:L$610) ->  | N67: =CORREL('MONATS-JAHRES-RENDITEN'!$E$10:$E$610,'MONATS-JAHRES-RENDITEN'!M$10:M$610) ->  | O67: =CORREL('MONATS-JAHRES-RENDITEN'!$E$10:$E$610,'MONATS-JAHRES-RENDITEN'!N$10:N$610) ->  | P67: =CORREL('MONATS-JAHRES-RENDITEN'!$E$10:$E$610,'MONATS-JAHRES-RENDITEN'!O$10:O$610) ->  | Q67: =CORREL('MONATS-JAHRES-RENDITEN'!$E$10:$E$610,'MONATS-JAHRES-RENDITEN'!P$10:P$610) ->  | R67: =CORREL('MONATS-JAHRES-RENDITEN'!$E$10:$E$610,'MONATS-JAHRES-RENDITEN'!Q$10:Q$610) ->  | S67: =CORREL('MONATS-JAHRES-RENDITEN'!$E$10:$E$610,'MONATS-JAHRES-RENDITEN'!R$10:R$610) ->  | T67: =CORREL('MONATS-JAHRES-RENDITEN'!$E$10:$E$610,'MONATS-JAHRES-RENDITEN'!S$10:S$610) ->  | U67: =CORREL('MONATS-JAHRES-RENDITEN'!$E$10:$E$610,'MONATS-JAHRES-RENDITEN'!T$10:T$610) ->  | V67: =CORREL('MONATS-JAHRES-RENDITEN'!$E$10:$E$610,'MONATS-JAHRES-RENDITEN'!U$10:U$610) ->  | W67: =CORREL('MONATS-JAHRES-RENDITEN'!$E$10:$E$610,'MONATS-JAHRES-RENDITEN'!V$10:V$610) ->  | X67: =CORREL('MONATS-JAHRES-RENDITEN'!$E$10:$E$610,'MONATS-JAHRES-RENDITEN'!W$10:W$610) ->  | Y67: =CORREL('MONATS-JAHRES-RENDITEN'!$E$10:$E$610,'MONATS-JAHRES-RENDITEN'!X$10:X$610) ->  | Z67: =CORREL('MONATS-JAHRES-RENDITEN'!$E$10:$E$610,'MONATS-JAHRES-RENDITEN'!Y$10:Y$610) -> 
B68: CH-A | D68: =CORREL('MONATS-JAHRES-RENDITEN'!$C$10:$C$610,'MONATS-JAHRES-RENDITEN'!F$10:F$610) -> -0.1023027531 | E68: =CORREL('MONATS-JAHRES-RENDITEN'!$D$10:$D$610,'MONATS-JAHRES-RENDITEN'!F$10:F$610) -> -0.07573043587 | F68: =CORREL('MONATS-JAHRES-RENDITEN'!$E$10:$E$610,'MONATS-JAHRES-RENDITEN'!F$10:F$610) -> 0.1538216665 | G68: ='MONATS-JAHRES-RENDITEN'!$F$627*100 -> 14.61627818 | H68: =CORREL('MONATS-JAHRES-RENDITEN'!$F$10:$F$610,'MONATS-JAHRES-RENDITEN'!G$10:G$610) -> 0.8094771105 | I68: =CORREL('MONATS-JAHRES-RENDITEN'!$F$10:$F$610,'MONATS-JAHRES-RENDITEN'!H$10:H$610) -> 0.2578678766 | J68: =CORREL('MONATS-JAHRES-RENDITEN'!$F$10:$F$610,'MONATS-JAHRES-RENDITEN'!I$10:I$610) -> 0.2932361649 | K68: =CORREL('MONATS-JAHRES-RENDITEN'!$F$10:$F$610,'MONATS-JAHRES-RENDITEN'!J$10:J$610) -> 0.4839422367 | L68: =CORREL('MONATS-JAHRES-RENDITEN'!$F$10:$F$610,'MONATS-JAHRES-RENDITEN'!K$10:K$610) ->  | M68: =CORREL('MONATS-JAHRES-RENDITEN'!$F$10:$F$610,'MONATS-JAHRES-RENDITEN'!L$10:L$610) ->  | N68: =CORREL('MONATS-JAHRES-RENDITEN'!$F$10:$F$610,'MONATS-JAHRES-RENDITEN'!M$10:M$610) ->  | O68: =CORREL('MONATS-JAHRES-RENDITEN'!$F$10:$F$610,'MONATS-JAHRES-RENDITEN'!N$10:N$610) ->  | P68: =CORREL('MONATS-JAHRES-RENDITEN'!$F$10:$F$610,'MONATS-JAHRES-RENDITEN'!O$10:O$610) ->  | Q68: =CORREL('MONATS-JAHRES-RENDITEN'!$F$10:$F$610,'MONATS-JAHRES-RENDITEN'!P$10:P$610) ->  | R68: =CORREL('MONATS-JAHRES-RENDITEN'!$F$10:$F$610,'MONATS-JAHRES-RENDITEN'!Q$10:Q$610) ->  | S68: =CORREL('MONATS-JAHRES-RENDITEN'!$F$10:$F$610,'MONATS-JAHRES-RENDITEN'!R$10:R$610) ->  | T68: =CORREL('MONATS-JAHRES-RENDITEN'!$F$10:$F$610,'MONATS-JAHRES-RENDITEN'!S$10:S$610) ->  | U68: =CORREL('MONATS-JAHRES-RENDITEN'!$F$10:$F$610,'MONATS-JAHRES-RENDITEN'!T$10:T$610) ->  | V68: =CORREL('MONATS-JAHRES-RENDITEN'!$F$10:$F$610,'MONATS-JAHRES-RENDITEN'!U$10:U$610) ->  | W68: =CORREL('MONATS-JAHRES-RENDITEN'!$F$10:$F$610,'MONATS-JAHRES-RENDITEN'!V$10:V$610) ->  | X68: =CORREL('MONATS-JAHRES-RENDITEN'!$F$10:$F$610,'MONATS-JAHRES-RENDITEN'!W$10:W$610) ->  | Y68: =CORREL('MONATS-JAHRES-RENDITEN'!$F$10:$F$610,'MONATS-JAHRES-RENDITEN'!X$10:X$610) ->  | Z68: =CORREL('MONATS-JAHRES-RENDITEN'!$F$10:$F$610,'MONATS-JAHRES-RENDITEN'!Y$10:Y$610) -> 
B69: W-A | D69: =CORREL('MONATS-JAHRES-RENDITEN'!$C$10:$C$610,'MONATS-JAHRES-RENDITEN'!G$10:G$610) -> -0.1573026346 | E69: =CORREL('MONATS-JAHRES-RENDITEN'!$D$10:$D$610,'MONATS-JAHRES-RENDITEN'!G$10:G$610) -> -0.1201669436 | F69: =CORREL('MONATS-JAHRES-RENDITEN'!$E$10:$E$610,'MONATS-JAHRES-RENDITEN'!G$10:G$610) -> 0.3092721557 | G69: =CORREL('MONATS-JAHRES-RENDITEN'!$F$10:$F$610,'MONATS-JAHRES-RENDITEN'!G$10:G$610) -> 0.8094771105 | H69: ='MONATS-JAHRES-RENDITEN'!$G$627*100 -> 16.39612258 | I69: =CORREL('MONATS-JAHRES-RENDITEN'!$G$10:$G$610,'MONATS-JAHRES-RENDITEN'!H$10:H$610) -> 0.2453043032 | J69: =CORREL('MONATS-JAHRES-RENDITEN'!$G$10:$G$610,'MONATS-JAHRES-RENDITEN'!I$10:I$610) -> 0.4920414909 | K69: =CORREL('MONATS-JAHRES-RENDITEN'!$G$10:$G$610,'MONATS-JAHRES-RENDITEN'!J$10:J$610) -> 0.5586672832 | L69: =CORREL('MONATS-JAHRES-RENDITEN'!$G$10:$G$610,'MONATS-JAHRES-RENDITEN'!K$10:K$610) ->  | M69: =CORREL('MONATS-JAHRES-RENDITEN'!$G$10:$G$610,'MONATS-JAHRES-RENDITEN'!L$10:L$610) ->  | N69: =CORREL('MONATS-JAHRES-RENDITEN'!$G$10:$G$610,'MONATS-JAHRES-RENDITEN'!M$10:M$610) ->  | O69: =CORREL('MONATS-JAHRES-RENDITEN'!$G$10:$G$610,'MONATS-JAHRES-RENDITEN'!N$10:N$610) ->  | P69: =CORREL('MONATS-JAHRES-RENDITEN'!$G$10:$G$610,'MONATS-JAHRES-RENDITEN'!O$10:O$610) ->  | Q69: =CORREL('MONATS-JAHRES-RENDITEN'!$G$10:$G$610,'MONATS-JAHRES-RENDITEN'!P$10:P$610) ->  | R69: =CORREL('MONATS-JAHRES-RENDITEN'!$G$10:$G$610,'MONATS-JAHRES-RENDITEN'!Q$10:Q$610) ->  | S69: =CORREL('MONATS-JAHRES-RENDITEN'!$G$10:$G$610,'MONATS-JAHRES-RENDITEN'!R$10:R$610) ->  | T69: =CORREL('MONATS-JAHRES-RENDITEN'!$G$10:$G$610,'MONATS-JAHRES-RENDITEN'!S$10:S$610) ->  | U69: =CORREL('MONATS-JAHRES-RENDITEN'!$G$10:$G$610,'MONATS-JAHRES-RENDITEN'!T$10:T$610) ->  | V69: =CORREL('MONATS-JAHRES-RENDITEN'!$G$10:$G$610,'MONATS-JAHRES-RENDITEN'!U$10:U$610) ->  | W69: =CORREL('MONATS-JAHRES-RENDITEN'!$G$10:$G$610,'MONATS-JAHRES-RENDITEN'!V$10:V$610) ->  | X69: =CORREL('MONATS-JAHRES-RENDITEN'!$G$10:$G$610,'MONATS-JAHRES-RENDITEN'!W$10:W$610) ->  | Y69: =CORREL('MONATS-JAHRES-RENDITEN'!$G$10:$G$610,'MONATS-JAHRES-RENDITEN'!X$10:X$610) ->  | Z69: =CORREL('MONATS-JAHRES-RENDITEN'!$G$10:$G$610,'MONATS-JAHRES-RENDITEN'!Y$10:Y$610) -> 
B70: CH-IF | D70: =CORREL('MONATS-JAHRES-RENDITEN'!$C$10:$C$610,'MONATS-JAHRES-RENDITEN'!H$10:H$610) -> -0.06947570008 | E70: =CORREL('MONATS-JAHRES-RENDITEN'!$D$10:$D$610,'MONATS-JAHRES-RENDITEN'!H$10:H$610) -> 0.2296733106 | F70: =CORREL('MONATS-JAHRES-RENDITEN'!$E$10:$E$610,'MONATS-JAHRES-RENDITEN'!H$10:H$610) -> 0.1273370439 | G70: =CORREL('MONATS-JAHRES-RENDITEN'!$F$10:$F$610,'MONATS-JAHRES-RENDITEN'!H$10:H$610) -> 0.2578678766 | H70: =CORREL('MONATS-JAHRES-RENDITEN'!$G$10:$G$610,'MONATS-JAHRES-RENDITEN'!H$10:H$610) -> 0.2453043032 | I70: ='MONATS-JAHRES-RENDITEN'!$H$627*100 -> 7.049096634 | J70: =CORREL('MONATS-JAHRES-RENDITEN'!$H$10:$H$610,'MONATS-JAHRES-RENDITEN'!I$10:I$610) -> 0.1603113432 | K70: =CORREL('MONATS-JAHRES-RENDITEN'!$H$10:$H$610,'MONATS-JAHRES-RENDITEN'!J$10:J$610) -> 0.1996274129 | L70: =CORREL('MONATS-JAHRES-RENDITEN'!$H$10:$H$610,'MONATS-JAHRES-RENDITEN'!K$10:K$610) ->  | M70: =CORREL('MONATS-JAHRES-RENDITEN'!$H$10:$H$610,'MONATS-JAHRES-RENDITEN'!L$10:L$610) ->  | N70: =CORREL('MONATS-JAHRES-RENDITEN'!$H$10:$H$610,'MONATS-JAHRES-RENDITEN'!M$10:M$610) ->  | O70: =CORREL('MONATS-JAHRES-RENDITEN'!$H$10:$H$610,'MONATS-JAHRES-RENDITEN'!N$10:N$610) ->  | P70: =CORREL('MONATS-JAHRES-RENDITEN'!$H$10:$H$610,'MONATS-JAHRES-RENDITEN'!O$10:O$610) ->  | Q70: =CORREL('MONATS-JAHRES-RENDITEN'!$H$10:$H$610,'MONATS-JAHRES-RENDITEN'!P$10:P$610) ->  | R70: =CORREL('MONATS-JAHRES-RENDITEN'!$H$10:$H$610,'MONATS-JAHRES-RENDITEN'!Q$10:Q$610) ->  | S70: =CORREL('MONATS-JAHRES-RENDITEN'!$H$10:$H$610,'MONATS-JAHRES-RENDITEN'!R$10:R$610) ->  | T70: =CORREL('MONATS-JAHRES-RENDITEN'!$H$10:$H$610,'MONATS-JAHRES-RENDITEN'!S$10:S$610) ->  | U70: =CORREL('MONATS-JAHRES-RENDITEN'!$H$10:$H$610,'MONATS-JAHRES-RENDITEN'!T$10:T$610) ->  | V70: =CORREL('MONATS-JAHRES-RENDITEN'!$H$10:$H$610,'MONATS-JAHRES-RENDITEN'!U$10:U$610) ->  | W70: =CORREL('MONATS-JAHRES-RENDITEN'!$H$10:$H$610,'MONATS-JAHRES-RENDITEN'!V$10:V$610) ->  | X70: =CORREL('MONATS-JAHRES-RENDITEN'!$H$10:$H$610,'MONATS-JAHRES-RENDITEN'!W$10:W$610) ->  | Y70: =CORREL('MONATS-JAHRES-RENDITEN'!$H$10:$H$610,'MONATS-JAHRES-RENDITEN'!X$10:X$610) ->  | Z70: =CORREL('MONATS-JAHRES-RENDITEN'!$H$10:$H$610,'MONATS-JAHRES-RENDITEN'!Y$10:Y$610) -> 
B71: RS | D71: =CORREL('MONATS-JAHRES-RENDITEN'!$C$10:$C$610,'MONATS-JAHRES-RENDITEN'!I$10:I$610) -> -0.01724806508 | E71: =CORREL('MONATS-JAHRES-RENDITEN'!$D$10:$D$610,'MONATS-JAHRES-RENDITEN'!I$10:I$610) -> -0.09198200913 | F71: =CORREL('MONATS-JAHRES-RENDITEN'!$E$10:$E$610,'MONATS-JAHRES-RENDITEN'!I$10:I$610) -> 0.2557406119 | G71: =CORREL('MONATS-JAHRES-RENDITEN'!$F$10:$F$610,'MONATS-JAHRES-RENDITEN'!I$10:I$610) -> 0.2932361649 | H71: =CORREL('MONATS-JAHRES-RENDITEN'!$G$10:$G$610,'MONATS-JAHRES-RENDITEN'!I$10:I$610) -> 0.4920414909 | I71: =CORREL('MONATS-JAHRES-RENDITEN'!$H$10:$H$610,'MONATS-JAHRES-RENDITEN'!I$10:I$610) -> 0.1603113432 | J71: ='MONATS-JAHRES-RENDITEN'!$I$627*100 -> 15.43274298 | K71: =CORREL('MONATS-JAHRES-RENDITEN'!$I$10:$I$610,'MONATS-JAHRES-RENDITEN'!J$10:J$610) -> 0.4177421623 | L71: =CORREL('MONATS-JAHRES-RENDITEN'!$I$10:$I$610,'MONATS-JAHRES-RENDITEN'!K$10:K$610) ->  | M71: =CORREL('MONATS-JAHRES-RENDITEN'!$I$10:$I$610,'MONATS-JAHRES-RENDITEN'!L$10:L$610) ->  | N71: =CORREL('MONATS-JAHRES-RENDITEN'!$I$10:$I$610,'MONATS-JAHRES-RENDITEN'!M$10:M$610) ->  | O71: =CORREL('MONATS-JAHRES-RENDITEN'!$I$10:$I$610,'MONATS-JAHRES-RENDITEN'!N$10:N$610) ->  | P71: =CORREL('MONATS-JAHRES-RENDITEN'!$I$10:$I$610,'MONATS-JAHRES-RENDITEN'!O$10:O$610) ->  | Q71: =CORREL('MONATS-JAHRES-RENDITEN'!$I$10:$I$610,'MONATS-JAHRES-RENDITEN'!P$10:P$610) ->  | R71: =CORREL('MONATS-JAHRES-RENDITEN'!$I$10:$I$610,'MONATS-JAHRES-RENDITEN'!Q$10:Q$610) ->  | S71: =CORREL('MONATS-JAHRES-RENDITEN'!$I$10:$I$610,'MONATS-JAHRES-RENDITEN'!R$10:R$610) ->  | T71: =CORREL('MONATS-JAHRES-RENDITEN'!$I$10:$I$610,'MONATS-JAHRES-RENDITEN'!S$10:S$610) ->  | U71: =CORREL('MONATS-JAHRES-RENDITEN'!$I$10:$I$610,'MONATS-JAHRES-RENDITEN'!T$10:T$610) ->  | V71: =CORREL('MONATS-JAHRES-RENDITEN'!$I$10:$I$610,'MONATS-JAHRES-RENDITEN'!U$10:U$610) ->  | W71: =CORREL('MONATS-JAHRES-RENDITEN'!$I$10:$I$610,'MONATS-JAHRES-RENDITEN'!V$10:V$610) ->  | X71: =CORREL('MONATS-JAHRES-RENDITEN'!$I$10:$I$610,'MONATS-JAHRES-RENDITEN'!W$10:W$610) ->  | Y71: =CORREL('MONATS-JAHRES-RENDITEN'!$I$10:$I$610,'MONATS-JAHRES-RENDITEN'!X$10:X$610) ->  | Z71: =CORREL('MONATS-JAHRES-RENDITEN'!$I$10:$I$610,'MONATS-JAHRES-RENDITEN'!Y$10:Y$610) -> 
B72: HF | D72: =CORREL('MONATS-JAHRES-RENDITEN'!$C$10:$C$610,'MONATS-JAHRES-RENDITEN'!J$10:J$610) -> 0.01174871927 | E72: =CORREL('MONATS-JAHRES-RENDITEN'!$D$10:$D$610,'MONATS-JAHRES-RENDITEN'!J$10:J$610) -> -0.02235246981 | F72: =CORREL('MONATS-JAHRES-RENDITEN'!$E$10:$E$610,'MONATS-JAHRES-RENDITEN'!J$10:J$610) -> 0.02449916532 | G72: =CORREL('MONATS-JAHRES-RENDITEN'!$F$10:$F$610,'MONATS-JAHRES-RENDITEN'!J$10:J$610) -> 0.4839422367 | H72: =CORREL('MONATS-JAHRES-RENDITEN'!$G$10:$G$610,'MONATS-JAHRES-RENDITEN'!J$10:J$610) -> 0.5586672832 | I72: =CORREL('MONATS-JAHRES-RENDITEN'!$H$10:$H$610,'MONATS-JAHRES-RENDITEN'!J$10:J$610) -> 0.1996274129 | J72: =CORREL('MONATS-JAHRES-RENDITEN'!$I$10:$I$610,'MONATS-JAHRES-RENDITEN'!J$10:J$610) -> 0.4177421623 | K72: ='MONATS-JAHRES-RENDITEN'!$J$627*100 -> 6.56755441 | L72: =CORREL('MONATS-JAHRES-RENDITEN'!$J$10:$J$610,'MONATS-JAHRES-RENDITEN'!K$10:K$610) ->  | M72: =CORREL('MONATS-JAHRES-RENDITEN'!$J$10:$J$610,'MONATS-JAHRES-RENDITEN'!L$10:L$610) ->  | N72: =CORREL('MONATS-JAHRES-RENDITEN'!$J$10:$J$610,'MONATS-JAHRES-RENDITEN'!M$10:M$610) ->  | O72: =CORREL('MONATS-JAHRES-RENDITEN'!$J$10:$J$610,'MONATS-JAHRES-RENDITEN'!N$10:N$610) ->  | P72: =CORREL('MONATS-JAHRES-RENDITEN'!$J$10:$J$610,'MONATS-JAHRES-RENDITEN'!O$10:O$610) ->  | Q72: =CORREL('MONATS-JAHRES-RENDITEN'!$J$10:$J$610,'MONATS-JAHRES-RENDITEN'!P$10:P$610) ->  | R72: =CORREL('MONATS-JAHRES-RENDITEN'!$J$10:$J$610,'MONATS-JAHRES-RENDITEN'!Q$10:Q$610) ->  | S72: =CORREL('MONATS-JAHRES-RENDITEN'!$J$10:$J$610,'MONATS-JAHRES-RENDITEN'!R$10:R$610) ->  | T72: =CORREL('MONATS-JAHRES-RENDITEN'!$J$10:$J$610,'MONATS-JAHRES-RENDITEN'!S$10:S$610) ->  | U72: =CORREL('MONATS-JAHRES-RENDITEN'!$J$10:$J$610,'MONATS-JAHRES-RENDITEN'!T$10:T$610) ->  | V72: =CORREL('MONATS-JAHRES-RENDITEN'!$J$10:$J$610,'MONATS-JAHRES-RENDITEN'!U$10:U$610) ->  | W72: =CORREL('MONATS-JAHRES-RENDITEN'!$J$10:$J$610,'MONATS-JAHRES-RENDITEN'!V$10:V$610) ->  | X72: =CORREL('MONATS-JAHRES-RENDITEN'!$J$10:$J$610,'MONATS-JAHRES-RENDITEN'!W$10:W$610) ->  | Y72: =CORREL('MONATS-JAHRES-RENDITEN'!$J$10:$J$610,'MONATS-JAHRES-RENDITEN'!X$10:X$610) ->  | Z72: =CORREL('MONATS-JAHRES-RENDITEN'!$J$10:$J$610,'MONATS-JAHRES-RENDITEN'!Y$10:Y$610) -> 
B73: 0 | D73: =CORREL('MONATS-JAHRES-RENDITEN'!$C$10:$C$610,'MONATS-JAHRES-RENDITEN'!K$10:K$610) ->  | E73: =CORREL('MONATS-JAHRES-RENDITEN'!$D$10:$D$610,'MONATS-JAHRES-RENDITEN'!K$10:K$610) ->  | F73: =CORREL('MONATS-JAHRES-RENDITEN'!$E$10:$E$610,'MONATS-JAHRES-RENDITEN'!K$10:K$610) ->  | G73: =CORREL('MONATS-JAHRES-RENDITEN'!$F$10:$F$610,'MONATS-JAHRES-RENDITEN'!K$10:K$610) ->  | H73: =CORREL('MONATS-JAHRES-RENDITEN'!$G$10:$G$610,'MONATS-JAHRES-RENDITEN'!K$10:K$610) ->  | I73: =CORREL('MONATS-JAHRES-RENDITEN'!$H$10:$H$610,'MONATS-JAHRES-RENDITEN'!K$10:K$610) ->  | J73: =CORREL('MONATS-JAHRES-RENDITEN'!$I$10:$I$610,'MONATS-JAHRES-RENDITEN'!K$10:K$610) ->  | K73: =CORREL('MONATS-JAHRES-RENDITEN'!$J$10:$J$610,'MONATS-JAHRES-RENDITEN'!K$10:K$610) ->  | L73: ='MONATS-JAHRES-RENDITEN'!$K$627*100 -> 0 | M73: =CORREL('MONATS-JAHRES-RENDITEN'!$K$10:$K$610,'MONATS-JAHRES-RENDITEN'!L$10:L$610) ->  | N73: =CORREL('MONATS-JAHRES-RENDITEN'!$K$10:$K$610,'MONATS-JAHRES-RENDITEN'!M$10:M$610) ->  | O73: =CORREL('MONATS-JAHRES-RENDITEN'!$K$10:$K$610,'MONATS-JAHRES-RENDITEN'!N$10:N$610) ->  | P73: =CORREL('MONATS-JAHRES-RENDITEN'!$K$10:$K$610,'MONATS-JAHRES-RENDITEN'!O$10:O$610) ->  | Q73: =CORREL('MONATS-JAHRES-RENDITEN'!$K$10:$K$610,'MONATS-JAHRES-RENDITEN'!P$10:P$610) ->  | R73: =CORREL('MONATS-JAHRES-RENDITEN'!$K$10:$K$610,'MONATS-JAHRES-RENDITEN'!Q$10:Q$610) ->  | S73: =CORREL('MONATS-JAHRES-RENDITEN'!$K$10:$K$610,'MONATS-JAHRES-RENDITEN'!R$10:R$610) ->  | T73: =CORREL('MONATS-JAHRES-RENDITEN'!$K$10:$K$610,'MONATS-JAHRES-RENDITEN'!S$10:S$610) ->  | U73: =CORREL('MONATS-JAHRES-RENDITEN'!$K$10:$K$610,'MONATS-JAHRES-RENDITEN'!T$10:T$610) ->  | V73: =CORREL('MONATS-JAHRES-RENDITEN'!$K$10:$K$610,'MONATS-JAHRES-RENDITEN'!U$10:U$610) ->  | W73: =CORREL('MONATS-JAHRES-RENDITEN'!$K$10:$K$610,'MONATS-JAHRES-RENDITEN'!V$10:V$610) ->  | X73: =CORREL('MONATS-JAHRES-RENDITEN'!$K$10:$K$610,'MONATS-JAHRES-RENDITEN'!W$10:W$610) ->  | Y73: =CORREL('MONATS-JAHRES-RENDITEN'!$K$10:$K$610,'MONATS-JAHRES-RENDITEN'!X$10:X$610) ->  | Z73: =CORREL('MONATS-JAHRES-RENDITEN'!$K$10:$K$610,'MONATS-JAHRES-RENDITEN'!Y$10:Y$610) -> 
B74: 0 | D74: =CORREL('MONATS-JAHRES-RENDITEN'!$C$10:$C$610,'MONATS-JAHRES-RENDITEN'!L$10:L$610) ->  | E74: =CORREL('MONATS-JAHRES-RENDITEN'!$D$10:$D$610,'MONATS-JAHRES-RENDITEN'!L$10:L$610) ->  | F74: =CORREL('MONATS-JAHRES-RENDITEN'!$E$10:$E$610,'MONATS-JAHRES-RENDITEN'!L$10:L$610) ->  | G74: =CORREL('MONATS-JAHRES-RENDITEN'!$F$10:$F$610,'MONATS-JAHRES-RENDITEN'!L$10:L$610) ->  | H74: =CORREL('MONATS-JAHRES-RENDITEN'!$G$10:$G$610,'MONATS-JAHRES-RENDITEN'!L$10:L$610) ->  | I74: =CORREL('MONATS-JAHRES-RENDITEN'!$H$10:$H$610,'MONATS-JAHRES-RENDITEN'!L$10:L$610) ->  | J74: =CORREL('MONATS-JAHRES-RENDITEN'!$I$10:$I$610,'MONATS-JAHRES-RENDITEN'!L$10:L$610) ->  | K74: =CORREL('MONATS-JAHRES-RENDITEN'!$J$10:$J$610,'MONATS-JAHRES-RENDITEN'!L$10:L$610) ->  | L74: =CORREL('MONATS-JAHRES-RENDITEN'!$K$10:$K$610,'MONATS-JAHRES-RENDITEN'!L$10:L$610) ->  | M74: ='MONATS-JAHRES-RENDITEN'!$L$627*100 -> 0 | N74: =CORREL('MONATS-JAHRES-RENDITEN'!$L$10:$L$610,'MONATS-JAHRES-RENDITEN'!M$10:M$610) ->  | O74: =CORREL('MONATS-JAHRES-RENDITEN'!$L$10:$L$610,'MONATS-JAHRES-RENDITEN'!N$10:N$610) ->  | P74: =CORREL('MONATS-JAHRES-RENDITEN'!$L$10:$L$610,'MONATS-JAHRES-RENDITEN'!O$10:O$610) ->  | Q74: =CORREL('MONATS-JAHRES-RENDITEN'!$L$10:$L$610,'MONATS-JAHRES-RENDITEN'!P$10:P$610) ->  | R74: =CORREL('MONATS-JAHRES-RENDITEN'!$L$10:$L$610,'MONATS-JAHRES-RENDITEN'!Q$10:Q$610) ->  | S74: =CORREL('MONATS-JAHRES-RENDITEN'!$L$10:$L$610,'MONATS-JAHRES-RENDITEN'!R$10:R$610) ->  | T74: =CORREL('MONATS-JAHRES-RENDITEN'!$L$10:$L$610,'MONATS-JAHRES-RENDITEN'!S$10:S$610) ->  | U74: =CORREL('MONATS-JAHRES-RENDITEN'!$L$10:$L$610,'MONATS-JAHRES-RENDITEN'!T$10:T$610) ->  | V74: =CORREL('MONATS-JAHRES-RENDITEN'!$L$10:$L$610,'MONATS-JAHRES-RENDITEN'!U$10:U$610) ->  | W74: =CORREL('MONATS-JAHRES-RENDITEN'!$L$10:$L$610,'MONATS-JAHRES-RENDITEN'!V$10:V$610) ->  | X74: =CORREL('MONATS-JAHRES-RENDITEN'!$L$10:$L$610,'MONATS-JAHRES-RENDITEN'!W$10:W$610) ->  | Y74: =CORREL('MONATS-JAHRES-RENDITEN'!$L$10:$L$610,'MONATS-JAHRES-RENDITEN'!X$10:X$610) ->  | Z74: =CORREL('MONATS-JAHRES-RENDITEN'!$L$10:$L$610,'MONATS-JAHRES-RENDITEN'!Y$10:Y$610) -> 
B75: 0 | D75: =CORREL('MONATS-JAHRES-RENDITEN'!$C$10:$C$610,'MONATS-JAHRES-RENDITEN'!M$10:M$610) ->  | E75: =CORREL('MONATS-JAHRES-RENDITEN'!$D$10:$D$610,'MONATS-JAHRES-RENDITEN'!M$10:M$610) ->  | F75: =CORREL('MONATS-JAHRES-RENDITEN'!$E$10:$E$610,'MONATS-JAHRES-RENDITEN'!M$10:M$610) ->  | G75: =CORREL('MONATS-JAHRES-RENDITEN'!$F$10:$F$610,'MONATS-JAHRES-RENDITEN'!M$10:M$610) ->  | H75: =CORREL('MONATS-JAHRES-RENDITEN'!$G$10:$G$610,'MONATS-JAHRES-RENDITEN'!M$10:M$610) ->  | I75: =CORREL('MONATS-JAHRES-RENDITEN'!$H$10:$H$610,'MONATS-JAHRES-RENDITEN'!M$10:M$610) ->  | J75: =CORREL('MONATS-JAHRES-RENDITEN'!$I$10:$I$610,'MONATS-JAHRES-RENDITEN'!M$10:M$610) ->  | K75: =CORREL('MONATS-JAHRES-RENDITEN'!$J$10:$J$610,'MONATS-JAHRES-RENDITEN'!M$10:M$610) ->  | L75: =CORREL('MONATS-JAHRES-RENDITEN'!$K$10:$K$610,'MONATS-JAHRES-RENDITEN'!M$10:M$610) ->  | M75: =CORREL('MONATS-JAHRES-RENDITEN'!$L$10:$L$610,'MONATS-JAHRES-RENDITEN'!M$10:M$610) ->  | N75: ='MONATS-JAHRES-RENDITEN'!$M$627*100 -> 0 | O75: =CORREL('MONATS-JAHRES-RENDITEN'!$M$10:$M$610,'MONATS-JAHRES-RENDITEN'!N$10:N$610) ->  | P75: =CORREL('MONATS-JAHRES-RENDITEN'!$M$10:$M$610,'MONATS-JAHRES-RENDITEN'!O$10:O$610) ->  | Q75: =CORREL('MONATS-JAHRES-RENDITEN'!$M$10:$M$610,'MONATS-JAHRES-RENDITEN'!P$10:P$610) ->  | R75: =CORREL('MONATS-JAHRES-RENDITEN'!$M$10:$M$610,'MONATS-JAHRES-RENDITEN'!Q$10:Q$610) ->  | S75: =CORREL('MONATS-JAHRES-RENDITEN'!$M$10:$M$610,'MONATS-JAHRES-RENDITEN'!R$10:R$610) ->  | T75: =CORREL('MONATS-JAHRES-RENDITEN'!$M$10:$M$610,'MONATS-JAHRES-RENDITEN'!S$10:S$610) ->  | U75: =CORREL('MONATS-JAHRES-RENDITEN'!$M$10:$M$610,'MONATS-JAHRES-RENDITEN'!T$10:T$610) ->  | V75: =CORREL('MONATS-JAHRES-RENDITEN'!$M$10:$M$610,'MONATS-JAHRES-RENDITEN'!U$10:U$610) ->  | W75: =CORREL('MONATS-JAHRES-RENDITEN'!$M$10:$M$610,'MONATS-JAHRES-RENDITEN'!V$10:V$610) ->  | X75: =CORREL('MONATS-JAHRES-RENDITEN'!$M$10:$M$610,'MONATS-JAHRES-RENDITEN'!W$10:W$610) ->  | Y75: =CORREL('MONATS-JAHRES-RENDITEN'!$M$10:$M$610,'MONATS-JAHRES-RENDITEN'!X$10:X$610) ->  | Z75: =CORREL('MONATS-JAHRES-RENDITEN'!$M$10:$M$610,'MONATS-JAHRES-RENDITEN'!Y$10:Y$610) -> 
B76: 0 | D76: =CORREL('MONATS-JAHRES-RENDITEN'!$C$10:$C$610,'MONATS-JAHRES-RENDITEN'!N$10:N$610) ->  | E76: =CORREL('MONATS-JAHRES-RENDITEN'!$D$10:$D$610,'MONATS-JAHRES-RENDITEN'!N$10:N$610) ->  | F76: =CORREL('MONATS-JAHRES-RENDITEN'!$E$10:$E$610,'MONATS-JAHRES-RENDITEN'!N$10:N$610) ->  | G76: =CORREL('MONATS-JAHRES-RENDITEN'!$F$10:$F$610,'MONATS-JAHRES-RENDITEN'!N$10:N$610) ->  | H76: =CORREL('MONATS-JAHRES-RENDITEN'!$G$10:$G$610,'MONATS-JAHRES-RENDITEN'!N$10:N$610) ->  | I76: =CORREL('MONATS-JAHRES-RENDITEN'!$H$10:$H$610,'MONATS-JAHRES-RENDITEN'!N$10:N$610) ->  | J76: =CORREL('MONATS-JAHRES-RENDITEN'!$I$10:$I$610,'MONATS-JAHRES-RENDITEN'!N$10:N$610) ->  | K76: =CORREL('MONATS-JAHRES-RENDITEN'!$J$10:$J$610,'MONATS-JAHRES-RENDITEN'!N$10:N$610) ->  | L76: =CORREL('MONATS-JAHRES-RENDITEN'!$K$10:$K$610,'MONATS-JAHRES-RENDITEN'!N$10:N$610) ->  | M76: =CORREL('MONATS-JAHRES-RENDITEN'!$L$10:$L$610,'MONATS-JAHRES-RENDITEN'!N$10:N$610) ->  | N76: =CORREL('MONATS-JAHRES-RENDITEN'!$M$10:$M$610,'MONATS-JAHRES-RENDITEN'!N$10:N$610) ->  | O76: ='MONATS-JAHRES-RENDITEN'!$N$627*100 -> 0 | P76: =CORREL('MONATS-JAHRES-RENDITEN'!$N$10:$N$610,'MONATS-JAHRES-RENDITEN'!O$10:O$610) ->  | Q76: =CORREL('MONATS-JAHRES-RENDITEN'!$N$10:$N$610,'MONATS-JAHRES-RENDITEN'!P$10:P$610) ->  | R76: =CORREL('MONATS-JAHRES-RENDITEN'!$N$10:$N$610,'MONATS-JAHRES-RENDITEN'!Q$10:Q$610) ->  | S76: =CORREL('MONATS-JAHRES-RENDITEN'!$N$10:$N$610,'MONATS-JAHRES-RENDITEN'!R$10:R$610) ->  | T76: =CORREL('MONATS-JAHRES-RENDITEN'!$N$10:$N$610,'MONATS-JAHRES-RENDITEN'!S$10:S$610) ->  | U76: =CORREL('MONATS-JAHRES-RENDITEN'!$N$10:$N$610,'MONATS-JAHRES-RENDITEN'!T$10:T$610) ->  | V76: =CORREL('MONATS-JAHRES-RENDITEN'!$N$10:$N$610,'MONATS-JAHRES-RENDITEN'!U$10:U$610) ->  | W76: =CORREL('MONATS-JAHRES-RENDITEN'!$N$10:$N$610,'MONATS-JAHRES-RENDITEN'!V$10:V$610) ->  | X76: =CORREL('MONATS-JAHRES-RENDITEN'!$N$10:$N$610,'MONATS-JAHRES-RENDITEN'!W$10:W$610) ->  | Y76: =CORREL('MONATS-JAHRES-RENDITEN'!$N$10:$N$610,'MONATS-JAHRES-RENDITEN'!X$10:X$610) ->  | Z76: =CORREL('MONATS-JAHRES-RENDITEN'!$N$10:$N$610,'MONATS-JAHRES-RENDITEN'!Y$10:Y$610) -> 
B77: 0 | D77: =CORREL('MONATS-JAHRES-RENDITEN'!$C$10:$C$610,'MONATS-JAHRES-RENDITEN'!O$10:O$610) ->  | E77: =CORREL('MONATS-JAHRES-RENDITEN'!$D$10:$D$610,'MONATS-JAHRES-RENDITEN'!O$10:O$610) ->  | F77: =CORREL('MONATS-JAHRES-RENDITEN'!$E$10:$E$610,'MONATS-JAHRES-RENDITEN'!O$10:O$610) ->  | G77: =CORREL('MONATS-JAHRES-RENDITEN'!$F$10:$F$610,'MONATS-JAHRES-RENDITEN'!O$10:O$610) ->  | H77: =CORREL('MONATS-JAHRES-RENDITEN'!$G$10:$G$610,'MONATS-JAHRES-RENDITEN'!O$10:O$610) ->  | I77: =CORREL('MONATS-JAHRES-RENDITEN'!$H$10:$H$610,'MONATS-JAHRES-RENDITEN'!O$10:O$610) ->  | J77: =CORREL('MONATS-JAHRES-RENDITEN'!$I$10:$I$610,'MONATS-JAHRES-RENDITEN'!O$10:O$610) ->  | K77: =CORREL('MONATS-JAHRES-RENDITEN'!$J$10:$J$610,'MONATS-JAHRES-RENDITEN'!O$10:O$610) ->  | L77: =CORREL('MONATS-JAHRES-RENDITEN'!$K$10:$K$610,'MONATS-JAHRES-RENDITEN'!O$10:O$610) ->  | M77: =CORREL('MONATS-JAHRES-RENDITEN'!$L$10:$L$610,'MONATS-JAHRES-RENDITEN'!O$10:O$610) ->  | N77: =CORREL('MONATS-JAHRES-RENDITEN'!$M$10:$M$610,'MONATS-JAHRES-RENDITEN'!O$10:O$610) ->  | O77: =CORREL('MONATS-JAHRES-RENDITEN'!$N$10:$N$610,'MONATS-JAHRES-RENDITEN'!O$10:O$610) ->  | P77: ='MONATS-JAHRES-RENDITEN'!$O$627*100 -> 0 | Q77: =CORREL('MONATS-JAHRES-RENDITEN'!$O$10:$O$610,'MONATS-JAHRES-RENDITEN'!P$10:P$610) ->  | R77: =CORREL('MONATS-JAHRES-RENDITEN'!$O$10:$O$610,'MONATS-JAHRES-RENDITEN'!Q$10:Q$610) ->  | S77: =CORREL('MONATS-JAHRES-RENDITEN'!$O$10:$O$610,'MONATS-JAHRES-RENDITEN'!R$10:R$610) ->  | T77: =CORREL('MONATS-JAHRES-RENDITEN'!$O$10:$O$610,'MONATS-JAHRES-RENDITEN'!S$10:S$610) ->  | U77: =CORREL('MONATS-JAHRES-RENDITEN'!$O$10:$O$610,'MONATS-JAHRES-RENDITEN'!T$10:T$610) ->  | V77: =CORREL('MONATS-JAHRES-RENDITEN'!$O$10:$O$610,'MONATS-JAHRES-RENDITEN'!U$10:U$610) ->  | W77: =CORREL('MONATS-JAHRES-RENDITEN'!$O$10:$O$610,'MONATS-JAHRES-RENDITEN'!V$10:V$610) ->  | X77: =CORREL('MONATS-JAHRES-RENDITEN'!$O$10:$O$610,'MONATS-JAHRES-RENDITEN'!W$10:W$610) ->  | Y77: =CORREL('MONATS-JAHRES-RENDITEN'!$O$10:$O$610,'MONATS-JAHRES-RENDITEN'!X$10:X$610) ->  | Z77: =CORREL('MONATS-JAHRES-RENDITEN'!$O$10:$O$610,'MONATS-JAHRES-RENDITEN'!Y$10:Y$610) -> 
B78: 0 | D78: =CORREL('MONATS-JAHRES-RENDITEN'!$C$10:$C$610,'MONATS-JAHRES-RENDITEN'!P$10:P$610) ->  | E78: =CORREL('MONATS-JAHRES-RENDITEN'!$D$10:$D$610,'MONATS-JAHRES-RENDITEN'!P$10:P$610) ->  | F78: =CORREL('MONATS-JAHRES-RENDITEN'!$E$10:$E$610,'MONATS-JAHRES-RENDITEN'!P$10:P$610) ->  | G78: =CORREL('MONATS-JAHRES-RENDITEN'!$F$10:$F$610,'MONATS-JAHRES-RENDITEN'!P$10:P$610) ->  | H78: =CORREL('MONATS-JAHRES-RENDITEN'!$G$10:$G$610,'MONATS-JAHRES-RENDITEN'!P$10:P$610) ->  | I78: =CORREL('MONATS-JAHRES-RENDITEN'!$H$10:$H$610,'MONATS-JAHRES-RENDITEN'!P$10:P$610) ->  | J78: =CORREL('MONATS-JAHRES-RENDITEN'!$I$10:$I$610,'MONATS-JAHRES-RENDITEN'!P$10:P$610) ->  | K78: =CORREL('MONATS-JAHRES-RENDITEN'!$J$10:$J$610,'MONATS-JAHRES-RENDITEN'!P$10:P$610) ->  | L78: =CORREL('MONATS-JAHRES-RENDITEN'!$K$10:$K$610,'MONATS-JAHRES-RENDITEN'!P$10:P$610) ->  | M78: =CORREL('MONATS-JAHRES-RENDITEN'!$L$10:$L$610,'MONATS-JAHRES-RENDITEN'!P$10:P$610) ->  | N78: =CORREL('MONATS-JAHRES-RENDITEN'!$M$10:$M$610,'MONATS-JAHRES-RENDITEN'!P$10:P$610) ->  | O78: =CORREL('MONATS-JAHRES-RENDITEN'!$N$10:$N$610,'MONATS-JAHRES-RENDITEN'!P$10:P$610) ->  | P78: =CORREL('MONATS-JAHRES-RENDITEN'!$O$10:$O$610,'MONATS-JAHRES-RENDITEN'!P$10:P$610) ->  | Q78: ='MONATS-JAHRES-RENDITEN'!$P$627*100 -> 0 | R78: =CORREL('MONATS-JAHRES-RENDITEN'!$P$10:$P$610,'MONATS-JAHRES-RENDITEN'!Q$10:Q$610) ->  | S78: =CORREL('MONATS-JAHRES-RENDITEN'!$P$10:$P$610,'MONATS-JAHRES-RENDITEN'!R$10:R$610) ->  | T78: =CORREL('MONATS-JAHRES-RENDITEN'!$P$10:$P$610,'MONATS-JAHRES-RENDITEN'!S$10:S$610) ->  | U78: =CORREL('MONATS-JAHRES-RENDITEN'!$P$10:$P$610,'MONATS-JAHRES-RENDITEN'!T$10:T$610) ->  | V78: =CORREL('MONATS-JAHRES-RENDITEN'!$P$10:$P$610,'MONATS-JAHRES-RENDITEN'!U$10:U$610) ->  | W78: =CORREL('MONATS-JAHRES-RENDITEN'!$P$10:$P$610,'MONATS-JAHRES-RENDITEN'!V$10:V$610) ->  | X78: =CORREL('MONATS-JAHRES-RENDITEN'!$P$10:$P$610,'MONATS-JAHRES-RENDITEN'!W$10:W$610) ->  | Y78: =CORREL('MONATS-JAHRES-RENDITEN'!$P$10:$P$610,'MONATS-JAHRES-RENDITEN'!X$10:X$610) ->  | Z78: =CORREL('MONATS-JAHRES-RENDITEN'!$P$10:$P$610,'MONATS-JAHRES-RENDITEN'!Y$10:Y$610) -> 
B79: 0 | D79: =CORREL('MONATS-JAHRES-RENDITEN'!$C$10:$C$610,'MONATS-JAHRES-RENDITEN'!Q$10:Q$610) ->  | E79: =CORREL('MONATS-JAHRES-RENDITEN'!$D$10:$D$610,'MONATS-JAHRES-RENDITEN'!Q$10:Q$610) ->  | F79: =CORREL('MONATS-JAHRES-RENDITEN'!$E$10:$E$610,'MONATS-JAHRES-RENDITEN'!Q$10:Q$610) ->  | G79: =CORREL('MONATS-JAHRES-RENDITEN'!$F$10:$F$610,'MONATS-JAHRES-RENDITEN'!Q$10:Q$610) ->  | H79: =CORREL('MONATS-JAHRES-RENDITEN'!$G$10:$G$610,'MONATS-JAHRES-RENDITEN'!Q$10:Q$610) ->  | I79: =CORREL('MONATS-JAHRES-RENDITEN'!$H$10:$H$610,'MONATS-JAHRES-RENDITEN'!Q$10:Q$610) ->  | J79: =CORREL('MONATS-JAHRES-RENDITEN'!$I$10:$I$610,'MONATS-JAHRES-RENDITEN'!Q$10:Q$610) ->  | K79: =CORREL('MONATS-JAHRES-RENDITEN'!$J$10:$J$610,'MONATS-JAHRES-RENDITEN'!Q$10:Q$610) ->  | L79: =CORREL('MONATS-JAHRES-RENDITEN'!$K$10:$K$610,'MONATS-JAHRES-RENDITEN'!Q$10:Q$610) ->  | M79: =CORREL('MONATS-JAHRES-RENDITEN'!$L$10:$L$610,'MONATS-JAHRES-RENDITEN'!Q$10:Q$610) ->  | N79: =CORREL('MONATS-JAHRES-RENDITEN'!$M$10:$M$610,'MONATS-JAHRES-RENDITEN'!Q$10:Q$610) ->  | O79: =CORREL('MONATS-JAHRES-RENDITEN'!$N$10:$N$610,'MONATS-JAHRES-RENDITEN'!Q$10:Q$610) ->  | P79: =CORREL('MONATS-JAHRES-RENDITEN'!$O$10:$O$610,'MONATS-JAHRES-RENDITEN'!Q$10:Q$610) ->  | Q79: =CORREL('MONATS-JAHRES-RENDITEN'!$P$10:$P$610,'MONATS-JAHRES-RENDITEN'!Q$10:Q$610) ->  | R79: ='MONATS-JAHRES-RENDITEN'!$Q$627*100 -> 0 | S79: =CORREL('MONATS-JAHRES-RENDITEN'!$Q$10:$Q$610,'MONATS-JAHRES-RENDITEN'!R$10:R$610) ->  | T79: =CORREL('MONATS-JAHRES-RENDITEN'!$Q$10:$Q$610,'MONATS-JAHRES-RENDITEN'!S$10:S$610) ->  | U79: =CORREL('MONATS-JAHRES-RENDITEN'!$Q$10:$Q$610,'MONATS-JAHRES-RENDITEN'!T$10:T$610) ->  | V79: =CORREL('MONATS-JAHRES-RENDITEN'!$Q$10:$Q$610,'MONATS-JAHRES-RENDITEN'!U$10:U$610) ->  | W79: =CORREL('MONATS-JAHRES-RENDITEN'!$Q$10:$Q$610,'MONATS-JAHRES-RENDITEN'!V$10:V$610) ->  | X79: =CORREL('MONATS-JAHRES-RENDITEN'!$Q$10:$Q$610,'MONATS-JAHRES-RENDITEN'!W$10:W$610) ->  | Y79: =CORREL('MONATS-JAHRES-RENDITEN'!$Q$10:$Q$610,'MONATS-JAHRES-RENDITEN'!X$10:X$610) ->  | Z79: =CORREL('MONATS-JAHRES-RENDITEN'!$Q$10:$Q$610,'MONATS-JAHRES-RENDITEN'!Y$10:Y$610) -> 
B80: 0 | D80: =CORREL('MONATS-JAHRES-RENDITEN'!$C$10:$C$610,'MONATS-JAHRES-RENDITEN'!R$10:R$610) ->  | E80: =CORREL('MONATS-JAHRES-RENDITEN'!$D$10:$D$610,'MONATS-JAHRES-RENDITEN'!R$10:R$610) ->  | F80: =CORREL('MONATS-JAHRES-RENDITEN'!$E$10:$E$610,'MONATS-JAHRES-RENDITEN'!R$10:R$610) ->  | G80: =CORREL('MONATS-JAHRES-RENDITEN'!$F$10:$F$610,'MONATS-JAHRES-RENDITEN'!R$10:R$610) ->  | H80: =CORREL('MONATS-JAHRES-RENDITEN'!$G$10:$G$610,'MONATS-JAHRES-RENDITEN'!R$10:R$610) ->  | I80: =CORREL('MONATS-JAHRES-RENDITEN'!$H$10:$H$610,'MONATS-JAHRES-RENDITEN'!R$10:R$610) ->  | J80: =CORREL('MONATS-JAHRES-RENDITEN'!$I$10:$I$610,'MONATS-JAHRES-RENDITEN'!R$10:R$610) ->  | K80: =CORREL('MONATS-JAHRES-RENDITEN'!$J$10:$J$610,'MONATS-JAHRES-RENDITEN'!R$10:R$610) ->  | L80: =CORREL('MONATS-JAHRES-RENDITEN'!$K$10:$K$610,'MONATS-JAHRES-RENDITEN'!R$10:R$610) ->  | M80: =CORREL('MONATS-JAHRES-RENDITEN'!$L$10:$L$610,'MONATS-JAHRES-RENDITEN'!R$10:R$610) ->  | N80: =CORREL('MONATS-JAHRES-RENDITEN'!$M$10:$M$610,'MONATS-JAHRES-RENDITEN'!R$10:R$610) ->  | O80: =CORREL('MONATS-JAHRES-RENDITEN'!$N$10:$N$610,'MONATS-JAHRES-RENDITEN'!R$10:R$610) ->  | P80: =CORREL('MONATS-JAHRES-RENDITEN'!$O$10:$O$610,'MONATS-JAHRES-RENDITEN'!R$10:R$610) ->  | Q80: =CORREL('MONATS-JAHRES-RENDITEN'!$P$10:$P$610,'MONATS-JAHRES-RENDITEN'!R$10:R$610) ->  | S80: ='MONATS-JAHRES-RENDITEN'!$R$627*100 -> 0 | T80: =CORREL('MONATS-JAHRES-RENDITEN'!$R$10:$R$610,'MONATS-JAHRES-RENDITEN'!S$10:S$610) ->  | U80: =CORREL('MONATS-JAHRES-RENDITEN'!$R$10:$R$610,'MONATS-JAHRES-RENDITEN'!T$10:T$610) ->  | V80: =CORREL('MONATS-JAHRES-RENDITEN'!$R$10:$R$610,'MONATS-JAHRES-RENDITEN'!U$10:U$610) ->  | W80: =CORREL('MONATS-JAHRES-RENDITEN'!$R$10:$R$610,'MONATS-JAHRES-RENDITEN'!V$10:V$610) ->  | X80: =CORREL('MONATS-JAHRES-RENDITEN'!$R$10:$R$610,'MONATS-JAHRES-RENDITEN'!W$10:W$610) ->  | Y80: =CORREL('MONATS-JAHRES-RENDITEN'!$R$10:$R$610,'MONATS-JAHRES-RENDITEN'!X$10:X$610) ->  | Z80: =CORREL('MONATS-JAHRES-RENDITEN'!$R$10:$R$610,'MONATS-JAHRES-RENDITEN'!Y$10:Y$610) -> 
B81: 0 | D81: =CORREL('MONATS-JAHRES-RENDITEN'!$C$10:$C$610,'MONATS-JAHRES-RENDITEN'!S$10:S$610) ->  | E81: =CORREL('MONATS-JAHRES-RENDITEN'!$D$10:$D$610,'MONATS-JAHRES-RENDITEN'!S$10:S$610) ->  | F81: =CORREL('MONATS-JAHRES-RENDITEN'!$E$10:$E$610,'MONATS-JAHRES-RENDITEN'!S$10:S$610) ->  | G81: =CORREL('MONATS-JAHRES-RENDITEN'!$F$10:$F$610,'MONATS-JAHRES-RENDITEN'!S$10:S$610) ->  | H81: =CORREL('MONATS-JAHRES-RENDITEN'!$G$10:$G$610,'MONATS-JAHRES-RENDITEN'!S$10:S$610) ->  | I81: =CORREL('MONATS-JAHRES-RENDITEN'!$H$10:$H$610,'MONATS-JAHRES-RENDITEN'!S$10:S$610) ->  | J81: =CORREL('MONATS-JAHRES-RENDITEN'!$I$10:$I$610,'MONATS-JAHRES-RENDITEN'!S$10:S$610) ->  | K81: =CORREL('MONATS-JAHRES-RENDITEN'!$J$10:$J$610,'MONATS-JAHRES-RENDITEN'!S$10:S$610) ->  | L81: =CORREL('MONATS-JAHRES-RENDITEN'!$K$10:$K$610,'MONATS-JAHRES-RENDITEN'!S$10:S$610) ->  | M81: =CORREL('MONATS-JAHRES-RENDITEN'!$L$10:$L$610,'MONATS-JAHRES-RENDITEN'!S$10:S$610) ->  | N81: =CORREL('MONATS-JAHRES-RENDITEN'!$M$10:$M$610,'MONATS-JAHRES-RENDITEN'!S$10:S$610) ->  | O81: =CORREL('MONATS-JAHRES-RENDITEN'!$N$10:$N$610,'MONATS-JAHRES-RENDITEN'!S$10:S$610) ->  | P81: =CORREL('MONATS-JAHRES-RENDITEN'!$O$10:$O$610,'MONATS-JAHRES-RENDITEN'!S$10:S$610) ->  | Q81: =CORREL('MONATS-JAHRES-RENDITEN'!$P$10:$P$610,'MONATS-JAHRES-RENDITEN'!S$10:S$610) ->  | S81: =CORREL('MONATS-JAHRES-RENDITEN'!$R$10:$R$610,'MONATS-JAHRES-RENDITEN'!S$10:S$610) ->  | T81: ='MONATS-JAHRES-RENDITEN'!$S$627*100 -> 0 | U81: =CORREL('MONATS-JAHRES-RENDITEN'!$S$10:$S$610,'MONATS-JAHRES-RENDITEN'!T$10:T$610) ->  | V81: =CORREL('MONATS-JAHRES-RENDITEN'!$S$10:$S$610,'MONATS-JAHRES-RENDITEN'!U$10:U$610) ->  | W81: =CORREL('MONATS-JAHRES-RENDITEN'!$S$10:$S$610,'MONATS-JAHRES-RENDITEN'!V$10:V$610) ->  | X81: =CORREL('MONATS-JAHRES-RENDITEN'!$S$10:$S$610,'MONATS-JAHRES-RENDITEN'!W$10:W$610) ->  | Y81: =CORREL('MONATS-JAHRES-RENDITEN'!$S$10:$S$610,'MONATS-JAHRES-RENDITEN'!X$10:X$610) ->  | Z81: =CORREL('MONATS-JAHRES-RENDITEN'!$S$10:$S$610,'MONATS-JAHRES-RENDITEN'!Y$10:Y$610) -> 
B82: 0 | D82: =CORREL('MONATS-JAHRES-RENDITEN'!$C$10:$C$610,'MONATS-JAHRES-RENDITEN'!T$10:T$610) ->  | E82: =CORREL('MONATS-JAHRES-RENDITEN'!$D$10:$D$610,'MONATS-JAHRES-RENDITEN'!T$10:T$610) ->  | F82: =CORREL('MONATS-JAHRES-RENDITEN'!$E$10:$E$610,'MONATS-JAHRES-RENDITEN'!T$10:T$610) ->  | G82: =CORREL('MONATS-JAHRES-RENDITEN'!$F$10:$F$610,'MONATS-JAHRES-RENDITEN'!T$10:T$610) ->  | H82: =CORREL('MONATS-JAHRES-RENDITEN'!$G$10:$G$610,'MONATS-JAHRES-RENDITEN'!T$10:T$610) ->  | I82: =CORREL('MONATS-JAHRES-RENDITEN'!$H$10:$H$610,'MONATS-JAHRES-RENDITEN'!T$10:T$610) ->  | J82: =CORREL('MONATS-JAHRES-RENDITEN'!$I$10:$I$610,'MONATS-JAHRES-RENDITEN'!T$10:T$610) ->  | K82: =CORREL('MONATS-JAHRES-RENDITEN'!$J$10:$J$610,'MONATS-JAHRES-RENDITEN'!T$10:T$610) ->  | L82: =CORREL('MONATS-JAHRES-RENDITEN'!$K$10:$K$610,'MONATS-JAHRES-RENDITEN'!T$10:T$610) ->  | M82: =CORREL('MONATS-JAHRES-RENDITEN'!$L$10:$L$610,'MONATS-JAHRES-RENDITEN'!T$10:T$610) ->  | N82: =CORREL('MONATS-JAHRES-RENDITEN'!$M$10:$M$610,'MONATS-JAHRES-RENDITEN'!T$10:T$610) ->  | O82: =CORREL('MONATS-JAHRES-RENDITEN'!$N$10:$N$610,'MONATS-JAHRES-RENDITEN'!T$10:T$610) ->  | P82: =CORREL('MONATS-JAHRES-RENDITEN'!$O$10:$O$610,'MONATS-JAHRES-RENDITEN'!T$10:T$610) ->  | Q82: =CORREL('MONATS-JAHRES-RENDITEN'!$P$10:$P$610,'MONATS-JAHRES-RENDITEN'!T$10:T$610) ->  | S82: =CORREL('MONATS-JAHRES-RENDITEN'!$R$10:$R$610,'MONATS-JAHRES-RENDITEN'!T$10:T$610) ->  | U82: ='MONATS-JAHRES-RENDITEN'!$T$627*100 -> 0 | V82: =CORREL('MONATS-JAHRES-RENDITEN'!$T$10:$T$610,'MONATS-JAHRES-RENDITEN'!U$10:U$610) ->  | W82: =CORREL('MONATS-JAHRES-RENDITEN'!$T$10:$T$610,'MONATS-JAHRES-RENDITEN'!V$10:V$610) ->  | X82: =CORREL('MONATS-JAHRES-RENDITEN'!$T$10:$T$610,'MONATS-JAHRES-RENDITEN'!W$10:W$610) ->  | Y82: =CORREL('MONATS-JAHRES-RENDITEN'!$T$10:$T$610,'MONATS-JAHRES-RENDITEN'!X$10:X$610) ->  | Z82: =CORREL('MONATS-JAHRES-RENDITEN'!$T$10:$T$610,'MONATS-JAHRES-RENDITEN'!Y$10:Y$610) -> 
B83: 0 | D83: =CORREL('MONATS-JAHRES-RENDITEN'!$C$10:$C$610,'MONATS-JAHRES-RENDITEN'!U$10:U$610) ->  | E83: =CORREL('MONATS-JAHRES-RENDITEN'!$D$10:$D$610,'MONATS-JAHRES-RENDITEN'!U$10:U$610) ->  | F83: =CORREL('MONATS-JAHRES-RENDITEN'!$E$10:$E$610,'MONATS-JAHRES-RENDITEN'!U$10:U$610) ->  | G83: =CORREL('MONATS-JAHRES-RENDITEN'!$F$10:$F$610,'MONATS-JAHRES-RENDITEN'!U$10:U$610) ->  | H83: =CORREL('MONATS-JAHRES-RENDITEN'!$G$10:$G$610,'MONATS-JAHRES-RENDITEN'!U$10:U$610) ->  | I83: =CORREL('MONATS-JAHRES-RENDITEN'!$H$10:$H$610,'MONATS-JAHRES-RENDITEN'!U$10:U$610) ->  | J83: =CORREL('MONATS-JAHRES-RENDITEN'!$I$10:$I$610,'MONATS-JAHRES-RENDITEN'!U$10:U$610) ->  | K83: =CORREL('MONATS-JAHRES-RENDITEN'!$J$10:$J$610,'MONATS-JAHRES-RENDITEN'!U$10:U$610) ->  | L83: =CORREL('MONATS-JAHRES-RENDITEN'!$K$10:$K$610,'MONATS-JAHRES-RENDITEN'!U$10:U$610) ->  | M83: =CORREL('MONATS-JAHRES-RENDITEN'!$L$10:$L$610,'MONATS-JAHRES-RENDITEN'!U$10:U$610) ->  | N83: =CORREL('MONATS-JAHRES-RENDITEN'!$M$10:$M$610,'MONATS-JAHRES-RENDITEN'!U$10:U$610) ->  | O83: =CORREL('MONATS-JAHRES-RENDITEN'!$N$10:$N$610,'MONATS-JAHRES-RENDITEN'!U$10:U$610) ->  | P83: =CORREL('MONATS-JAHRES-RENDITEN'!$O$10:$O$610,'MONATS-JAHRES-RENDITEN'!U$10:U$610) ->  | Q83: =CORREL('MONATS-JAHRES-RENDITEN'!$P$10:$P$610,'MONATS-JAHRES-RENDITEN'!U$10:U$610) ->  | S83: =CORREL('MONATS-JAHRES-RENDITEN'!$R$10:$R$610,'MONATS-JAHRES-RENDITEN'!U$10:U$610) ->  | U83: =CORREL('MONATS-JAHRES-RENDITEN'!$T$10:$T$610,'MONATS-JAHRES-RENDITEN'!U$10:U$610) ->  | V83: ='MONATS-JAHRES-RENDITEN'!$U$627*100 -> 0 | W83: =CORREL('MONATS-JAHRES-RENDITEN'!$U$10:$U$610,'MONATS-JAHRES-RENDITEN'!V$10:V$610) ->  | X83: =CORREL('MONATS-JAHRES-RENDITEN'!$U$10:$U$610,'MONATS-JAHRES-RENDITEN'!W$10:W$610) ->  | Y83: =CORREL('MONATS-JAHRES-RENDITEN'!$U$10:$U$610,'MONATS-JAHRES-RENDITEN'!X$10:X$610) ->  | Z83: =CORREL('MONATS-JAHRES-RENDITEN'!$U$10:$U$610,'MONATS-JAHRES-RENDITEN'!Y$10:Y$610) -> 
B84: 0 | D84: =CORREL('MONATS-JAHRES-RENDITEN'!$C$10:$C$610,'MONATS-JAHRES-RENDITEN'!V$10:V$610) ->  | E84: =CORREL('MONATS-JAHRES-RENDITEN'!$D$10:$D$610,'MONATS-JAHRES-RENDITEN'!V$10:V$610) ->  | F84: =CORREL('MONATS-JAHRES-RENDITEN'!$E$10:$E$610,'MONATS-JAHRES-RENDITEN'!V$10:V$610) ->  | G84: =CORREL('MONATS-JAHRES-RENDITEN'!$F$10:$F$610,'MONATS-JAHRES-RENDITEN'!V$10:V$610) ->  | H84: =CORREL('MONATS-JAHRES-RENDITEN'!$G$10:$G$610,'MONATS-JAHRES-RENDITEN'!V$10:V$610) ->  | I84: =CORREL('MONATS-JAHRES-RENDITEN'!$H$10:$H$610,'MONATS-JAHRES-RENDITEN'!V$10:V$610) ->  | J84: =CORREL('MONATS-JAHRES-RENDITEN'!$I$10:$I$610,'MONATS-JAHRES-RENDITEN'!V$10:V$610) ->  | K84: =CORREL('MONATS-JAHRES-RENDITEN'!$J$10:$J$610,'MONATS-JAHRES-RENDITEN'!V$10:V$610) ->  | L84: =CORREL('MONATS-JAHRES-RENDITEN'!$K$10:$K$610,'MONATS-JAHRES-RENDITEN'!V$10:V$610) ->  | M84: =CORREL('MONATS-JAHRES-RENDITEN'!$L$10:$L$610,'MONATS-JAHRES-RENDITEN'!V$10:V$610) ->  | N84: =CORREL('MONATS-JAHRES-RENDITEN'!$M$10:$M$610,'MONATS-JAHRES-RENDITEN'!V$10:V$610) ->  | O84: =CORREL('MONATS-JAHRES-RENDITEN'!$N$10:$N$610,'MONATS-JAHRES-RENDITEN'!V$10:V$610) ->  | P84: =CORREL('MONATS-JAHRES-RENDITEN'!$O$10:$O$610,'MONATS-JAHRES-RENDITEN'!V$10:V$610) ->  | Q84: =CORREL('MONATS-JAHRES-RENDITEN'!$P$10:$P$610,'MONATS-JAHRES-RENDITEN'!V$10:V$610) ->  | S84: =CORREL('MONATS-JAHRES-RENDITEN'!$R$10:$R$610,'MONATS-JAHRES-RENDITEN'!V$10:V$610) ->  | U84: =CORREL('MONATS-JAHRES-RENDITEN'!$T$10:$T$610,'MONATS-JAHRES-RENDITEN'!V$10:V$610) ->  | V84: =CORREL('MONATS-JAHRES-RENDITEN'!$U$10:$U$610,'MONATS-JAHRES-RENDITEN'!V$10:V$610) ->  | W84: ='MONATS-JAHRES-RENDITEN'!$V$627*100 -> 0 | X84: =CORREL('MONATS-JAHRES-RENDITEN'!$V$10:$V$610,'MONATS-JAHRES-RENDITEN'!W$10:W$610) ->  | Y84: =CORREL('MONATS-JAHRES-RENDITEN'!$V$10:$V$610,'MONATS-JAHRES-RENDITEN'!X$10:X$610) ->  | Z84: =CORREL('MONATS-JAHRES-RENDITEN'!$V$10:$V$610,'MONATS-JAHRES-RENDITEN'!Y$10:Y$610) -> 
B85: 0 | D85: =CORREL('MONATS-JAHRES-RENDITEN'!$C$10:$C$610,'MONATS-JAHRES-RENDITEN'!W$10:W$610) ->  | E85: =CORREL('MONATS-JAHRES-RENDITEN'!$D$10:$D$610,'MONATS-JAHRES-RENDITEN'!W$10:W$610) ->  | F85: =CORREL('MONATS-JAHRES-RENDITEN'!$E$10:$E$610,'MONATS-JAHRES-RENDITEN'!W$10:W$610) ->  | G85: =CORREL('MONATS-JAHRES-RENDITEN'!$F$10:$F$610,'MONATS-JAHRES-RENDITEN'!W$10:W$610) ->  | H85: =CORREL('MONATS-JAHRES-RENDITEN'!$G$10:$G$610,'MONATS-JAHRES-RENDITEN'!W$10:W$610) ->  | I85: =CORREL('MONATS-JAHRES-RENDITEN'!$H$10:$H$610,'MONATS-JAHRES-RENDITEN'!W$10:W$610) ->  | J85: =CORREL('MONATS-JAHRES-RENDITEN'!$I$10:$I$610,'MONATS-JAHRES-RENDITEN'!W$10:W$610) ->  | K85: =CORREL('MONATS-JAHRES-RENDITEN'!$J$10:$J$610,'MONATS-JAHRES-RENDITEN'!W$10:W$610) ->  | L85: =CORREL('MONATS-JAHRES-RENDITEN'!$K$10:$K$610,'MONATS-JAHRES-RENDITEN'!W$10:W$610) ->  | M85: =CORREL('MONATS-JAHRES-RENDITEN'!$L$10:$L$610,'MONATS-JAHRES-RENDITEN'!W$10:W$610) ->  | N85: =CORREL('MONATS-JAHRES-RENDITEN'!$M$10:$M$610,'MONATS-JAHRES-RENDITEN'!W$10:W$610) ->  | O85: =CORREL('MONATS-JAHRES-RENDITEN'!$N$10:$N$610,'MONATS-JAHRES-RENDITEN'!W$10:W$610) ->  | P85: =CORREL('MONATS-JAHRES-RENDITEN'!$O$10:$O$610,'MONATS-JAHRES-RENDITEN'!W$10:W$610) ->  | Q85: =CORREL('MONATS-JAHRES-RENDITEN'!$P$10:$P$610,'MONATS-JAHRES-RENDITEN'!W$10:W$610) ->  | S85: =CORREL('MONATS-JAHRES-RENDITEN'!$R$10:$R$610,'MONATS-JAHRES-RENDITEN'!W$10:W$610) ->  | U85: =CORREL('MONATS-JAHRES-RENDITEN'!$T$10:$T$610,'MONATS-JAHRES-RENDITEN'!W$10:W$610) ->  | V85: =CORREL('MONATS-JAHRES-RENDITEN'!$U$10:$U$610,'MONATS-JAHRES-RENDITEN'!W$10:W$610) ->  | W85: =CORREL('MONATS-JAHRES-RENDITEN'!$V$10:$V$610,'MONATS-JAHRES-RENDITEN'!W$10:W$610) ->  | X85: ='MONATS-JAHRES-RENDITEN'!$W$627*100 -> 0 | Y85: =CORREL('MONATS-JAHRES-RENDITEN'!$W$10:$W$610,'MONATS-JAHRES-RENDITEN'!X$10:X$610) ->  | Z85: =CORREL('MONATS-JAHRES-RENDITEN'!$W$10:$W$610,'MONATS-JAHRES-RENDITEN'!Y$10:Y$610) -> 
B86: 0 | D86: =CORREL('MONATS-JAHRES-RENDITEN'!$C$10:$C$610,'MONATS-JAHRES-RENDITEN'!X$10:X$610) ->  | E86: =CORREL('MONATS-JAHRES-RENDITEN'!$D$10:$D$610,'MONATS-JAHRES-RENDITEN'!X$10:X$610) ->  | F86: =CORREL('MONATS-JAHRES-RENDITEN'!$E$10:$E$610,'MONATS-JAHRES-RENDITEN'!X$10:X$610) ->  | G86: =CORREL('MONATS-JAHRES-RENDITEN'!$F$10:$F$610,'MONATS-JAHRES-RENDITEN'!X$10:X$610) ->  | H86: =CORREL('MONATS-JAHRES-RENDITEN'!$G$10:$G$610,'MONATS-JAHRES-RENDITEN'!X$10:X$610) ->  | I86: =CORREL('MONATS-JAHRES-RENDITEN'!$H$10:$H$610,'MONATS-JAHRES-RENDITEN'!X$10:X$610) ->  | J86: =CORREL('MONATS-JAHRES-RENDITEN'!$I$10:$I$610,'MONATS-JAHRES-RENDITEN'!X$10:X$610) ->  | K86: =CORREL('MONATS-JAHRES-RENDITEN'!$J$10:$J$610,'MONATS-JAHRES-RENDITEN'!X$10:X$610) ->  | L86: =CORREL('MONATS-JAHRES-RENDITEN'!$K$10:$K$610,'MONATS-JAHRES-RENDITEN'!X$10:X$610) ->  | M86: =CORREL('MONATS-JAHRES-RENDITEN'!$L$10:$L$610,'MONATS-JAHRES-RENDITEN'!X$10:X$610) ->  | N86: =CORREL('MONATS-JAHRES-RENDITEN'!$M$10:$M$610,'MONATS-JAHRES-RENDITEN'!X$10:X$610) ->  | O86: =CORREL('MONATS-JAHRES-RENDITEN'!$N$10:$N$610,'MONATS-JAHRES-RENDITEN'!X$10:X$610) ->  | P86: =CORREL('MONATS-JAHRES-RENDITEN'!$O$10:$O$610,'MONATS-JAHRES-RENDITEN'!X$10:X$610) ->  | Q86: =CORREL('MONATS-JAHRES-RENDITEN'!$P$10:$P$610,'MONATS-JAHRES-RENDITEN'!X$10:X$610) ->  | S86: =CORREL('MONATS-JAHRES-RENDITEN'!$R$10:$R$610,'MONATS-JAHRES-RENDITEN'!X$10:X$610) ->  | U86: =CORREL('MONATS-JAHRES-RENDITEN'!$T$10:$T$610,'MONATS-JAHRES-RENDITEN'!X$10:X$610) ->  | V86: =CORREL('MONATS-JAHRES-RENDITEN'!$U$10:$U$610,'MONATS-JAHRES-RENDITEN'!X$10:X$610) ->  | W86: =CORREL('MONATS-JAHRES-RENDITEN'!$V$10:$V$610,'MONATS-JAHRES-RENDITEN'!X$10:X$610) ->  | Y86: ='MONATS-JAHRES-RENDITEN'!$X$627*100 -> 0 | Z86: =CORREL('MONATS-JAHRES-RENDITEN'!$X$10:$X$610,'MONATS-JAHRES-RENDITEN'!Y$10:Y$610) -> 
B87: 0 | D87: =CORREL('MONATS-JAHRES-RENDITEN'!$C$10:$C$610,'MONATS-JAHRES-RENDITEN'!Y$10:Y$610) ->  | E87: =CORREL('MONATS-JAHRES-RENDITEN'!$D$10:$D$610,'MONATS-JAHRES-RENDITEN'!Y$10:Y$610) ->  | F87: =CORREL('MONATS-JAHRES-RENDITEN'!$E$10:$E$610,'MONATS-JAHRES-RENDITEN'!Y$10:Y$610) ->  | G87: =CORREL('MONATS-JAHRES-RENDITEN'!$F$10:$F$610,'MONATS-JAHRES-RENDITEN'!Y$10:Y$610) ->  | H87: =CORREL('MONATS-JAHRES-RENDITEN'!$G$10:$G$610,'MONATS-JAHRES-RENDITEN'!Y$10:Y$610) ->  | I87: =CORREL('MONATS-JAHRES-RENDITEN'!$H$10:$H$610,'MONATS-JAHRES-RENDITEN'!Y$10:Y$610) ->  | J87: =CORREL('MONATS-JAHRES-RENDITEN'!$I$10:$I$610,'MONATS-JAHRES-RENDITEN'!Y$10:Y$610) ->  | K87: =CORREL('MONATS-JAHRES-RENDITEN'!$J$10:$J$610,'MONATS-JAHRES-RENDITEN'!Y$10:Y$610) ->  | L87: =CORREL('MONATS-JAHRES-RENDITEN'!$K$10:$K$610,'MONATS-JAHRES-RENDITEN'!Y$10:Y$610) ->  | M87: =CORREL('MONATS-JAHRES-RENDITEN'!$L$10:$L$610,'MONATS-JAHRES-RENDITEN'!Y$10:Y$610) ->  | N87: =CORREL('MONATS-JAHRES-RENDITEN'!$M$10:$M$610,'MONATS-JAHRES-RENDITEN'!Y$10:Y$610) ->  | O87: =CORREL('MONATS-JAHRES-RENDITEN'!$N$10:$N$610,'MONATS-JAHRES-RENDITEN'!Y$10:Y$610) ->  | P87: =CORREL('MONATS-JAHRES-RENDITEN'!$O$10:$O$610,'MONATS-JAHRES-RENDITEN'!Y$10:Y$610) ->  | Q87: =CORREL('MONATS-JAHRES-RENDITEN'!$P$10:$P$610,'MONATS-JAHRES-RENDITEN'!Y$10:Y$610) ->  | S87: =CORREL('MONATS-JAHRES-RENDITEN'!$R$10:$R$610,'MONATS-JAHRES-RENDITEN'!Y$10:Y$610) ->  | U87: =CORREL('MONATS-JAHRES-RENDITEN'!$T$10:$T$610,'MONATS-JAHRES-RENDITEN'!Y$10:Y$610) ->  | V87: =CORREL('MONATS-JAHRES-RENDITEN'!$U$10:$U$610,'MONATS-JAHRES-RENDITEN'!Y$10:Y$610) ->  | W87: =CORREL('MONATS-JAHRES-RENDITEN'!$V$10:$V$610,'MONATS-JAHRES-RENDITEN'!Y$10:Y$610) ->  | Y87: =CORREL('MONATS-JAHRES-RENDITEN'!$X$10:$X$610,'MONATS-JAHRES-RENDITEN'!X$10:X$610) ->  | Z87: ='MONATS-JAHRES-RENDITEN'!$Y$627*100 -> 0

Sheet RECHNEN
B4: Ergebniszellen | U4: Effizienzlinie und effiziente Portfolios
B5: Eingabezellen | Q5: Hilfswert
B6: Ergebnis-/Eingabezellen | Q6: für risiko- | S6: Effizienzlinie | AR6: Effizienzlinie B
Q7: minimales | S7: stetige | T7: diskret | AR7: stetige | AS7: stetig
Q8: Portefeuille | R8: Schritte | S8: Volatilität % | T8: Rendite % | U8: ='MONATS-JAHRES-RENDITEN'!C8 -> CHF-GM | V8: ='MONATS-JAHRES-RENDITEN'!D8 -> CHF-B | W8: ='MONATS-JAHRES-RENDITEN'!E8 -> FW-B | X8: ='MONATS-JAHRES-RENDITEN'!F8 -> CH-A | Y8: ='MONATS-JAHRES-RENDITEN'!G8 -> W-A | Z8: ='MONATS-JAHRES-RENDITEN'!H8 -> CH-IF | AA8: ='MONATS-JAHRES-RENDITEN'!I8 -> RS | AB8: ='MONATS-JAHRES-RENDITEN'!J8 -> HF | AC8: ='MONATS-JAHRES-RENDITEN'!K8 -> 0 | AD8: ='MONATS-JAHRES-RENDITEN'!L8 -> 0 | AE8: ='MONATS-JAHRES-RENDITEN'!M8 -> 0 | AF8: ='MONATS-JAHRES-RENDITEN'!N8 -> 0 | AG8: ='MONATS-JAHRES-RENDITEN'!O8 -> 0 | AH8: ='MONATS-JAHRES-RENDITEN'!P8 -> 0 | AI8: ='MONATS-JAHRES-RENDITEN'!Q8 -> 0 | AJ8: ='MONATS-JAHRES-RENDITEN'!R8 -> 0 | AK8: ='MONATS-JAHRES-RENDITEN'!S8 -> 0 | AL8: ='MONATS-JAHRES-RENDITEN'!T8 -> 0 | AM8: ='MONATS-JAHRES-RENDITEN'!U8 -> 0 | AN8: ='MONATS-JAHRES-RENDITEN'!V8 -> 0 | AO8: ='MONATS-JAHRES-RENDITEN'!W8 -> 0 | AP8: ='MONATS-JAHRES-RENDITEN'!X8 -> 0 | AQ8: ='MONATS-JAHRES-RENDITEN'!Y8 -> 0 | AR8: Volatilität % | AS8: Rendite % | AX8: =S8 -> Volatilität % | AY8: Rendite % | AZ8: CHF-GM | BA8: =V8 -> CHF-B | BB8: =W8 -> FW-B | BC8: =X8 -> CH-A | BD8: =Y8 -> W-A | BE8: =Z8 -> CH-IF | BF8: =AA8 -> RS | BG8: =AB8 -> HF | BH8: total
O9: 0.2631578947 | R9: 1 | S9: 14.61627818 | T9: 8.35833363 | U9: 0 | V9: 0 | W9: 0 | X9: 100 | Y9: 0 | Z9: 0 | AA9: 0 | AB9: 0 | AC9: 0 | AD9: 0 | AE9: 0 | AF9: 0 | AG9: 0 | AH9: 0 | AI9: 0 | AJ9: 0 | AK9: 0 | AL9: 0 | AM9: 0 | AN9: 0 | AO9: 0 | AP9: 0 | AQ9: 0 | AR9: =S9 -> 14.61627818 | AS9: =(LN(1+(T9/100)))*100 -> 8.027345302 | AW9: A | AX9: 14.61627818 | AY9: =T9 -> 8.35833363 | AZ9: =U9 -> 0 | BA9: 0 | BB9: 0 | BC9: 100 | BD9: 0 | BE9: 0 | BF9: 0 | BG9: 0 | BH9: =SUM(AZ9:BG9) -> 100
B10: von MONATS-RENDITEN | Q10: =S9-S10 -> 0.04399818297 | R10: 2 | S10: 14.57227999 | T10: 8.3504609 | U10: 0 | V10: 0 | W10: 0 | X10: 99.65607796 | Y10: 0 | Z10: 0.3439220374 | AA10: 0 | AB10: 0 | AC10: 0 | AD10: 0 | AE10: 0 | AF10: 0 | AG10: 0 | AH10: 0 | AI10: 0 | AJ10: 0 | AK10: 0 | AL10: 0 | AM10: 0 | AN10: 0 | AO10: 0 | AP10: 0 | AQ10: 0 | AR10: =S10 -> 14.57227999 | AS10: =(LN(1+(T10/100)))*100 -> 8.020079579 | AW10: B | AX10: =S58 -> 12.50962188 | AY10: =T58 -> 7.97208327 | AZ10: 0 | BA10: 0 | BB10: 0 | BC10: 83.1265647 | BD10: 0 | BE10: 16.8734353 | BF10: 0 | BG10: 0 | BH10: 100
B11: Historische | C11: Historische | E11: ISIN | F11: Assets | H11: Erwartete | I11: PF-Anteile | K11: PF-Anteile | L11: PF-Anteile | M11: BM-Anteile | N11: Kennzahlen | Q11: =S10-S11 -> 0.04412677815 | R11: 3 | S11: 14.52815321 | T11: 8.342558343 | U11: 0 | V11: 0 | W11: 0 | X11: 99.31085295 | Y11: 0 | Z11: 0.6891470467 | AA11: 0 | AB11: 0 | AC11: 0 | AD11: 0 | AE11: 0 | AF11: 0 | AG11: 0 | AH11: 0 | AI11: 0 | AJ11: 0 | AK11: 0 | AL11: 0 | AM11: 0 | AN11: 0 | AO11: 0 | AP11: 0 | AQ11: 0 | AR11: 14.52815321 | AS11: 8.012785798 | AW11: C | AX11: =S122 -> 9.993832798 | AY11: =T122 -> 7.467583035 | AZ11: 0 | BA11: 0 | BB11: 0 | BC11: 61.08735656 | BD11: 0 | BE11: 38.91264344 | BF11: 0 | BG11: 0 | BH11: 100
B12: Rendite | C12: Volatilität | H12: Rendite | I12: im Test | K12: maximal | L12: minimal | M12: pro memoria | N12: Vorgabe-Rendite | Q12: 0.04397730926 | R12: 4 | S12: 14.48417591 | T12: 8.334675682 | U12: 0 | V12: 0 | W12: 0 | X12: 98.96649713 | Y12: 0 | Z12: 1.033502874 | AA12: 0 | AB12: 0 | AC12: 0 | AD12: 0 | AE12: 0 | AF12: 0 | AG12: 0 | AH12: 0 | AI12: 0 | AJ12: 0 | AK12: 0 | AL12: 0 | AM12: 0 | AN12: 0 | AO12: 0 | AP12: 0 | AQ12: 0 | AR12: 14.48417591 | AS12: 8.005509851 | AW12: D | AX12: =S205 -> 7.50099907 | AY12: =T205 -> 6.813322223 | AZ12: 0 | BA12: 0 | BB12: 0 | BC12: 34.36245165 | BD12: 0 | BE12: 58.78380123 | BF12: 0 | BG12: 6.853747117 | BH12: 100
B13: diskret/Jahr | Q13: 0.04393863703 | R13: 5 | S13: 14.44023727 | T13: 8.326793022 | U13: 0 | V13: 0 | W13: 0 | X13: 98.6221413 | Y13: 0 | Z13: 1.377858697 | AA13: 0 | AB13: 0 | AC13: 0 | AD13: 0 | AE13: 0 | AF13: 0 | AG13: 0 | AH13: 0 | AI13: 0 | AJ13: 0 | AK13: 0 | AL13: 0 | AM13: 0 | AN13: 0 | AO13: 0 | AP13: 0 | AQ13: 0 | AR13: 14.44023727 | AS13: 7.998233375 | AW13: E | AX13: =S337 -> 5.004984251 | AY13: =T337 -> 5.772811064 | AZ13: 0 | BA13: 16.55594036 | BB13: 0 | BC13: 12.77937182 | BD13: 0 | BE13: 42.93048549 | BF13: 0 | BG13: 27.73420233 | BH13: 100
A14: =F14 -> CHF-GM | B14: ='MONATS-JAHRES-RENDITEN'!C625 -> 0.008368516289 | C14: ='MONATS-JAHRES-RENDITEN'!C627 -> 0.003809326172 | E14: =TRANSPOSE('MONATS-JAHRES-RENDITEN'!C7:Y7) -> 0 | F14: =TRANSPOSE('MONATS-JAHRES-RENDITEN'!C8:Y8) -> CHF-GM | H14: =B14 -> 0.008368516289 | I14: 0.05 | K14: 1 | L14: 0 | M14: 0.05 | N14: =MMULT(TRANSPOSE(I14:I36),MMULT(KORRELATIONEN!D7:Z29,RECHNEN!I14:I36)) -> 0.003311774236 | O14: Varianz | Q14: 0.04384413247 | R14: 6 | S14: 14.39639314 | T14: 8.318920328 | U14: 0 | V14: 0 | W14: 0 | X14: 98.27822086 | Y14: 0 | Z14: 1.721779142 | AA14: 0 | AB14: 0 | AC14: 0 | AD14: 0 | AE14: 0 | AF14: 0 | AG14: 0 | AH14: 0 | AI14: 0 | AJ14: 0 | AK14: 0 | AL14: 0 | AM14: 0 | AN14: 0 | AO14: 0 | AP14: 0 | AQ14: 0 | AR14: 14.39639314 | AS14: 7.990965569 | AW14: F | AX14: =S552 -> 2.500706944 | AY14: =T552 -> 4.078049036 | AZ14: 6.100626705 | BA14: 65.27107119 | BB14: 0 | BC14: 3.041690049 | BD14: 0 | BE14: 9.830180487 | BF14: 0 | BG14: 15.75643156 | BH14: 100
A15: =F15 -> CHF-B | B15: ='MONATS-JAHRES-RENDITEN'!D625 -> 0.03550664214 | C15: ='MONATS-JAHRES-RENDITEN'!D627 -> 0.02756296463 | E15: 0 | F15: CHF-B | H15: =B15 -> 0.03550664214 | I15: 0.25 | K15: 1 | L15: 0 | M15: 0.25 | N15: =SQRT(N14)*100 -> 5.754801678 | O15: Volatilität | Q15: 0.0439157057 | R15: 7 | S15: 14.35247743 | T15: 8.311027701 | U15: 0 | V15: 0 | W15: 0 | X15: 97.93342966 | Y15: 0 | Z15: 2.066570342 | AA15: 0 | AB15: 0 | AC15: 0 | AD15: 0 | AE15: 0 | AF15: 0 | AG15: 0 | AH15: 0 | AI15: 0 | AJ15: 0 | AK15: 0 | AL15: 0 | AM15: 0 | AN15: 0 | AO15: 0 | AP15: 0 | AQ15: 0 | AR15: 14.35247743 | AS15: 7.983678833 | AW15: G | AX15: =S958 -> 0.3735191257 | AY15: =T958 -> 0.8776889159 | AZ15: 99.25735764 | BA15: 0 | BB15: 0 | BC15: 0 | BD15: 0.3609647871 | BE15: 0.3816775777 | BF15: 0 | BG15: 0 | BH15: 100
A16: FW-B | B16: ='MONATS-JAHRES-RENDITEN'!E625 -> 0.0353785341 | C16: ='MONATS-JAHRES-RENDITEN'!E627 -> 0.0726012181 | E16: 0 | F16: FW-B | H16: 0.0353785341 | I16: 0.15 | K16: 1 | L16: 0 | M16: 0.15 | N16: =SUMPRODUCT(H14:H36,I14:I36)*100 -> 4.956719886 | O16: Rendite diskret | Q16: 0.04382048134 | R16: 8 | S16: 14.30865695 | T16: 8.303145041 | U16: 0 | V16: 0 | W16: 0 | X16: 97.58907383 | Y16: 0 | Z16: 2.410926167 | AA16: 0 | AB16: 0 | AC16: 0 | AD16: 0 | AE16: 0 | AF16: 0 | AG16: 0 | AH16: 0 | AI16: 0 | AJ16: 0 | AK16: 0 | AL16: 0 | AM16: 0 | AN16: 0 | AO16: 0 | AP16: 0 | AQ16: 0 | AR16: 14.30865695 | AS16: 7.976400768 | AW16: X | AX16: =S291 -> 5.750160766 | AY16: =T291 -> 6.135413442 | AZ16: 0 | BA16: 3.630971214 | BB16: 0 | BC16: 15.11606709 | BD16: 0 | BE16: 50.87227238 | BF16: 0 | BG16: 30.38068931 | BH16: 100
A17: CH-A | B17: ='MONATS-JAHRES-RENDITEN'!F625 -> 0.0835833363 | C17: ='MONATS-JAHRES-RENDITEN'!F627 -> 0.1461627818 | E17: 0 | F17: CH-A | H17: 0.0835833363 | I17: 0.175 | K17: 1 | L17: 0 | M17: 0.175 | N17: =(N16-3)/N15 -> 0.3400151726 | O17: Sharpe-Ratio | Q17: 0.04372504085 | R17: 9 | S17: 14.26493191 | T17: 8.295272347 | U17: 0 | V17: 0 | W17: 0 | X17: 97.24515339 | Y17: 0 | Z17: 2.754846608 | AA17: 0 | AB17: 0 | AC17: 0 | AD17: 0 | AE17: 0 | AF17: 0 | AG17: 0 | AH17: 0 | AI17: 0 | AJ17: 0 | AK17: 0 | AL17: 0 | AM17: 0 | AN17: 0 | AO17: 0 | AP17: 0 | AQ17: 0 | AR17: 14.26493191 | AS17: 7.969131376
A18: W-A | B18: ='MONATS-JAHRES-RENDITEN'!G625 -> 0.06617601276 | C18: ='MONATS-JAHRES-RENDITEN'!G627 -> 0.1639612258 | E18: 0 | F18: W-A | H18: 0.06617601276 | I18: 0.125 | K18: 1 | L18: 0 | M18: 0.125 | N18: 2 | O18: risikoloser Zinssatz | Q18: 0.04373993704 | R18: 10 | S18: 14.22119197 | T18: 8.287389686 | U18: 0 | V18: 0 | W18: 0 | X18: 96.90079757 | Y18: 0 | Z18: 3.099202429 | AA18: 0 | AB18: 0 | AC18: 0 | AD18: 0 | AE18: 0 | AF18: 0 | AG18: 0 | AH18: 0 | AI18: 0 | AJ18: 0 | AK18: 0 | AL18: 0 | AM18: 0 | AN18: 0 | AO18: 0 | AP18: 0 | AQ18: 0 | AR18: 14.22119197 | AS18: 7.961852252
A19: CH-IF | B19: ='MONATS-JAHRES-RENDITEN'!H625 -> 0.06069230356 | C19: ='MONATS-JAHRES-RENDITEN'!H627 -> 0.07049096634 | E19: 0 | F19: CH-IF | H19: 0.06069230356 | I19: 0.15 | K19: 1 | L19: 0 | M19: 0.15 | Q19: 0.04375430464 | R19: 11 | S19: 14.17743767 | T19: 8.279497059 | U19: 0 | V19: 0 | W19: 0 | X19: 96.55600636 | Y19: 0 | Z19: 3.443993636 | AA19: 0 | AB19: 0 | AC19: 0 | AD19: 0 | AE19: 0 | AF19: 0 | AG19: 0 | AH19: 0 | AI19: 0 | AJ19: 0 | AK19: 0 | AL19: 0 | AM19: 0 | AN19: 0 | AO19: 0 | AP19: 0 | AQ19: 0 | AR19: 14.17743767 | AS19: 7.954563393
A20: RS | B20: ='MONATS-JAHRES-RENDITEN'!I625 -> 0.004756732357 | C20: ='MONATS-JAHRES-RENDITEN'!I627 -> 0.1543274298 | E20: 0 | F20: RS | H20: 0.004756732357 | I20: 0.05 | K20: 1 | L20: 0 | M20: 0.05 | Q20: 0.04365779194 | R20: 12 | S20: 14.13377987 | T20: 8.271614399 | U20: 0 | V20: 0 | W20: 0 | X20: 96.21165054 | Y20: 0 | Z20: 3.788349461 | AA20: 0 | AB20: 0 | AC20: 0 | AD20: 0 | AE20: 0 | AF20: 0 | AG20: 0 | AH20: 0 | AI20: 0 | AJ20: 0 | AK20: 0 | AL20: 0 | AM20: 0 | AN20: 0 | AO20: 0 | AP20: 0 | AQ20: 0 | AR20: 14.13377987 | AS20: 7.947283208
A21: HF | B21: ='MONATS-JAHRES-RENDITEN'!J625 -> 0.05449129585 | C21: ='MONATS-JAHRES-RENDITEN'!J627 -> 0.0656755441 | E21: 0 | F21: HF | H21: 0.05449129585 | I21: 0.05 | K21: 1 | L21: 0 | M21: 0.05 | N21: Nebenbe- | Q21: 0.04361617186 | R21: 13 | S21: 14.0901637 | T21: 8.263731738 | U21: 0 | V21: 0 | W21: 0 | X21: 95.86729472 | Y21: 0 | Z21: 4.132705285 | AA21: 0 | AB21: 0 | AC21: 0 | AD21: 0 | AE21: 0 | AF21: 0 | AG21: 0 | AH21: 0 | AI21: 0 | AJ21: 0 | AK21: 0 | AL21: 0 | AM21: 0 | AN21: 0 | AO21: 0 | AP21: 0 | AQ21: 0 | AR21: 14.0901637 | AS21: 7.940002494
A22: 0 | B22: ='MONATS-JAHRES-RENDITEN'!K625 -> 0.001200720288 | C22: ='MONATS-JAHRES-RENDITEN'!K627 -> 0 | E22: 0 | F22: 0 | H22: 0.001200720288 | I22: 0 | K22: 0 | L22: 0 | N22: dingungen | Q22: 0.04357416431 | R22: 14 | S22: 14.04658954 | T22: 8.255849078 | U22: 0 | V22: 0 | W22: 0 | X22: 95.52293889 | Y22: 0 | Z22: 4.477061108 | AA22: 0 | AB22: 0 | AC22: 0 | AD22: 0 | AE22: 0 | AF22: 0 | AG22: 0 | AH22: 0 | AI22: 0 | AJ22: 0 | AK22: 0 | AL22: 0 | AM22: 0 | AN22: 0 | AO22: 0 | AP22: 0 | AQ22: 0 | AR22: 14.04658954 | AS22: 7.932721249
A23: 0 | B23: ='MONATS-JAHRES-RENDITEN'!L625 -> 0.001200720288 | C23: ='MONATS-JAHRES-RENDITEN'!L627 -> 0 | E23: 0 | F23: 0 | H23: 0.001200720288 | I23: 0 | K23: 0 | L23: 0 | N23: 0.4835558961 | O23: Vorgabe-Rendite (letzter Schritt) | Q23: 0.04353176461 | R23: 15 | S23: 14.00305777 | T23: 8.247966418 | U23: 0 | V23: 0 | W23: 0 | X23: 95.17858307 | Y23: 0 | Z23: 4.821416932 | AA23: 0 | AB23: 0 | AC23: 0 | AD23: 0 | AE23: 0 | AF23: 0 | AG23: 0 | AH23: 0 | AI23: 0 | AJ23: 0 | AK23: 0 | AL23: 0 | AM23: 0 | AN23: 0 | AO23: 0 | AP23: 0 | AQ23: 0 | AR23: 14.00305777 | AS23: 7.925439474
A24: 0 | B24: ='MONATS-JAHRES-RENDITEN'!M625 -> 0.001200720288 | C24: ='MONATS-JAHRES-RENDITEN'!M627 -> 0 | E24: 0 | F24: 0 | H24: 0.001200720288 | I24: 0 | K24: 0 | L24: 0 | N24: =SUM(I14:I36) -> 1 | O24: Summe PF-Anteile (Kontrolle) | Q24: 0.04343400913 | R24: 16 | S24: 13.95962376 | T24: 8.240093724 | U24: 0 | V24: 0 | W24: 0 | X24: 94.83466264 | Y24: 0 | Z24: 5.165337361 | AA24: 0 | AB24: 0 | AC24: 0 | AD24: 0 | AE24: 0 | AF24: 0 | AG24: 0 | AH24: 0 | AI24: 0 | AJ24: 0 | AK24: 0 | AL24: 0 | AM24: 0 | AN24: 0 | AO24: 0 | AP24: 0 | AQ24: 0 | AR24: 13.95962376 | AS24: 7.918166376
A25: 0 | B25: ='MONATS-JAHRES-RENDITEN'!N625 -> 0.001200720288 | C25: ='MONATS-JAHRES-RENDITEN'!N627 -> 0 | E25: 0 | F25: 0 | H25: 0.001200720288 | I25: 0 | K25: 0 | L25: 0 | Q25: 0.04350072955 | R25: 17 | S25: 13.91612303 | T25: 8.232201097 | U25: 0 | V25: 0 | W25: 0 | X25: 94.48987142 | Y25: 0 | Z25: 5.510128577 | AA25: 0 | AB25: 0 | AC25: 0 | AD25: 0 | AE25: 0 | AF25: 0 | AG25: 0 | AH25: 0 | AI25: 0 | AJ25: 0 | AK25: 0 | AL25: 0 | AM25: 0 | AN25: 0 | AO25: 0 | AP25: 0 | AQ25: 0 | AR25: 13.91612303 | AS25: 7.910874333
A26: 0 | B26: ='MONATS-JAHRES-RENDITEN'!O625 -> 0.001200720288 | C26: ='MONATS-JAHRES-RENDITEN'!O627 -> 0 | E26: 0 | F26: 0 | H26: 0.001200720288 | I26: 0 | K26: 0 | L26: 0 | Q26: 0.04334731818 | R26: 18 | S26: 13.87277572 | T26: 8.224328403 | U26: 0 | V26: 0 | W26: 0 | X26: 94.145951 | Y26: 0 | Z26: 5.854049004 | AA26: 0 | AB26: 0 | AC26: 0 | AD26: 0 | AE26: 0 | AF26: 0 | AG26: 0 | AH26: 0 | AI26: 0 | AJ26: 0 | AK26: 0 | AL26: 0 | AM26: 0 | AN26: 0 | AO26: 0 | AP26: 0 | AQ26: 0 | AR26: 13.87277572 | AS26: 7.903600176
A27: 0 | B27: ='MONATS-JAHRES-RENDITEN'!P625 -> 0.001200720288 | C27: ='MONATS-JAHRES-RENDITEN'!P627 -> 0 | E27: 0 | F27: 0 | H27: 0.001200720288 | I27: 0 | K27: 0 | L27: 0 | N27: Anzahl | Q27: 0.04341300229 | R27: 19 | S27: 13.82936271 | T27: 8.216435776 | U27: 0 | V27: 0 | W27: 0 | X27: 93.80115978 | Y27: 0 | Z27: 6.198840224 | AA27: 0 | AB27: 0 | AC27: 0 | AD27: 0 | AE27: 0 | AF27: 0 | AG27: 0 | AH27: 0 | AI27: 0 | AJ27: 0 | AK27: 0 | AL27: 0 | AM27: 0 | AN27: 0 | AO27: 0 | AP27: 0 | AQ27: 0 | AR27: 13.82936271 | AS27: 7.89630707
A28: 0 | B28: ='MONATS-JAHRES-RENDITEN'!Q625 -> 0.001200720288 | C28: ='MONATS-JAHRES-RENDITEN'!Q627 -> 0 | E28: 0 | F28: 0 | H28: 0.001200720288 | I28: 0 | K28: 0 | L28: 0 | N28: Schritte | Q28: 0.04325898688 | R28: 20 | S28: 13.78610373 | T28: 8.208563082 | U28: 0 | V28: 0 | W28: 0 | X28: 93.45723935 | Y28: 0 | Z28: 6.542760648 | AA28: 0 | AB28: 0 | AC28: 0 | AD28: 0 | AE28: 0 | AF28: 0 | AG28: 0 | AH28: 0 | AI28: 0 | AJ28: 0 | AK28: 0 | AL28: 0 | AM28: 0 | AN28: 0 | AO28: 0 | AP28: 0 | AQ28: 0 | AR28: 13.78610373 | AS28: 7.889031853
A29: 0 | B29: ='MONATS-JAHRES-RENDITEN'!R625 -> 0.001200720288 | C29: ='MONATS-JAHRES-RENDITEN'!R627 -> 0 | E29: 0 | F29: 0 | H29: 0.001200720288 | I29: 0 | K29: 0 | L29: 0 | Q29: 0.04332361175 | R29: 21 | S29: 13.74278012 | T29: 8.200670455 | U29: 0 | V29: 0 | W29: 0 | X29: 93.11244813 | Y29: 0 | Z29: 6.887551871 | AA29: 0 | AB29: 0 | AC29: 0 | AD29: 0 | AE29: 0 | AF29: 0 | AG29: 0 | AH29: 0 | AI29: 0 | AJ29: 0 | AK29: 0 | AL29: 0 | AM29: 0 | AN29: 0 | AO29: 0 | AP29: 0 | AQ29: 0 | AR29: 13.74278012 | AS29: 7.881737685
A30: 0 | B30: ='MONATS-JAHRES-RENDITEN'!S625 -> 0.001200720288 | C30: ='MONATS-JAHRES-RENDITEN'!S627 -> 0 | E30: 0 | F30: 0 | H30: 0.001200720288 | I30: 0 | K30: 0 | L30: 0 | N30: 1000 | Q30: 0.04316897729 | R30: 22 | S30: 13.69961114 | T30: 8.192797761 | U30: 0 | V30: 0 | W30: 0 | X30: 92.76852771 | Y30: 0 | Z30: 7.231472292 | AA30: 0 | AB30: 0 | AC30: 0 | AD30: 0 | AE30: 0 | AF30: 0 | AG30: 0 | AH30: 0 | AI30: 0 | AJ30: 0 | AK30: 0 | AL30: 0 | AM30: 0 | AN30: 0 | AO30: 0 | AP30: 0 | AQ30: 0 | AR30: 13.69961114 | AS30: 7.874461408
A31: 0 | B31: ='MONATS-JAHRES-RENDITEN'!T625 -> 0.001200720288 | C31: ='MONATS-JAHRES-RENDITEN'!T627 -> 0 | E31: 0 | F31: 0 | H31: 0.001200720288 | I31: 0 | K31: 0 | L31: 0 | Q31: 0.04323251919 | R31: 23 | S31: 13.65637862 | T31: 8.184905134 | U31: 0 | V31: 0 | W31: 0 | X31: 92.42373648 | Y31: 0 | Z31: 7.576263518 | AA31: 0 | AB31: 0 | AC31: 0 | AD31: 0 | AE31: 0 | AF31: 0 | AG31: 0 | AH31: 0 | AI31: 0 | AJ31: 0 | AK31: 0 | AL31: 0 | AM31: 0 | AN31: 0 | AO31: 0 | AP31: 0 | AQ31: 0 | AR31: 13.65637862 | AS31: 7.867166177
A32: 0 | B32: ='MONATS-JAHRES-RENDITEN'!U625 -> 0.001200720288 | C32: ='MONATS-JAHRES-RENDITEN'!U627 -> 0 | E32: 0 | F32: 0 | H32: 0.001200720288 | I32: 0 | K32: 0 | L32: 0 | Q32: 0.04307725027 | R32: 24 | S32: 13.61330137 | T32: 8.177032441 | U32: 0 | V32: 0 | W32: 0 | X32: 92.07981606 | Y32: 0 | Z32: 7.920183936 | AA32: 0 | AB32: 0 | AC32: 0 | AD32: 0 | AE32: 0 | AF32: 0 | AG32: 0 | AH32: 0 | AI32: 0 | AJ32: 0 | AK32: 0 | AL32: 0 | AM32: 0 | AN32: 0 | AO32: 0 | AP32: 0 | AQ32: 0 | AR32: 13.61330137 | AS32: 7.85988884 | AX32: kopiert und sortiert nach Rendite
A33: 0 | B33: ='MONATS-JAHRES-RENDITEN'!V625 -> 0.001200720288 | C33: ='MONATS-JAHRES-RENDITEN'!V627 -> 0 | E33: 0 | F33: 0 | H33: 0.001200720288 | I33: 0 | K33: 0 | L33: 0 | Q33: 0.04308523699 | R33: 25 | S33: 13.57021613 | T33: 8.16914978 | U33: 0 | V33: 0 | W33: 0 | X33: 91.73546024 | Y33: 0 | Z33: 8.264539758 | AA33: 0 | AB33: 0 | AC33: 0 | AD33: 0 | AE33: 0 | AF33: 0 | AG33: 0 | AH33: 0 | AI33: 0 | AJ33: 0 | AK33: 0 | AL33: 0 | AM33: 0 | AN33: 0 | AO33: 0 | AP33: 0 | AQ33: 0 | AR33: 13.57021613 | AS33: 7.852601759
A34: 0 | B34: ='MONATS-JAHRES-RENDITEN'!W625 -> 0.001200720288 | C34: ='MONATS-JAHRES-RENDITEN'!W627 -> 0 | E34: 0 | F34: 0 | H34: 0.001200720288 | I34: 0 | K34: 0 | L34: 0 | N34: 0.1265822785 | Q34: 0.04309260175 | R34: 26 | S34: 13.52712353 | T34: 8.161257153 | U34: 0 | V34: 0 | W34: 0 | X34: 91.39066901 | Y34: 0 | Z34: 8.609330989 | AA34: 0 | AB34: 0 | AC34: 0 | AD34: 0 | AE34: 0 | AF34: 0 | AG34: 0 | AH34: 0 | AI34: 0 | AJ34: 0 | AK34: 0 | AL34: 0 | AM34: 0 | AN34: 0 | AO34: 0 | AP34: 0 | AQ34: 0 | AR34: 13.52712353 | AS34: 7.845304932 | AX34: Volatilität % | AY34: Rendite % | AZ34: =AZ8 -> CHF-GM | BA34: CHF-B | BB34: FW-B | BC34: CH-A | BD34: W-A | BE34: CH-IF | BF34: RS | BG34: HF | BH34: total
A35: 0 | B35: ='MONATS-JAHRES-RENDITEN'!X625 -> 0.001200720288 | C35: ='MONATS-JAHRES-RENDITEN'!X627 -> 0 | E35: 0 | F35: 0 | H35: 0.001200720288 | I35: 0 | K35: 0 | L35: 0 | Q35: 0.04299067977 | R35: 27 | S35: 13.48413285 | T35: 8.153374492 | U35: 0 | V35: 0 | W35: 0 | X35: 91.04631319 | Y35: 0 | Z35: 8.953686814 | AA35: 0 | AB35: 0 | AC35: 0 | AD35: 0 | AE35: 0 | AF35: 0 | AG35: 0 | AH35: 0 | AI35: 0 | AJ35: 0 | AK35: 0 | AL35: 0 | AM35: 0 | AN35: 0 | AO35: 0 | AP35: 0 | AQ35: 0 | AR35: 13.48413285 | AS35: 7.838016789 | AW35: A | AX35: 0.3735191257 | AY35: 0.8776889159 | AZ35: 99.25735764 | BA35: 0 | BB35: 0 | BC35: 0 | BD35: 0.3609647871 | BE35: 0.3816775777 | BF35: 0 | BG35: 0 | BH35: 100
A36: 0 | B36: ='MONATS-JAHRES-RENDITEN'!Y625 -> 0.001200720288 | C36: ='MONATS-JAHRES-RENDITEN'!Y627 -> 0 | E36: 0 | F36: 0 | H36: 0.001200720288 | I36: 0 | K36: 0 | L36: 0 | Q36: 0.04294274963 | R36: 28 | S36: 13.4411901 | T36: 8.145491832 | U36: 0 | V36: 0 | W36: 0 | X36: 90.70195736 | Y36: 0 | Z36: 9.298042638 | AA36: 0 | AB36: 0 | AC36: 0 | AD36: 0 | AE36: 0 | AF36: 0 | AG36: 0 | AH36: 0 | AI36: 0 | AJ36: 0 | AK36: 0 | AL36: 0 | AM36: 0 | AN36: 0 | AO36: 0 | AP36: 0 | AQ36: 0 | AR36: 13.4411901 | AS36: 7.830728114 | AW36: B | AX36: 2.500706944 | AY36: 4.078049036 | AZ36: 6.100626705 | BA36: 65.27107119 | BB36: 0 | BC36: 3.041690049 | BD36: 0 | BE36: 9.830180487 | BF36: 0 | BG36: 15.75643156 | BH36: 100
I37: =SUM(I14:I36) -> 1 | Q37: 0.04289435887 | R37: 29 | S37: 13.39829574 | T37: 8.137609172 | U37: 0 | V37: 0 | W37: 0 | X37: 90.35760154 | Y37: 0 | Z37: 9.642398462 | AA37: 0 | AB37: 0 | AC37: 0 | AD37: 0 | AE37: 0 | AF37: 0 | AG37: 0 | AH37: 0 | AI37: 0 | AJ37: 0 | AK37: 0 | AL37: 0 | AM37: 0 | AN37: 0 | AO37: 0 | AP37: 0 | AQ37: 0 | AR37: 13.39829574 | AS37: 7.823438908 | AW37: C | AX37: 5.004984251 | AY37: 5.772811064 | AZ37: 0 | BA37: 16.55594036 | BB37: 0 | BC37: 12.77937182 | BD37: 0 | BE37: 42.93048549 | BF37: 0 | BG37: 27.73420233 | BH37: 100
B38: für Diagramm | I38: PF-Anteile im Test | K38: PF-Anteile max./min. | M38: Summe | Q38: 0.04279135719 | R38: 30 | S38: 13.35550438 | T38: 8.129736478 | U38: 0 | V38: 0 | W38: 0 | X38: 90.01368113 | Y38: 0 | Z38: 9.986318867 | AA38: 0 | AB38: 0 | AC38: 0 | AD38: 0 | AE38: 0 | AF38: 0 | AG38: 0 | AH38: 0 | AI38: 0 | AJ38: 0 | AK38: 0 | AL38: 0 | AM38: 0 | AN38: 0 | AO38: 0 | AP38: 0 | AQ38: 0 | AR38: 13.35550438 | AS38: 7.816158388 | AW38: X | AX38: 5.750160766 | AY38: 6.135413442 | AZ38: 0 | BA38: 3.630971214 | BB38: 0 | BC38: 15.11606709 | BD38: 0 | BE38: 50.87227238 | BF38: 0 | BG38: 30.38068931 | BH38: 100
B39: Historische | C39: Historische | H39: Risiko | I39: =N15 -> 5.754801678 | K39: fehlende Assets dürfen | M39: =SUM(M14:M36) -> 1 | Q39: 0.04279623555 | R39: 31 | S39: 13.31270815 | T39: 8.121853818 | U39: 0 | V39: 0 | W39: 0 | X39: 89.66932531 | Y39: 0 | Z39: 10.33067469 | AA39: 0 | AB39: 0 | AC39: 0 | AD39: 0 | AE39: 0 | AF39: 0 | AG39: 0 | AH39: 0 | AI39: 0 | AJ39: 0 | AK39: 0 | AL39: 0 | AM39: 0 | AN39: 0 | AO39: 0 | AP39: 0 | AQ39: 0 | AR39: 13.31270815 | AS39: 7.80886812 | AW39: D | AX39: 7.50099907 | AY39: 6.813322223 | AZ39: 0 | BA39: 0 | BB39: 0 | BC39: 34.36245165 | BD39: 0 | BE39: 58.78380123 | BF39: 0 | BG39: 6.853747117 | BH39: 100
B40: Rendite | C40: Volatilität | H40: Rendite stetig (LN) | I40: =(LN(1+(N16/100)))*100 -> 4.837788763 | K40: keinen Wert haben | Q40: 0.04280044906 | R40: 32 | S40: 13.2699077 | T40: 8.11396119 | U40: 0 | V40: 0 | W40: 0 | X40: 89.32453407 | Y40: 0 | Z40: 10.67546593 | AA40: 0 | AB40: 0 | AC40: 0 | AD40: 0 | AE40: 0 | AF40: 0 | AG40: 0 | AH40: 0 | AI40: 0 | AJ40: 0 | AK40: 0 | AL40: 0 | AM40: 0 | AN40: 0 | AO40: 0 | AP40: 0 | AQ40: 0 | AR40: 13.2699077 | AS40: 7.801568101 | AW40: E | AX40: 9.993832798 | AY40: 7.467583035 | AZ40: 0 | BA40: 0 | BB40: 0 | BC40: 61.08735656 | BD40: 0 | BE40: 38.91264344 | BF40: 0 | BG40: 0 | BH40: 100
C41: stetig/Jahr | H41: Sharpe-Ratio | I41: =N17 -> 0.3400151726 | K41: Wert = 0.00 | Q41: 0.04269607842 | R41: 33 | S41: 13.22721162 | T41: 8.10607853 | U41: 0 | V41: 0 | W41: 0 | X41: 88.98017824 | Y41: 0 | Z41: 11.01982176 | AA41: 0 | AB41: 0 | AC41: 0 | AD41: 0 | AE41: 0 | AF41: 0 | AG41: 0 | AH41: 0 | AI41: 0 | AJ41: 0 | AK41: 0 | AL41: 0 | AM41: 0 | AN41: 0 | AO41: 0 | AP41: 0 | AQ41: 0 | AR41: 13.22721162 | AS41: 7.794276769 | AW41: F | AX41: 12.50962188 | AY41: 7.97208327 | AZ41: 0 | BA41: 0 | BB41: 0 | BC41: 83.1265647 | BD41: 0 | BE41: 16.8734353 | BF41: 0 | BG41: 0 | BH41: 100
A42: =F14 -> CHF-GM | B42: =C14*100 -> 0.3809326172 | C42: =(LN(1+B14))*100 -> 0.8333694393 | I42: Werte gelten nur, wenn | Q42: 0.04264530075 | R42: 34 | S42: 13.18456632 | T42: 8.098195869 | U42: 0 | V42: 0 | W42: 0 | X42: 88.63582242 | Y42: 0 | Z42: 11.36417758 | AA42: 0 | AB42: 0 | AC42: 0 | AD42: 0 | AE42: 0 | AF42: 0 | AG42: 0 | AH42: 0 | AI42: 0 | AJ42: 0 | AK42: 0 | AL42: 0 | AM42: 0 | AN42: 0 | AO42: 0 | AP42: 0 | AQ42: 0 | AR42: 13.18456632 | AS42: 7.786984906 | AW42: G | AX42: 14.61627818 | AY42: 8.35833363 | AZ42: 0 | BA42: 0 | BB42: 0 | BC42: 100 | BD42: 0 | BE42: 0 | BF42: 0 | BG42: 0 | BH42: 100
A43: =F15 -> CHF-B | B43: =C15*100 -> 2.756296463 | C43: =(LN(1+B15))*100 -> 3.489081626 | I43: (nach dem "Rechnen") | Q43: 0.04254020273 | R43: 35 | S43: 13.14202612 | T43: 8.090323176 | U43: 0 | V43: 0 | W43: 0 | X43: 88.29190202 | Y43: 0 | Z43: 11.70809798 | AA43: 0 | AB43: 0 | AC43: 0 | AD43: 0 | AE43: 0 | AF43: 0 | AG43: 0 | AH43: 0 | AI43: 0 | AJ43: 0 | AK43: 0 | AL43: 0 | AM43: 0 | AN43: 0 | AO43: 0 | AP43: 0 | AQ43: 0 | AR43: 13.14202612 | AS43: 7.779701732
A44: FW-B | B44: 7.26012181 | C44: 3.476709328 | I44: PF-Anteile von Hand | Q44: 0.04254232265 | R44: 36 | S44: 13.0994838 | T44: 8.082440516 | U44: 0 | V44: 0 | W44: 0 | X44: 87.9475462 | Y44: 0 | Z44: 12.0524538 | AA44: 0 | AB44: 0 | AC44: 0 | AD44: 0 | AE44: 0 | AF44: 0 | AG44: 0 | AH44: 0 | AI44: 0 | AJ44: 0 | AK44: 0 | AL44: 0 | AM44: 0 | AN44: 0 | AO44: 0 | AP44: 0 | AQ44: 0 | AR44: 13.0994838 | AS44: 7.772408805
A45: CH-A | B45: 14.61627818 | C45: 8.027345302 | I45: eingegeben worden sind | Q45: 0.04249004534 | R45: 37 | S45: 13.05699375 | T45: 8.074557856 | U45: 0 | V45: 0 | W45: 0 | X45: 87.60319038 | Y45: 0 | Z45: 12.39680962 | AA45: 0 | AB45: 0 | AC45: 0 | AD45: 0 | AE45: 0 | AF45: 0 | AG45: 0 | AH45: 0 | AI45: 0 | AJ45: 0 | AK45: 0 | AL45: 0 | AM45: 0 | AN45: 0 | AO45: 0 | AP45: 0 | AQ45: 0 | AR45: 13.05699375 | AS45: 7.765115347
A46: W-A | B46: 16.39612258 | C46: 6.407842727 | Q46: 0.04249088345 | R46: 38 | S46: 13.01450287 | T46: 8.066665228 | U46: 0 | V46: 0 | W46: 0 | X46: 87.25839913 | Y46: 0 | Z46: 12.74160087 | AA46: 0 | AB46: 0 | AC46: 0 | AD46: 0 | AE46: 0 | AF46: 0 | AG46: 0 | AH46: 0 | AI46: 0 | AJ46: 0 | AK46: 0 | AL46: 0 | AM46: 0 | AN46: 0 | AO46: 0 | AP46: 0 | AQ46: 0 | AR46: 13.01450287 | AS46: 7.757812133
A47: CH-IF | B47: 7.049096634 | C47: 5.89218115 | I47: für Diagramm stetig | K47: für Diagramm diskret | Q47: 0.04238388129 | R47: 39 | S47: 12.97211899 | T47: 8.058782567 | U47: 0 | V47: 0 | W47: 0 | X47: 86.9140433 | Y47: 0 | Z47: 13.0859567 | AA47: 0 | AB47: 0 | AC47: 0 | AD47: 0 | AE47: 0 | AF47: 0 | AG47: 0 | AH47: 0 | AI47: 0 | AJ47: 0 | AK47: 0 | AL47: 0 | AM47: 0 | AN47: 0 | AO47: 0 | AP47: 0 | AQ47: 0 | AR47: 12.97211899 | AS47: 7.75051761
A48: RS | B48: 15.43274298 | C48: 0.4745454854 | H48: BM-PF | I48: PF-Anteile im Test | K48: PF-Anteile im Test | M48: BM-PF | Q48: 0.04233004876 | R48: 40 | S48: 12.92978894 | T48: 8.050899907 | U48: 0 | V48: 0 | W48: 0 | X48: 86.56968748 | Y48: 0 | Z48: 13.43031252 | AA48: 0 | AB48: 0 | AC48: 0 | AD48: 0 | AE48: 0 | AF48: 0 | AG48: 0 | AH48: 0 | AI48: 0 | AJ48: 0 | AK48: 0 | AL48: 0 | AM48: 0 | AN48: 0 | AO48: 0 | AP48: 0 | AQ48: 0 | AR48: 12.92978894 | AS48: 7.743222554
A49: HF | B49: 6.56755441 | C49: 5.305846661 | H49: Risiko | I49: 5.754801678 | K49: =I49 -> 5.754801678 | M49: Risiko | Q49: 0.04222226284 | R49: 41 | S49: 12.88756667 | T49: 8.043027214 | U49: 0 | V49: 0 | W49: 0 | X49: 86.22576709 | Y49: 0 | Z49: 13.77423291 | AA49: 0 | AB49: 0 | AC49: 0 | AD49: 0 | AE49: 0 | AF49: 0 | AG49: 0 | AH49: 0 | AI49: 0 | AJ49: 0 | AK49: 0 | AL49: 0 | AM49: 0 | AN49: 0 | AO49: 0 | AP49: 0 | AQ49: 0 | AR49: 12.88756667 | AS49: 7.735936192
A50: 0 | B50: 0 | C50: 0.12 | H50: Rendite stetig | I50: 4.837788763 | K50: =(EXP(I50/100)-1)*100 -> 4.956719886 | M50: Rendite diskret | Q50: 0.04227420942 | R50: 42 | S50: 12.84529246 | T50: 8.035134586 | U50: 0 | V50: 0 | W50: 0 | X50: 85.88097583 | Y50: 0 | Z50: 14.11902417 | AA50: 0 | AB50: 0 | AC50: 0 | AD50: 0 | AE50: 0 | AF50: 0 | AG50: 0 | AH50: 0 | AI50: 0 | AJ50: 0 | AK50: 0 | AL50: 0 | AM50: 0 | AN50: 0 | AO50: 0 | AP50: 0 | AQ50: 0 | AR50: 12.84529246 | AS50: 7.728630847
A51: 0 | B51: 0 | C51: 0.12 | I51: Trägt man die "PF-Anteile im Test" | Q51: 0.04216534406 | R51: 43 | S51: 12.80312712 | T51: 8.027251925 | U51: 0 | V51: 0 | W51: 0 | X51: 85.53662001 | Y51: 0 | Z51: 14.46337999 | AA51: 0 | AB51: 0 | AC51: 0 | AD51: 0 | AE51: 0 | AF51: 0 | AG51: 0 | AH51: 0 | AI51: 0 | AJ51: 0 | AK51: 0 | AL51: 0 | AM51: 0 | AN51: 0 | AO51: 0 | AP51: 0 | AQ51: 0 | AR51: 12.80312712 | AS51: 7.721334195
A52: 0 | B52: 0 | C52: 0.12 | I52: (z.B. jene eines Benchmark-Portfolios) | Q52: 0.04210935163 | R52: 44 | S52: 12.76101777 | T52: 8.019369265 | U52: 0 | V52: 0 | W52: 0 | X52: 85.19226418 | Y52: 0 | Z52: 14.80773582 | AA52: 0 | AB52: 0 | AC52: 0 | AD52: 0 | AE52: 0 | AF52: 0 | AG52: 0 | AH52: 0 | AI52: 0 | AJ52: 0 | AK52: 0 | AL52: 0 | AM52: 0 | AN52: 0 | AO52: 0 | AP52: 0 | AQ52: 0 | AR52: 12.76101777 | AS52: 7.71403701
A53: 0 | B53: 0 | C53: 0.12 | I53: manuell hier ein, wird die Positionierung | Q53: 0.04205280328 | R53: 45 | S53: 12.71896497 | T53: 8.011486605 | U53: 0 | V53: 0 | W53: 0 | X53: 84.84790836 | Y53: 0 | Z53: 15.15209164 | AA53: 0 | AB53: 0 | AC53: 0 | AD53: 0 | AE53: 0 | AF53: 0 | AG53: 0 | AH53: 0 | AI53: 0 | AJ53: 0 | AK53: 0 | AL53: 0 | AM53: 0 | AN53: 0 | AO53: 0 | AP53: 0 | AQ53: 0 | AR53: 12.71896497 | AS53: 7.706739293
A54: 0 | B54: 0 | C54: 0.12 | I54: im Diagramm EFFIZIENZLINIE ersichtlich | Q54: 0.04199569217 | R54: 46 | S54: 12.67696927 | T54: 8.003603944 | U54: 0 | V54: 0 | W54: 0 | X54: 84.50355253 | Y54: 0 | Z54: 15.49644747 | AA54: 0 | AB54: 0 | AC54: 0 | AD54: 0 | AE54: 0 | AF54: 0 | AG54: 0 | AH54: 0 | AI54: 0 | AJ54: 0 | AK54: 0 | AL54: 0 | AM54: 0 | AN54: 0 | AO54: 0 | AP54: 0 | AQ54: 0 | AR54: 12.67696927 | AS54: 7.699441043
A55: 0 | B55: 0 | C55: 0.12 | Q55: 0.04193801159 | R55: 47 | S55: 12.63503126 | T55: 7.995721284 | U55: 0 | V55: 0 | W55: 0 | X55: 84.15919671 | Y55: 0 | Z55: 15.84080329 | AA55: 0 | AB55: 0 | AC55: 0 | AD55: 0 | AE55: 0 | AF55: 0 | AG55: 0 | AH55: 0 | AI55: 0 | AJ55: 0 | AK55: 0 | AL55: 0 | AM55: 0 | AN55: 0 | AO55: 0 | AP55: 0 | AQ55: 0 | AR55: 12.63503126 | AS55: 7.692142261
A56: 0 | B56: 0 | C56: 0.12 | Q56: 0.04187975475 | R56: 48 | S56: 12.59315151 | T56: 7.987838623 | U56: 0 | V56: 0 | W56: 0 | X56: 83.81484089 | Y56: 0 | Z56: 16.18515911 | AA56: 0 | AB56: 0 | AC56: 0 | AD56: 0 | AE56: 0 | AF56: 0 | AG56: 0 | AH56: 0 | AI56: 0 | AJ56: 0 | AK56: 0 | AL56: 0 | AM56: 0 | AN56: 0 | AO56: 0 | AP56: 0 | AQ56: 0 | AR56: 12.59315151 | AS56: 7.684842946
A57: 0 | B57: 0 | C57: 0.12 | Q57: 0.04182091475 | R57: 49 | S57: 12.55133059 | T57: 7.979955963 | U57: 0 | V57: 0 | W57: 0 | X57: 83.47048506 | Y57: 0 | Z57: 16.52951494 | AA57: 0 | AB57: 0 | AC57: 0 | AD57: 0 | AE57: 0 | AF57: 0 | AG57: 0 | AH57: 0 | AI57: 0 | AJ57: 0 | AK57: 0 | AL57: 0 | AM57: 0 | AN57: 0 | AO57: 0 | AP57: 0 | AQ57: 0 | AR57: 12.55133059 | AS57: 7.677543097
A58: 0 | B58: 0 | C58: 0.12 | Q58: 0.04170871275 | R58: 50 | S58: 12.50962188 | T58: 7.97208327 | U58: 0 | V58: 0 | W58: 0 | X58: 83.1265647 | Y58: 0 | Z58: 16.8734353 | AA58: 0 | AB58: 0 | AC58: 0 | AD58: 0 | AE58: 0 | AF58: 0 | AG58: 0 | AH58: 0 | AI58: 0 | AJ58: 0 | AK58: 0 | AL58: 0 | AM58: 0 | AN58: 0 | AO58: 0 | AP58: 0 | AQ58: 0 | AR58: 12.50962188 | AS58: 7.670251949
A59: 0 | B59: 0 | C59: 0.12 | Q59: 0.04170153336 | R59: 51 | S59: 12.46792035 | T59: 7.96420061 | U59: 0 | V59: 0 | W59: 0 | X59: 82.78220887 | Y59: 0 | Z59: 17.21779113 | AA59: 0 | AB59: 0 | AC59: 0 | AD59: 0 | AE59: 0 | AF59: 0 | AG59: 0 | AH59: 0 | AI59: 0 | AJ59: 0 | AK59: 0 | AL59: 0 | AM59: 0 | AN59: 0 | AO59: 0 | AP59: 0 | AQ59: 0 | AR59: 12.46792035 | AS59: 7.662951035
A60: 0 | B60: 0 | C60: 0.12 | Q60: 0.0416935213 | R60: 52 | S60: 12.42622683 | T60: 7.956307981 | U60: 0 | V60: 0 | W60: 0 | X60: 82.43741759 | Y60: 0 | Z60: 17.56258241 | AA60: 0 | AB60: 0 | AC60: 0 | AD60: 0 | AE60: 0 | AF60: 0 | AG60: 0 | AH60: 0 | AI60: 0 | AJ60: 0 | AK60: 0 | AL60: 0 | AM60: 0 | AN60: 0 | AO60: 0 | AP60: 0 | AQ60: 0 | AR60: 12.42622683 | AS60: 7.655640355
A61: 0 | B61: 0 | C61: 0.12 | Q61: 0.04157958264 | R61: 53 | S61: 12.38464724 | T61: 7.948425321 | U61: 0 | V61: 0 | W61: 0 | X61: 82.09306177 | Y61: 0 | Z61: 17.90693823 | AA61: 0 | AB61: 0 | AC61: 0 | AD61: 0 | AE61: 0 | AF61: 0 | AG61: 0 | AH61: 0 | AI61: 0 | AJ61: 0 | AK61: 0 | AL61: 0 | AM61: 0 | AN61: 0 | AO61: 0 | AP61: 0 | AQ61: 0 | AR61: 12.38464724 | AS61: 7.648338375
A62: 0 | B62: 0 | C62: 0.12 | Q62: 0.04151772027 | R62: 54 | S62: 12.34312952 | T62: 7.940542661 | U62: 0 | V62: 0 | W62: 0 | X62: 81.74870594 | Y62: 0 | Z62: 18.25129406 | AA62: 0 | AB62: 0 | AC62: 0 | AD62: 0 | AE62: 0 | AF62: 0 | AG62: 0 | AH62: 0 | AI62: 0 | AJ62: 0 | AK62: 0 | AL62: 0 | AM62: 0 | AN62: 0 | AO62: 0 | AP62: 0 | AQ62: 0 | AR62: 12.34312952 | AS62: 7.641035862
A63: 0 | B63: 0 | C63: 0.12 | Q63: 0.04145523177 | R63: 55 | S63: 12.30167429 | T63: 7.93266 | U63: 0 | V63: 0 | W63: 0 | X63: 81.40435012 | Y63: 0 | Z63: 18.59564988 | AA63: 0 | AB63: 0 | AC63: 0 | AD63: 0 | AE63: 0 | AF63: 0 | AG63: 0 | AH63: 0 | AI63: 0 | AJ63: 0 | AK63: 0 | AL63: 0 | AM63: 0 | AN63: 0 | AO63: 0 | AP63: 0 | AQ63: 0 | AR63: 12.30167429 | AS63: 7.633732815
A64: 0 | B64: 0 | C64: 0.12 | Q64: 0.04139210939 | R64: 56 | S64: 12.26028218 | T64: 7.92477734 | U64: 0 | V64: 0 | W64: 0 | X64: 81.0599943 | Y64: 0 | Z64: 18.9400057 | AA64: 0 | AB64: 0 | AC64: 0 | AD64: 0 | AE64: 0 | AF64: 0 | AG64: 0 | AH64: 0 | AI64: 0 | AJ64: 0 | AK64: 0 | AL64: 0 | AM64: 0 | AN64: 0 | AO64: 0 | AP64: 0 | AQ64: 0 | AR64: 12.26028218 | AS64: 7.626429235
Q65: 0.04132834553 | R65: 57 | S65: 12.21895384 | T65: 7.916894679 | U65: 0 | V65: 0 | W65: 0 | X65: 80.71563847 | Y65: 0 | Z65: 19.28436153 | AA65: 0 | AB65: 0 | AC65: 0 | AD65: 0 | AE65: 0 | AF65: 0 | AG65: 0 | AH65: 0 | AI65: 0 | AJ65: 0 | AK65: 0 | AL65: 0 | AM65: 0 | AN65: 0 | AO65: 0 | AP65: 0 | AQ65: 0 | AR65: 12.21895384 | AS65: 7.619125121
B66: für Diagramm diskret | Q66: 0.04126393246 | R66: 58 | S66: 12.1776899 | T66: 7.909012019 | U66: 0 | V66: 0 | W66: 0 | X66: 80.37128265 | Y66: 0 | Z66: 19.62871735 | AA66: 0 | AB66: 0 | AC66: 0 | AD66: 0 | AE66: 0 | AF66: 0 | AG66: 0 | AH66: 0 | AI66: 0 | AJ66: 0 | AK66: 0 | AL66: 0 | AM66: 0 | AN66: 0 | AO66: 0 | AP66: 0 | AQ66: 0 | AR66: 12.1776899 | AS66: 7.611820474
B67: Historische | C67: Historische | D67: Sharpe Ratio | Q67: 0.04119886239 | R67: 59 | S67: 12.13649104 | T67: 7.901129358 | U67: 0 | V67: 0 | W67: 0 | X67: 80.02692682 | Y67: 0 | Z67: 19.97307318 | AA67: 0 | AB67: 0 | AC67: 0 | AD67: 0 | AE67: 0 | AF67: 0 | AG67: 0 | AH67: 0 | AI67: 0 | AJ67: 0 | AK67: 0 | AL67: 0 | AM67: 0 | AN67: 0 | AO67: 0 | AP67: 0 | AQ67: 0 | AR67: 12.13649104 | AS67: 7.604515293
B68: Volatilität | C68: Rendite | D68: =C77 -> 5.449129585 | Q68: 0.0411331274 | R68: 60 | S68: 12.09535791 | T68: 7.893246698 | U68: 0 | V68: 0 | W68: 0 | X68: 79.682571 | Y68: 0 | Z68: 20.317429 | AA68: 0 | AB68: 0 | AC68: 0 | AD68: 0 | AE68: 0 | AF68: 0 | AG68: 0 | AH68: 0 | AI68: 0 | AJ68: 0 | AK68: 0 | AL68: 0 | AM68: 0 | AN68: 0 | AO68: 0 | AP68: 0 | AQ68: 0 | AR68: 12.09535791 | AS68: 7.597209579
C69: diskret/Jahr | Q69: 0.04106671948 | R69: 61 | S69: 12.05429119 | T69: 7.885364037 | U69: 0 | V69: 0 | W69: 0 | X69: 79.33821517 | Y69: 0 | Z69: 20.66178483 | AA69: 0 | AB69: 0 | AC69: 0 | AD69: 0 | AE69: 0 | AF69: 0 | AG69: 0 | AH69: 0 | AI69: 0 | AJ69: 0 | AK69: 0 | AL69: 0 | AM69: 0 | AN69: 0 | AO69: 0 | AP69: 0 | AQ69: 0 | AR69: 12.05429119 | AS69: 7.589903331
A70: =A14 -> CHF-GM | B70: =C14*100 -> 0.3809326172 | C70: =B14*100 -> 0.8368516289 | D70: =(C70-$D$68)/B70 -> -12.10785779 | Q70: 0.04094782386 | R70: 62 | S70: 12.01334337 | T70: 7.877491346 | U70: 0 | V70: 0 | W70: 0 | X70: 78.99429483 | Y70: 0 | Z70: 21.00570517 | AA70: 0 | AB70: 0 | AC70: 0 | AD70: 0 | AE70: 0 | AF70: 0 | AG70: 0 | AH70: 0 | AI70: 0 | AJ70: 0 | AK70: 0 | AL70: 0 | AM70: 0 | AN70: 0 | AO70: 0 | AP70: 0 | AQ70: 0 | AR70: 12.01334337 | AS70: 7.582605789
A71: =A15 -> CHF-B | B71: =C15*100 -> 2.756296463 | C71: =B15*100 -> 3.550664214 | D71: =(C71-$D$68)/B71 -> -0.6887740111 | Q71: 0.04098365878 | R71: 63 | S71: 11.97235971 | T71: 7.869598717 | U71: 0 | V71: 0 | W71: 0 | X71: 78.64950353 | Y71: 0 | Z71: 21.35049647 | AA71: 0 | AB71: 0 | AC71: 0 | AD71: 0 | AE71: 0 | AF71: 0 | AG71: 0 | AH71: 0 | AI71: 0 | AJ71: 0 | AK71: 0 | AL71: 0 | AM71: 0 | AN71: 0 | AO71: 0 | AP71: 0 | AQ71: 0 | AR71: 11.97235971 | AS71: 7.575289233
A72: FW-B | B72: 7.26012181 | C72: 3.53785341 | D72: -0.2632567641 | Q72: 0.04086337677 | R72: 64 | S72: 11.93149633 | T72: 7.861716056 | U72: 0 | V72: 0 | W72: 0 | X72: 78.3051477 | Y72: 0 | Z72: 21.6948523 | AA72: 0 | AB72: 0 | AC72: 0 | AD72: 0 | AE72: 0 | AF72: 0 | AG72: 0 | AH72: 0 | AI72: 0 | AJ72: 0 | AK72: 0 | AL72: 0 | AM72: 0 | AN72: 0 | AO72: 0 | AP72: 0 | AQ72: 0 | AR72: 11.93149633 | AS72: 7.567981383
A73: CH-A | B73: 14.61627818 | C73: 8.35833363 | D73: 0.1990386342 | Q73: 0.04079419485 | R73: 65 | S73: 11.89070214 | T73: 7.853833396 | U73: 0 | V73: 0 | W73: 0 | X73: 77.96079188 | Y73: 0 | Z73: 22.03920812 | AA73: 0 | AB73: 0 | AC73: 0 | AD73: 0 | AE73: 0 | AF73: 0 | AG73: 0 | AH73: 0 | AI73: 0 | AJ73: 0 | AK73: 0 | AL73: 0 | AM73: 0 | AN73: 0 | AO73: 0 | AP73: 0 | AQ73: 0 | AR73: 11.89070214 | AS73: 7.560672999
A74: W-A | B74: 16.39612258 | C74: 6.617601276 | D74: 0.07126512287 | Q74: 0.04072429864 | R74: 66 | S74: 11.84997784 | T74: 7.845950735 | U74: 0 | V74: 0 | W74: 0 | X74: 77.61643605 | Y74: 0 | Z74: 22.38356395 | AA74: 0 | AB74: 0 | AC74: 0 | AD74: 0 | AE74: 0 | AF74: 0 | AG74: 0 | AH74: 0 | AI74: 0 | AJ74: 0 | AK74: 0 | AL74: 0 | AM74: 0 | AN74: 0 | AO74: 0 | AP74: 0 | AQ74: 0 | AR74: =S74 -> 11.84997784 | AS74: =(LN(1+(T74/100)))*100 -> 7.55336408
A75: CH-IF | B75: 7.049096634 | C75: 6.069230356 | D75: 0.0879688282 | Q75: =S74-S75 -> 0.04060231107 | R75: 67 | S75: 11.80937553 | T75: 7.838078044 | U75: 0 | V75: 0 | W75: 0 | X75: 77.27251572 | Y75: 0 | Z75: 22.72748428 | AA75: 0 | AB75: 0 | AC75: 0 | AD75: 0 | AE75: 0 | AF75: 0 | AG75: 0 | AH75: 0 | AI75: 0 | AJ75: 0 | AK75: 0 | AL75: 0 | AM75: 0 | AN75: 0 | AO75: 0 | AP75: 0 | AQ75: 0 | AR75: 11.80937553 | AS75: 7.546063872
A76: RS | B76: 15.43274298 | C76: 0.4756732357 | D76: -0.3222665183 | Q76: 0.04058241861 | R76: 68 | S76: 11.76879311 | T76: 7.830195383 | U76: 0 | V76: 0 | W76: 0 | X76: 76.9281599 | Y76: 0 | Z76: 23.0718401 | AA76: 0 | AB76: 0 | AC76: 0 | AD76: 0 | AE76: 0 | AF76: 0 | AG76: 0 | AH76: 0 | AI76: 0 | AJ76: 0 | AK76: 0 | AL76: 0 | AM76: 0 | AN76: 0 | AO76: 0 | AP76: 0 | AQ76: 0 | AR76: 11.76879311 | AS76: 7.538753886
A77: HF | B77: 6.56755441 | C77: 5.449129585 | D77: 0 | Q77: 0.04056151399 | R77: 69 | S77: 11.7282316 | T77: 7.822302754 | U77: 0 | V77: 0 | W77: 0 | X77: 76.58336858 | Y77: 0 | Z77: 23.41663142 | AA77: 0 | AB77: 0 | AC77: 0 | AD77: 0 | AE77: 0 | AF77: 0 | AG77: 0 | AH77: 0 | AI77: 0 | AJ77: 0 | AK77: 0 | AL77: 0 | AM77: 0 | AN77: 0 | AO77: 0 | AP77: 0 | AQ77: 0 | AR77: 11.7282316 | AS77: 7.53143412
A78: 0 | B78: 0 | C78: 0.1200720288 | Q78: 0.04043739511 | R78: 70 | S78: 11.6877942 | T78: 7.814420093 | U78: 0 | V78: 0 | W78: 0 | X78: 76.23901276 | Y78: 0 | Z78: 23.76098724 | AA78: 0 | AB78: 0 | AC78: 0 | AD78: 0 | AE78: 0 | AF78: 0 | AG78: 0 | AH78: 0 | AI78: 0 | AJ78: 0 | AK78: 0 | AL78: 0 | AM78: 0 | AN78: 0 | AO78: 0 | AP78: 0 | AQ78: 0 | AR78: 11.6877942 | AS78: 7.524123064
A79: 0 | B79: 0 | C79: 0.1200720288 | Q79: 0.04031279393 | R79: 71 | S79: 11.64748141 | T79: 7.806547402 | U79: 0 | V79: 0 | W79: 0 | X79: 75.89509244 | Y79: 0 | Z79: 24.10490756 | AA79: 0 | AB79: 0 | AC79: 0 | AD79: 0 | AE79: 0 | AF79: 0 | AG79: 0 | AH79: 0 | AI79: 0 | AJ79: 0 | AK79: 0 | AL79: 0 | AM79: 0 | AN79: 0 | AO79: 0 | AP79: 0 | AQ79: 0 | AR79: 11.64748141 | AS79: 7.516820721
A80: 0 | B80: 0 | C80: 0.1200720288 | Q80: 0.04034042752 | R80: 72 | S80: 11.60714098 | T80: 7.798654773 | U80: 0 | V80: 0 | W80: 0 | X80: 75.55030111 | Y80: 0 | Z80: 24.44969889 | AA80: 0 | AB80: 0 | AC80: 0 | AD80: 0 | AE80: 0 | AF80: 0 | AG80: 0 | AH80: 0 | AI80: 0 | AJ80: 0 | AK80: 0 | AL80: 0 | AM80: 0 | AN80: 0 | AO80: 0 | AP80: 0 | AQ80: 0 | AR80: 11.60714098 | AS80: 7.509499349
A81: 0 | B81: 0 | C81: 0.1200720288 | Q81: 0.04016347064 | R81: 73 | S81: 11.56697751 | T81: 7.790782081 | U81: 0 | V81: 0 | W81: 0 | X81: 75.20638079 | Y81: 0 | Z81: 24.79361921 | AA81: 0 | AB81: 0 | AC81: 0 | AD81: 0 | AE81: 0 | AF81: 0 | AG81: 0 | AH81: 0 | AI81: 0 | AJ81: 0 | AK81: 0 | AL81: 0 | AM81: 0 | AN81: 0 | AO81: 0 | AP81: 0 | AQ81: 0 | AR81: 11.56697751 | AS81: 7.502195938
A82: 0 | B82: 0 | C82: 0.1200720288 | Q82: 0.04013844651 | R82: 74 | S82: 11.52683906 | T82: 7.782899421 | U82: 0 | V82: 0 | W82: 0 | X82: 74.86202497 | Y82: 0 | Z82: 25.13797503 | AA82: 0 | AB82: 0 | AC82: 0 | AD82: 0 | AE82: 0 | AF82: 0 | AG82: 0 | AH82: 0 | AI82: 0 | AJ82: 0 | AK82: 0 | AL82: 0 | AM82: 0 | AN82: 0 | AO82: 0 | AP82: 0 | AQ82: 0 | AR82: 11.52683906 | AS82: 7.494882744
A83: 0 | B83: 0 | C83: 0.1200720288 | Q83: 0.04011233765 | R83: 75 | S83: 11.48672673 | T83: 7.775006791 | U83: 0 | V83: 0 | W83: 0 | X83: 74.51723364 | Y83: 0 | Z83: 25.48276636 | AA83: 0 | AB83: 0 | AC83: 0 | AD83: 0 | AE83: 0 | AF83: 0 | AG83: 0 | AH83: 0 | AI83: 0 | AJ83: 0 | AK83: 0 | AL83: 0 | AM83: 0 | AN83: 0 | AO83: 0 | AP83: 0 | AQ83: 0 | AR83: 11.48672673 | AS83: 7.487559766
A84: 0 | B84: 0 | C84: 0.1200720288 | Q84: 0.0399840898 | R84: 76 | S84: 11.44674264 | T84: 7.767124131 | U84: 0 | V84: 0 | W84: 0 | X84: 74.17287781 | Y84: 0 | Z84: 25.82712219 | AA84: 0 | AB84: 0 | AC84: 0 | AD84: 0 | AE84: 0 | AF84: 0 | AG84: 0 | AH84: 0 | AI84: 0 | AJ84: 0 | AK84: 0 | AL84: 0 | AM84: 0 | AN84: 0 | AO84: 0 | AP84: 0 | AQ84: 0 | AR84: 11.44674264 | AS84: 7.480245502
A85: 0 | B85: 0 | C85: 0.1200720288 | Q85: 0.03990574115 | R85: 77 | S85: 11.40683689 | T85: 7.75924147 | U85: 0 | V85: 0 | W85: 0 | X85: 73.82852199 | Y85: 0 | Z85: 26.17147801 | AA85: 0 | AB85: 0 | AC85: 0 | AD85: 0 | AE85: 0 | AF85: 0 | AG85: 0 | AH85: 0 | AI85: 0 | AJ85: 0 | AK85: 0 | AL85: 0 | AM85: 0 | AN85: 0 | AO85: 0 | AP85: 0 | AQ85: 0 | AR85: 11.40683689 | AS85: 7.472930702
A86: 0 | B86: 0 | C86: 0.1200720288 | Q86: 0.03982656753 | R86: 78 | S86: 11.36701033 | T86: 7.75135881 | U86: 0 | V86: 0 | W86: 0 | X86: 73.48416616 | Y86: 0 | Z86: 26.51583384 | AA86: 0 | AB86: 0 | AC86: 0 | AD86: 0 | AE86: 0 | AF86: 0 | AG86: 0 | AH86: 0 | AI86: 0 | AJ86: 0 | AK86: 0 | AL86: 0 | AM86: 0 | AN86: 0 | AO86: 0 | AP86: 0 | AQ86: 0 | AR86: 11.36701033 | AS86: 7.465615368
A87: 0 | B87: 0 | C87: 0.1200720288 | Q87: 0.03974655879 | R87: 79 | S87: 11.32726377 | T87: 7.743476149 | U87: 0 | V87: 0 | W87: 0 | X87: 73.13981034 | Y87: 0 | Z87: 26.86018966 | AA87: 0 | AB87: 0 | AC87: 0 | AD87: 0 | AE87: 0 | AF87: 0 | AG87: 0 | AH87: 0 | AI87: 0 | AJ87: 0 | AK87: 0 | AL87: 0 | AM87: 0 | AN87: 0 | AO87: 0 | AP87: 0 | AQ87: 0 | AR87: 11.32726377 | AS87: 7.458299499
A88: 0 | B88: 0 | C88: 0.1200720288 | Q88: 0.0396155889 | R88: 80 | S88: 11.28764818 | T88: 7.735603459 | U88: 0 | V88: 0 | W88: 0 | X88: 72.79589004 | Y88: 0 | Z88: 27.20410996 | AA88: 0 | AB88: 0 | AC88: 0 | AD88: 0 | AE88: 0 | AF88: 0 | AG88: 0 | AH88: 0 | AI88: 0 | AJ88: 0 | AK88: 0 | AL88: 0 | AM88: 0 | AN88: 0 | AO88: 0 | AP88: 0 | AQ88: 0 | AR88: 11.28764818 | AS88: 7.450992348
A89: 0 | B89: 0 | C89: 0.1200720288 | Q89: 0.0396341113 | R89: 81 | S89: 11.24801407 | T89: 7.727710828 | U89: 0 | V89: 0 | W89: 0 | X89: 72.45109869 | Y89: 0 | Z89: 27.54890131 | AA89: 0 | AB89: 0 | AC89: 0 | AD89: 0 | AE89: 0 | AF89: 0 | AG89: 0 | AH89: 0 | AI89: 0 | AJ89: 0 | AK89: 0 | AL89: 0 | AM89: 0 | AN89: 0 | AO89: 0 | AP89: 0 | AQ89: 0 | AR89: 11.24801407 | AS89: 7.443666154
A90: 0 | B90: 0 | C90: 0.1200720288 | Q90: 0.03950142071 | R90: 82 | S90: 11.20851265 | T90: 7.719828168 | U90: 0 | V90: 0 | W90: 0 | X90: 72.10674286 | Y90: 0 | Z90: 27.89325714 | AA90: 0 | AB90: 0 | AC90: 0 | AD90: 0 | AE90: 0 | AF90: 0 | AG90: 0 | AH90: 0 | AI90: 0 | AJ90: 0 | AK90: 0 | AL90: 0 | AM90: 0 | AN90: 0 | AO90: 0 | AP90: 0 | AQ90: 0 | AR90: 11.20851265 | AS90: 7.436348678
A91: 0 | B91: 0 | C91: 0.1200720288 | Q91: 0.03936816752 | R91: 83 | S91: 11.16914448 | T91: 7.711955477 | U91: 0 | V91: 0 | W91: 0 | X91: 71.76282257 | Y91: 0 | Z91: 28.23717743 | AA91: 0 | AB91: 0 | AC91: 0 | AD91: 0 | AE91: 0 | AF91: 0 | AG91: 0 | AH91: 0 | AI91: 0 | AJ91: 0 | AK91: 0 | AL91: 0 | AM91: 0 | AN91: 0 | AO91: 0 | AP91: 0 | AQ91: 0 | AR91: 11.16914448 | AS91: 7.429039923
A92: 0 | B92: 0 | C92: 0.1200720288 | Q92: 0.03933373852 | R92: 84 | S92: 11.12981074 | T92: 7.704072817 | U92: 0 | V92: 0 | W92: 0 | X92: 71.41846675 | Y92: 0 | Z92: 28.58153325 | AA92: 0 | AB92: 0 | AC92: 0 | AD92: 0 | AE92: 0 | AF92: 0 | AG92: 0 | AH92: 0 | AI92: 0 | AJ92: 0 | AK92: 0 | AL92: 0 | AM92: 0 | AN92: 0 | AO92: 0 | AP92: 0 | AQ92: 0 | AR92: 11.12981074 | AS92: 7.421721377
Q93: 0.03929809119 | R93: 85 | S93: 11.09051265 | T93: 7.696180187 | U93: 0 | V93: 0 | W93: 0 | X93: 71.07367539 | Y93: 0 | Z93: 28.92632461 | AA93: 0 | AB93: 0 | AC93: 0 | AD93: 0 | AE93: 0 | AF93: 0 | AG93: 0 | AH93: 0 | AI93: 0 | AJ93: 0 | AK93: 0 | AL93: 0 | AM93: 0 | AN93: 0 | AO93: 0 | AP93: 0 | AQ93: 0 | AR93: 11.09051265 | AS93: 7.414393038
Q94: 0.03916225335 | R94: 86 | S94: 11.0513504 | T94: 7.688297526 | U94: 0 | V94: 0 | W94: 0 | X94: 70.72931957 | Y94: 0 | Z94: 29.27068043 | AA94: 0 | AB94: 0 | AC94: 0 | AD94: 0 | AE94: 0 | AF94: 0 | AG94: 0 | AH94: 0 | AI94: 0 | AJ94: 0 | AK94: 0 | AL94: 0 | AM94: 0 | AN94: 0 | AO94: 0 | AP94: 0 | AQ94: 0 | AR94: 11.0513504 | AS94: 7.40707342
Q95: 0.03907519076 | R95: 87 | S95: 11.01227521 | T95: 7.680414866 | U95: 0 | V95: 0 | W95: 0 | X95: 70.38496374 | Y95: 0 | Z95: 29.61503626 | AA95: 0 | AB95: 0 | AC95: 0 | AD95: 0 | AE95: 0 | AF95: 0 | AG95: 0 | AH95: 0 | AI95: 0 | AJ95: 0 | AK95: 0 | AL95: 0 | AM95: 0 | AN95: 0 | AO95: 0 | AP95: 0 | AQ95: 0 | AR95: 11.01227521 | AS95: 7.399753267
B96: 0.008368516289 | C96: 0.003809326172 | Q96: 0.03898719815 | R96: 88 | S96: 10.97328801 | T96: 7.672532205 | U96: 0 | V96: 0 | W96: 0 | X96: 70.04060792 | Y96: 0 | Z96: 29.95939208 | AA96: 0 | AB96: 0 | AC96: 0 | AD96: 0 | AE96: 0 | AF96: 0 | AG96: 0 | AH96: 0 | AI96: 0 | AJ96: 0 | AK96: 0 | AL96: 0 | AM96: 0 | AN96: 0 | AO96: 0 | AP96: 0 | AQ96: 0 | AR96: 10.97328801 | AS96: 7.392432577
B97: 0.03550664214 | C97: 0.02756296463 | Q97: 0.03889826455 | R97: 89 | S97: 10.93438974 | T97: 7.664649545 | U97: 0 | V97: 0 | W97: 0 | X97: 69.6962521 | Y97: 0 | Z97: 30.3037479 | AA97: 0 | AB97: 0 | AC97: 0 | AD97: 0 | AE97: 0 | AF97: 0 | AG97: 0 | AH97: 0 | AI97: 0 | AJ97: 0 | AK97: 0 | AL97: 0 | AM97: 0 | AN97: 0 | AO97: 0 | AP97: 0 | AQ97: 0 | AR97: 10.93438974 | AS97: 7.385111351
B98: 0.0353785341 | C98: 0.0726012181 | Q98: 0.03880837844 | R98: 90 | S98: 10.89558137 | T98: 7.656766885 | U98: 0 | V98: 0 | W98: 0 | X98: 69.35189628 | Y98: 0 | Z98: 30.64810372 | AA98: 0 | AB98: 0 | AC98: 0 | AD98: 0 | AE98: 0 | AF98: 0 | AG98: 0 | AH98: 0 | AI98: 0 | AJ98: 0 | AK98: 0 | AL98: 0 | AM98: 0 | AN98: 0 | AO98: 0 | AP98: 0 | AQ98: 0 | AR98: 10.89558137 | AS98: 7.37778959
B99: 0.0835833363 | C99: 0.1461627818 | Q99: 0.03871752842 | R99: 91 | S99: 10.85686384 | T99: 7.648884224 | U99: 0 | V99: 0 | W99: 0 | X99: 69.00754046 | Y99: 0 | Z99: 30.99245954 | AA99: 0 | AB99: 0 | AC99: 0 | AD99: 0 | AE99: 0 | AF99: 0 | AG99: 0 | AH99: 0 | AI99: 0 | AJ99: 0 | AK99: 0 | AL99: 0 | AM99: 0 | AN99: 0 | AO99: 0 | AP99: 0 | AQ99: 0 | AR99: 10.85686384 | AS99: 7.370467292
B100: 0.06617601276 | C100: 0.1639612258 | Q100: 0.03862570297 | R100: 92 | S100: 10.81823813 | T100: 7.641001564 | U100: 0 | V100: 0 | W100: 0 | X100: 68.66318463 | Y100: 0 | Z100: 31.33681537 | AA100: 0 | AB100: 0 | AC100: 0 | AD100: 0 | AE100: 0 | AF100: 0 | AG100: 0 | AH100: 0 | AI100: 0 | AJ100: 0 | AK100: 0 | AL100: 0 | AM100: 0 | AN100: 0 | AO100: 0 | AP100: 0 | AQ100: 0 | AR100: 10.81823813 | AS100: 7.363144458
B101: 0.06069230356 | C101: 0.07049096634 | Q101: 0.03853289044 | R101: 93 | S101: 10.77970524 | T101: 7.633118903 | U101: 0 | V101: 0 | W101: 0 | X101: 68.31882881 | Y101: 0 | Z101: 31.68117119 | AA101: 0 | AB101: 0 | AC101: 0 | AD101: 0 | AE101: 0 | AF101: 0 | AG101: 0 | AH101: 0 | AI101: 0 | AJ101: 0 | AK101: 0 | AL101: 0 | AM101: 0 | AN101: 0 | AO101: 0 | AP101: 0 | AQ101: 0 | AR101: 10.77970524 | AS101: 7.355821088
B102: 0.004756732357 | C102: 0.1543274298 | Q102: 0.03843907905 | R102: 94 | S102: 10.74126616 | T102: 7.625236243 | U102: 0 | V102: 0 | W102: 0 | X102: 67.97447299 | Y102: 0 | Z102: 32.02552701 | AA102: 0 | AB102: 0 | AC102: 0 | AD102: 0 | AE102: 0 | AF102: 0 | AG102: 0 | AH102: 0 | AI102: 0 | AJ102: 0 | AK102: 0 | AL102: 0 | AM102: 0 | AN102: 0 | AO102: 0 | AP102: 0 | AQ102: 0 | AR102: 10.74126616 | AS102: 7.348497181
B103: 0.05449129585 | C103: 0.0656755441 | Q103: 0.03829581929 | R103: 95 | S103: 10.70297034 | T103: 7.617363553 | U103: 0 | V103: 0 | W103: 0 | X103: 67.63055271 | Y103: 0 | Z103: 32.36944729 | AA103: 0 | AB103: 0 | AC103: 0 | AD103: 0 | AE103: 0 | AF103: 0 | AG103: 0 | AH103: 0 | AI103: 0 | AJ103: 0 | AK103: 0 | AL103: 0 | AM103: 0 | AN103: 0 | AO103: 0 | AP103: 0 | AQ103: 0 | AR103: 10.70297034 | AS103: 7.341182003
Q104: 0.03829684939 | R104: 96 | S104: 10.6646735 | T104: 7.609470922 | U104: 0 | V104: 0 | W104: 0 | X104: 67.28576135 | Y104: 0 | Z104: 32.71423865 | AA104: 0 | AB104: 0 | AC104: 0 | AD104: 0 | AE104: 0 | AF104: 0 | AG104: 0 | AH104: 0 | AI104: 0 | AJ104: 0 | AK104: 0 | AL104: 0 | AM104: 0 | AN104: 0 | AO104: 0 | AP104: 0 | AQ104: 0 | AR104: 10.6646735 | AS104: 7.333847759
Q105: 0.03810333977 | R105: 97 | S105: 10.62657016 | T105: 7.601598232 | U105: 0 | V105: 0 | W105: 0 | X105: 66.94184107 | Y105: 0 | Z105: 33.05815893 | AA105: 0 | AB105: 0 | AC105: 0 | AD105: 0 | AE105: 0 | AF105: 0 | AG105: 0 | AH105: 0 | AI105: 0 | AJ105: 0 | AK105: 0 | AL105: 0 | AM105: 0 | AN105: 0 | AO105: 0 | AP105: 0 | AQ105: 0 | AR105: 10.62657016 | AS105: 7.326531508
Q106: 0.03810179734 | R106: 98 | S106: 10.58846836 | T106: 7.593705601 | U106: 0 | V106: 0 | W106: 0 | X106: 66.59704971 | Y106: 0 | Z106: 33.40295029 | AA106: 0 | AB106: 0 | AC106: 0 | AD106: 0 | AE106: 0 | AF106: 0 | AG106: 0 | AH106: 0 | AI106: 0 | AJ106: 0 | AK106: 0 | AL106: 0 | AM106: 0 | AN106: 0 | AO106: 0 | AP106: 0 | AQ106: 0 | AR106: 10.58846836 | AS106: 7.31919619
Q107: 0.03795461851 | R107: 99 | S107: 10.55051374 | T107: 7.585822941 | U107: 0 | V107: 0 | W107: 0 | X107: 66.25269388 | Y107: 0 | Z107: 33.74730612 | AA107: 0 | AB107: 0 | AC107: 0 | AD107: 0 | AE107: 0 | AF107: 0 | AG107: 0 | AH107: 0 | AI107: 0 | AJ107: 0 | AK107: 0 | AL107: 0 | AM107: 0 | AN107: 0 | AO107: 0 | AP107: 0 | AQ107: 0 | AR107: 10.55051374 | AS107: 7.311869601
Q108: 0.0378545595 | R108: 100 | S108: 10.51265918 | T108: 7.577940281 | U108: 0 | V108: 0 | W108: 0 | X108: 65.90833806 | Y108: 0 | Z108: 34.09166194 | AA108: 0 | AB108: 0 | AC108: 0 | AD108: 0 | AE108: 0 | AF108: 0 | AG108: 0 | AH108: 0 | AI108: 0 | AJ108: 0 | AK108: 0 | AL108: 0 | AM108: 0 | AN108: 0 | AO108: 0 | AP108: 0 | AQ108: 0 | AR108: 10.51265918 | AS108: 7.304542474
Q109: 0.0377057297 | R109: 101 | S109: 10.47495345 | T109: 7.57006759 | U109: 0 | V109: 0 | W109: 0 | X109: 65.56441778 | Y109: 0 | Z109: 34.43558222 | AA109: 0 | AB109: 0 | AC109: 0 | AD109: 0 | AE109: 0 | AF109: 0 | AG109: 0 | AH109: 0 | AI109: 0 | AJ109: 0 | AK109: 0 | AL109: 0 | AM109: 0 | AN109: 0 | AO109: 0 | AP109: 0 | AQ109: 0 | AR109: 10.47495345 | AS109: 7.297224079
Q110: 0.03765130475 | R110: 102 | S110: 10.43730215 | T110: 7.56218493 | U110: 0 | V110: 0 | W110: 0 | X110: 65.22006196 | Y110: 0 | Z110: 34.77993804 | AA110: 0 | AB110: 0 | AC110: 0 | AD110: 0 | AE110: 0 | AF110: 0 | AG110: 0 | AH110: 0 | AI110: 0 | AJ110: 0 | AK110: 0 | AL110: 0 | AM110: 0 | AN110: 0 | AO110: 0 | AP110: 0 | AQ110: 0 | AR110: 10.43730215 | AS110: 7.28989588
Q111: 0.03759537905 | R111: 103 | S111: 10.39970677 | T111: 7.5542923 | U111: 0 | V111: 0 | W111: 0 | X111: 64.8752706 | Y111: 0 | Z111: 35.1247294 | AA111: 0 | AB111: 0 | AC111: 0 | AD111: 0 | AE111: 0 | AF111: 0 | AG111: 0 | AH111: 0 | AI111: 0 | AJ111: 0 | AK111: 0 | AL111: 0 | AM111: 0 | AN111: 0 | AO111: 0 | AP111: 0 | AQ111: 0 | AR111: 10.39970677 | AS111: 7.282557873
Q112: 0.03744334812 | R112: 104 | S112: 10.36226342 | T112: 7.546409639 | U112: 0 | V112: 0 | W112: 0 | X112: 64.53091477 | Y112: 0 | Z112: 35.46908523 | AA112: 0 | AB112: 0 | AC112: 0 | AD112: 0 | AE112: 0 | AF112: 0 | AG112: 0 | AH112: 0 | AI112: 0 | AJ112: 0 | AK112: 0 | AL112: 0 | AM112: 0 | AN112: 0 | AO112: 0 | AP112: 0 | AQ112: 0 | AR112: 10.36226342 | AS112: 7.275228599
Q113: 0.03729057865 | R113: 105 | S113: 10.32497284 | T113: 7.538536949 | U113: 0 | V113: 0 | W113: 0 | X113: 64.18699449 | Y113: 0 | Z113: 35.81300551 | AA113: 0 | AB113: 0 | AC113: 0 | AD113: 0 | AE113: 0 | AF113: 0 | AG113: 0 | AH113: 0 | AI113: 0 | AJ113: 0 | AK113: 0 | AL113: 0 | AM113: 0 | AN113: 0 | AO113: 0 | AP113: 0 | AQ113: 0 | AR113: 10.32497284 | AS113: 7.267908058
Q114: 0.03727813186 | R114: 106 | S114: 10.28769471 | T114: 7.530644318 | U114: 0 | V114: 0 | W114: 0 | X114: 63.84220313 | Y114: 0 | Z114: 36.15779687 | AA114: 0 | AB114: 0 | AC114: 0 | AD114: 0 | AE114: 0 | AF114: 0 | AG114: 0 | AH114: 0 | AI114: 0 | AJ114: 0 | AK114: 0 | AL114: 0 | AM114: 0 | AN114: 0 | AO114: 0 | AP114: 0 | AQ114: 0 | AR114: 10.28769471 | AS114: 7.260568438
Q115: 0.0371230497 | R115: 107 | S115: 10.25057166 | T115: 7.522761658 | U115: 0 | V115: 0 | W115: 0 | X115: 63.49784731 | Y115: 0 | Z115: 36.50215269 | AA115: 0 | AB115: 0 | AC115: 0 | AD115: 0 | AE115: 0 | AF115: 0 | AG115: 0 | AH115: 0 | AI115: 0 | AJ115: 0 | AK115: 0 | AL115: 0 | AM115: 0 | AN115: 0 | AO115: 0 | AP115: 0 | AQ115: 0 | AR115: 10.25057166 | AS115: 7.253237552
Q116: 0.03701394772 | R116: 108 | S116: 10.21355771 | T116: 7.514878998 | U116: 0 | V116: 0 | W116: 0 | X116: 63.15349149 | Y116: 0 | Z116: 36.84650851 | AA116: 0 | AB116: 0 | AC116: 0 | AD116: 0 | AE116: 0 | AF116: 0 | AG116: 0 | AH116: 0 | AI116: 0 | AJ116: 0 | AK116: 0 | AL116: 0 | AM116: 0 | AN116: 0 | AO116: 0 | AP116: 0 | AQ116: 0 | AR116: 10.21355771 | AS116: 7.245906128
Q117: 0.03685705001 | R117: 109 | S117: 10.17670066 | T117: 7.507006307 | U117: 0 | V117: 0 | W117: 0 | X117: 62.80957121 | Y117: 0 | Z117: 37.19042879 | AA117: 0 | AB117: 0 | AC117: 0 | AD117: 0 | AE117: 0 | AF117: 0 | AG117: 0 | AH117: 0 | AI117: 0 | AJ117: 0 | AK117: 0 | AL117: 0 | AM117: 0 | AN117: 0 | AO117: 0 | AP117: 0 | AQ117: 0 | AR117: 10.17670066 | AS117: 7.238583441
Q118: 0.03683876429 | R118: 110 | S118: 10.1398619 | T118: 7.499113677 | U118: 0 | V118: 0 | W118: 0 | X118: 62.46477984 | Y118: 0 | Z118: 37.53522016 | AA118: 0 | AB118: 0 | AC118: 0 | AD118: 0 | AE118: 0 | AF118: 0 | AG118: 0 | AH118: 0 | AI118: 0 | AJ118: 0 | AK118: 0 | AL118: 0 | AM118: 0 | AN118: 0 | AO118: 0 | AP118: 0 | AQ118: 0 | AR118: 10.1398619 | AS118: 7.231241668
Q119: 0.03667944461 | R119: 111 | S119: 10.10318245 | T119: 7.491231016 | U119: 0 | V119: 0 | W119: 0 | X119: 62.12042402 | Y119: 0 | Z119: 37.87957598 | AA119: 0 | AB119: 0 | AC119: 0 | AD119: 0 | AE119: 0 | AF119: 0 | AG119: 0 | AH119: 0 | AI119: 0 | AJ119: 0 | AK119: 0 | AL119: 0 | AM119: 0 | AN119: 0 | AO119: 0 | AP119: 0 | AQ119: 0 | AR119: 10.10318245 | AS119: 7.223908631
Q120: 0.0365654978 | R120: 112 | S120: 10.06661695 | T120: 7.483348356 | U120: 0 | V120: 0 | W120: 0 | X120: 61.7760682 | Y120: 0 | Z120: 38.2239318 | AA120: 0 | AB120: 0 | AC120: 0 | AD120: 0 | AE120: 0 | AF120: 0 | AG120: 0 | AH120: 0 | AI120: 0 | AJ120: 0 | AK120: 0 | AL120: 0 | AM120: 0 | AN120: 0 | AO120: 0 | AP120: 0 | AQ120: 0 | AR120: 10.06661695 | AS120: 7.216575057
Q121: 0.03645030496 | R121: 113 | S121: 10.03016665 | T121: 7.475465696 | U121: 0 | V121: 0 | W121: 0 | X121: 61.43171238 | Y121: 0 | Z121: 38.56828762 | AA121: 0 | AB121: 0 | AC121: 0 | AD121: 0 | AE121: 0 | AF121: 0 | AG121: 0 | AH121: 0 | AI121: 0 | AJ121: 0 | AK121: 0 | AL121: 0 | AM121: 0 | AN121: 0 | AO121: 0 | AP121: 0 | AQ121: 0 | AR121: 10.03016665 | AS121: 7.209240944
Q122: 0.03633385169 | R122: 114 | S122: 9.993832798 | T122: 7.467583035 | U122: 0 | V122: 0 | W122: 0 | X122: 61.08735656 | Y122: 0 | Z122: 38.91264344 | AA122: 0 | AB122: 0 | AC122: 0 | AD122: 0 | AE122: 0 | AF122: 0 | AG122: 0 | AH122: 0 | AI122: 0 | AJ122: 0 | AK122: 0 | AL122: 0 | AM122: 0 | AN122: 0 | AO122: 0 | AP122: 0 | AQ122: 0 | AR122: 9.993832798 | AS122: 7.201906294
Q123: 0.03621612367 | R123: 115 | S123: 9.957616674 | T123: 7.459700375 | U123: 0 | V123: 0 | W123: 0 | X123: 60.74300073 | Y123: 0 | Z123: 39.25699927 | AA123: 0 | AB123: 0 | AC123: 0 | AD123: 0 | AE123: 0 | AF123: 0 | AG123: 0 | AH123: 0 | AI123: 0 | AJ123: 0 | AK123: 0 | AL123: 0 | AM123: 0 | AN123: 0 | AO123: 0 | AP123: 0 | AQ123: 0 | AR123: 9.957616674 | AS123: 7.194571106
Q124: 0.03609710644 | R124: 116 | S124: 9.921519567 | T124: 7.451817714 | U124: 0 | V124: 0 | W124: 0 | X124: 60.39864491 | Y124: 0 | Z124: 39.60135509 | AA124: 0 | AB124: 0 | AC124: 0 | AD124: 0 | AE124: 0 | AF124: 0 | AG124: 0 | AH124: 0 | AI124: 0 | AJ124: 0 | AK124: 0 | AL124: 0 | AM124: 0 | AN124: 0 | AO124: 0 | AP124: 0 | AQ124: 0 | AR124: 9.921519567 | AS124: 7.18723538
Q125: 0.03597678542 | R125: 117 | S125: 9.885542782 | T125: 7.443935054 | U125: 0 | V125: 0 | W125: 0 | X125: 60.05428909 | Y125: 0 | Z125: 39.94571091 | AA125: 0 | AB125: 0 | AC125: 0 | AD125: 0 | AE125: 0 | AF125: 0 | AG125: 0 | AH125: 0 | AI125: 0 | AJ125: 0 | AK125: 0 | AL125: 0 | AM125: 0 | AN125: 0 | AO125: 0 | AP125: 0 | AQ125: 0 | AR125: 9.885542782 | AS125: 7.179899115
Q126: 0.03580987403 | R126: 118 | S126: 9.849732908 | T126: 7.436062364 | U126: 0 | V126: 0 | W126: 0 | X126: 59.71036881 | Y126: 0 | Z126: 40.28963119 | AA126: 0 | AB126: 0 | AC126: 0 | AD126: 0 | AE126: 0 | AF126: 0 | AG126: 0 | AH126: 0 | AI126: 0 | AJ126: 0 | AK126: 0 | AL126: 0 | AM126: 0 | AN126: 0 | AO126: 0 | AP126: 0 | AQ126: 0 | AR126: 9.849732908 | AS126: 7.172571592
Q127: 0.03577744505 | R127: 119 | S127: 9.813955463 | T127: 7.428169733 | U127: 0 | V127: 0 | W127: 0 | X127: 59.36557745 | Y127: 0 | Z127: 40.63442255 | AA127: 0 | AB127: 0 | AC127: 0 | AD127: 0 | AE127: 0 | AF127: 0 | AG127: 0 | AH127: 0 | AI127: 0 | AJ127: 0 | AK127: 0 | AL127: 0 | AM127: 0 | AN127: 0 | AO127: 0 | AP127: 0 | AQ127: 0 | AR127: 9.813955463 | AS127: 7.165224971
Q128: 0.03556289524 | R128: 120 | S128: 9.778392568 | T128: 7.420297043 | U128: 0 | V128: 0 | W128: 0 | X128: 59.02165716 | Y128: 0 | Z128: 40.97834284 | AA128: 0 | AB128: 0 | AC128: 0 | AD128: 0 | AE128: 0 | AF128: 0 | AG128: 0 | AH128: 0 | AI128: 0 | AJ128: 0 | AK128: 0 | AL128: 0 | AM128: 0 | AN128: 0 | AO128: 0 | AP128: 0 | AQ128: 0 | AR128: 9.778392568 | AS128: 7.157896373
Q129: 0.03552712586 | R129: 121 | S129: 9.742865442 | T129: 7.412404412 | U129: 0 | V129: 0 | W129: 0 | X129: 58.67686581 | Y129: 0 | Z129: 41.32313419 | AA129: 0 | AB129: 0 | AC129: 0 | AD129: 0 | AE129: 0 | AF129: 0 | AG129: 0 | AH129: 0 | AI129: 0 | AJ129: 0 | AK129: 0 | AL129: 0 | AM129: 0 | AN129: 0 | AO129: 0 | AP129: 0 | AQ129: 0 | AR129: 9.742865442 | AS129: 7.150548674
Q130: 0.03535510673 | R130: 122 | S130: 9.707510335 | T130: 7.404521752 | U130: 0 | V130: 0 | W130: 0 | X130: 58.33250998 | Y130: 0 | Z130: 41.66749002 | AA130: 0 | AB130: 0 | AC130: 0 | AD130: 0 | AE130: 0 | AF130: 0 | AG130: 0 | AH130: 0 | AI130: 0 | AJ130: 0 | AK130: 0 | AL130: 0 | AM130: 0 | AN130: 0 | AO130: 0 | AP130: 0 | AQ130: 0 | AR130: 9.707510335 | AS130: 7.143209717
Q131: 0.03522665116 | R131: 123 | S131: 9.672283684 | T131: 7.396639092 | U131: 0 | V131: 0 | W131: 0 | X131: 57.98815416 | Y131: 0 | Z131: 42.01184584 | AA131: 0 | AB131: 0 | AC131: 0 | AD131: 0 | AE131: 0 | AF131: 0 | AG131: 0 | AH131: 0 | AI131: 0 | AJ131: 0 | AK131: 0 | AL131: 0 | AM131: 0 | AN131: 0 | AO131: 0 | AP131: 0 | AQ131: 0 | AR131: 9.672283684 | AS131: 7.135870222
Q132: 0.03505247971 | R132: 124 | S132: 9.637231204 | T132: 7.388766401 | U132: 0 | V132: 0 | W132: 0 | X132: 57.64423388 | Y132: 0 | Z132: 42.35576612 | AA132: 0 | AB132: 0 | AC132: 0 | AD132: 0 | AE132: 0 | AF132: 0 | AG132: 0 | AH132: 0 | AI132: 0 | AJ132: 0 | AK132: 0 | AL132: 0 | AM132: 0 | AN132: 0 | AO132: 0 | AP132: 0 | AQ132: 0 | AR132: 9.637231204 | AS132: 7.128539472
Q133: 0.0350098064 | R133: 125 | S133: 9.602221398 | T133: 7.380873771 | U133: 0 | V133: 0 | W133: 0 | X133: 57.29944252 | Y133: 0 | Z133: 42.70055748 | AA133: 0 | AB133: 0 | AC133: 0 | AD133: 0 | AE133: 0 | AF133: 0 | AG133: 0 | AH133: 0 | AI133: 0 | AJ133: 0 | AK133: 0 | AL133: 0 | AM133: 0 | AN133: 0 | AO133: 0 | AP133: 0 | AQ133: 0 | AR133: 9.602221398 | AS133: 7.121189616
Q134: 0.03483277185 | R134: 126 | S134: 9.567388626 | T134: 7.37299111 | U134: 0 | V134: 0 | W134: 0 | X134: 56.9550867 | Y134: 0 | Z134: 43.0449133 | AA134: 0 | AB134: 0 | AC134: 0 | AD134: 0 | AE134: 0 | AF134: 0 | AG134: 0 | AH134: 0 | AI134: 0 | AJ134: 0 | AK134: 0 | AL134: 0 | AM134: 0 | AN134: 0 | AO134: 0 | AP134: 0 | AQ134: 0 | AR134: 9.567388626 | AS134: 7.113848504
Q135: 0.03469858927 | R135: 127 | S135: 9.532690037 | T135: 7.36510845 | U135: 0 | V135: 0 | W135: 0 | X135: 56.61073087 | Y135: 0 | Z135: 43.38926913 | AA135: 0 | AB135: 0 | AC135: 0 | AD135: 0 | AE135: 0 | AF135: 0 | AG135: 0 | AH135: 0 | AI135: 0 | AJ135: 0 | AK135: 0 | AL135: 0 | AM135: 0 | AN135: 0 | AO135: 0 | AP135: 0 | AQ135: 0 | AR135: 9.532690037 | AS135: 7.106506854
Q136: 0.03451930781 | R136: 128 | S136: 9.498170729 | T136: 7.35723576 | U136: 0 | V136: 0 | W136: 0 | X136: 56.26681059 | Y136: 0 | Z136: 43.73318941 | AA136: 0 | AB136: 0 | AC136: 0 | AD136: 0 | AE136: 0 | AF136: 0 | AG136: 0 | AH136: 0 | AI136: 0 | AJ136: 0 | AK136: 0 | AL136: 0 | AM136: 0 | AN136: 0 | AO136: 0 | AP136: 0 | AQ136: 0 | AR136: 9.498170729 | AS136: 7.099173951
Q137: 0.0344259714 | R137: 129 | S137: 9.463744757 | T137: 7.349353099 | U137: 0 | V137: 0 | W137: 0 | X137: 55.92245477 | Y137: 0 | Z137: 44.07754523 | AA137: 0 | AB137: 0 | AC137: 0 | AD137: 0 | AE137: 0 | AF137: 0 | AG137: 0 | AH137: 0 | AI137: 0 | AJ137: 0 | AK137: 0 | AL137: 0 | AM137: 0 | AN137: 0 | AO137: 0 | AP137: 0 | AQ137: 0 | AR137: 9.463744757 | AS137: 7.091831223
Q138: 0.03433060954 | R138: 130 | S138: 9.429414148 | T138: 7.341460469 | U138: 0 | V138: 0 | W138: 0 | X138: 55.57766341 | Y138: 0 | Z138: 44.42233659 | AA138: 0 | AB138: 0 | AC138: 0 | AD138: 0 | AE138: 0 | AF138: 0 | AG138: 0 | AH138: 0 | AI138: 0 | AJ138: 0 | AK138: 0 | AL138: 0 | AM138: 0 | AN138: 0 | AO138: 0 | AP138: 0 | AQ138: 0 | AR138: =S138 -> 9.429414148 | AS138: =(LN(1+(T138/100)))*100 -> 7.084478668
Q139: =S138-S139 -> 0.03410389715 | R139: 131 | S139: 9.395310251 | T139: 7.333587778 | U139: 0 | V139: 0 | W139: 0 | X139: 55.23374312 | Y139: 0 | Z139: 44.76625688 | AA139: 0 | AB139: 0 | AC139: 0 | AD139: 0 | AE139: 0 | AF139: 0 | AG139: 0 | AH139: 0 | AI139: 0 | AJ139: 0 | AK139: 0 | AL139: 0 | AM139: 0 | AN139: 0 | AO139: 0 | AP139: 0 | AQ139: 0 | AR139: 9.395310251 | AS139: 7.077144149
Q140: 0.03400548369 | R140: 132 | S140: 9.361304767 | T140: 7.325705118 | U140: 0 | V140: 0 | W140: 0 | X140: 54.8893873 | Y140: 0 | Z140: 45.1106127 | AA140: 0 | AB140: 0 | AC140: 0 | AD140: 0 | AE140: 0 | AF140: 0 | AG140: 0 | AH140: 0 | AI140: 0 | AJ140: 0 | AK140: 0 | AL140: 0 | AM140: 0 | AN140: 0 | AO140: 0 | AP140: 0 | AQ140: 0 | AR140: 9.361304767 | AS140: 7.069799803
Q141: 0.03390497987 | R141: 133 | S141: 9.327399787 | T141: 7.317812488 | U141: 0 | V141: 0 | W141: 0 | X141: 54.54459595 | Y141: 0 | Z141: 45.45540405 | AA141: 0 | AB141: 0 | AC141: 0 | AD141: 0 | AE141: 0 | AF141: 0 | AG141: 0 | AH141: 0 | AI141: 0 | AJ141: 0 | AK141: 0 | AL141: 0 | AM141: 0 | AN141: 0 | AO141: 0 | AP141: 0 | AQ141: 0 | AR141: 9.327399787 | AS141: 7.062445628
Q142: 0.03371725249 | R142: 134 | S142: 9.293682535 | T142: 7.309929827 | U142: 0 | V142: 0 | W142: 0 | X142: 54.20024012 | Y142: 0 | Z142: 45.79975988 | AA142: 0 | AB142: 0 | AC142: 0 | AD142: 0 | AE142: 0 | AF142: 0 | AG142: 0 | AH142: 0 | AI142: 0 | AJ142: 0 | AK142: 0 | AL142: 0 | AM142: 0 | AN142: 0 | AO142: 0 | AP142: 0 | AQ142: 0 | AR142: 9.293682535 | AS142: 7.055100203
Q143: 0.03357086209 | R143: 135 | S143: 9.260111673 | T143: 7.302047167 | U143: 0 | V143: 0 | W143: 0 | X143: 53.8558843 | Y143: 0 | Z143: 46.1441157 | AA143: 0 | AB143: 0 | AC143: 0 | AD143: 0 | AE143: 0 | AF143: 0 | AG143: 0 | AH143: 0 | AI143: 0 | AJ143: 0 | AK143: 0 | AL143: 0 | AM143: 0 | AN143: 0 | AO143: 0 | AP143: 0 | AQ143: 0 | AR143: 9.260111673 | AS143: 7.047754238
Q144: 0.03342287395 | R144: 136 | S144: 9.226688799 | T144: 7.294164507 | U144: 0 | V144: 0 | W144: 0 | X144: 53.51152848 | Y144: 0 | Z144: 46.48847152 | AA144: 0 | AB144: 0 | AC144: 0 | AD144: 0 | AE144: 0 | AF144: 0 | AG144: 0 | AH144: 0 | AI144: 0 | AJ144: 0 | AK144: 0 | AL144: 0 | AM144: 0 | AN144: 0 | AO144: 0 | AP144: 0 | AQ144: 0 | AR144: 9.226688799 | AS144: 7.040407733
Q145: 0.03327327176 | R145: 137 | S145: 9.193415527 | T145: 7.286281846 | U145: 0 | V145: 0 | W145: 0 | X145: 53.16717266 | Y145: 0 | Z145: 46.83282734 | AA145: 0 | AB145: 0 | AC145: 0 | AD145: 0 | AE145: 0 | AF145: 0 | AG145: 0 | AH145: 0 | AI145: 0 | AJ145: 0 | AK145: 0 | AL145: 0 | AM145: 0 | AN145: 0 | AO145: 0 | AP145: 0 | AQ145: 0 | AR145: 9.193415527 | AS145: 7.033060688
Q146: 0.03312203936 | R146: 138 | S146: 9.160293488 | T146: 7.278399186 | U146: 0 | V146: 0 | W146: 0 | X146: 52.82281684 | Y146: 0 | Z146: 47.17718316 | AA146: 0 | AB146: 0 | AC146: 0 | AD146: 0 | AE146: 0 | AF146: 0 | AG146: 0 | AH146: 0 | AI146: 0 | AJ146: 0 | AK146: 0 | AL146: 0 | AM146: 0 | AN146: 0 | AO146: 0 | AP146: 0 | AQ146: 0 | AR146: 9.160293488 | AS146: 7.025713104
Q147: 0.03296916054 | R147: 139 | S147: 9.127324327 | T147: 7.270516525 | U147: 0 | V147: 0 | W147: 0 | X147: 52.47846101 | Y147: 0 | Z147: 47.52153899 | AA147: 0 | AB147: 0 | AC147: 0 | AD147: 0 | AE147: 0 | AF147: 0 | AG147: 0 | AH147: 0 | AI147: 0 | AJ147: 0 | AK147: 0 | AL147: 0 | AM147: 0 | AN147: 0 | AO147: 0 | AP147: 0 | AQ147: 0 | AR147: 9.127324327 | AS147: 7.01836498
Q148: 0.03281461909 | R148: 140 | S148: 9.094509708 | T148: 7.262633865 | U148: 0 | V148: 0 | W148: 0 | X148: 52.13410519 | Y148: 0 | Z148: 47.86589481 | AA148: 0 | AB148: 0 | AC148: 0 | AD148: 0 | AE148: 0 | AF148: 0 | AG148: 0 | AH148: 0 | AI148: 0 | AJ148: 0 | AK148: 0 | AL148: 0 | AM148: 0 | AN148: 0 | AO148: 0 | AP148: 0 | AQ148: 0 | AR148: 9.094509708 | AS148: 7.011016316
Q149: 0.03265839876 | R149: 141 | S149: 9.061851309 | T149: 7.254751205 | U149: 0 | V149: 0 | W149: 0 | X149: 51.78974937 | Y149: 0 | Z149: 48.21025063 | AA149: 0 | AB149: 0 | AC149: 0 | AD149: 0 | AE149: 0 | AF149: 0 | AG149: 0 | AH149: 0 | AI149: 0 | AJ149: 0 | AK149: 0 | AL149: 0 | AM149: 0 | AN149: 0 | AO149: 0 | AP149: 0 | AQ149: 0 | AR149: 9.061851309 | AS149: 7.003667112
Q150: 0.03250048333 | R150: 142 | S150: 9.029350826 | T150: 7.246868544 | U150: 0 | V150: 0 | W150: 0 | X150: 51.44539355 | Y150: 0 | Z150: 48.55460645 | AA150: 0 | AB150: 0 | AC150: 0 | AD150: 0 | AE150: 0 | AF150: 0 | AG150: 0 | AH150: 0 | AI150: 0 | AJ150: 0 | AK150: 0 | AL150: 0 | AM150: 0 | AN150: 0 | AO150: 0 | AP150: 0 | AQ150: 0 | AR150: 9.029350826 | AS150: 6.996317367
Q151: 0.03230005408 | R151: 143 | S151: 8.997050772 | T151: 7.238995854 | U151: 0 | V151: 0 | W151: 0 | X151: 51.10147326 | Y151: 0 | Z151: 48.89852674 | AA151: 0 | AB151: 0 | AC151: 0 | AD151: 0 | AE151: 0 | AF151: 0 | AG151: 0 | AH151: 0 | AI151: 0 | AJ151: 0 | AK151: 0 | AL151: 0 | AM151: 0 | AN151: 0 | AO151: 0 | AP151: 0 | AQ151: 0 | AR151: 8.997050772 | AS151: 6.988976379
Q152: 0.03217970741 | R152: 144 | S152: 8.964871064 | T152: 7.231113193 | U152: 0 | V152: 0 | W152: 0 | X152: 50.75711744 | Y152: 0 | Z152: 49.24288256 | AA152: 0 | AB152: 0 | AC152: 0 | AD152: 0 | AE152: 0 | AF152: 0 | AG152: 0 | AH152: 0 | AI152: 0 | AJ152: 0 | AK152: 0 | AL152: 0 | AM152: 0 | AN152: 0 | AO152: 0 | AP152: 0 | AQ152: 0 | AR152: 8.964871064 | AS152: 6.981625555
Q153: 0.03201661148 | R153: 145 | S153: 8.932854453 | T153: 7.223230533 | U153: 0 | V153: 0 | W153: 0 | X153: 50.41276162 | Y153: 0 | Z153: 49.58723838 | AA153: 0 | AB153: 0 | AC153: 0 | AD153: 0 | AE153: 0 | AF153: 0 | AG153: 0 | AH153: 0 | AI153: 0 | AJ153: 0 | AK153: 0 | AL153: 0 | AM153: 0 | AN153: 0 | AO153: 0 | AP153: 0 | AQ153: 0 | AR153: 8.932854453 | AS153: 6.97427419
Q154: 0.03189193568 | R154: 146 | S154: 8.900962517 | T154: 7.215337903 | U154: 0 | V154: 0 | W154: 0 | X154: 50.06797026 | Y154: 0 | Z154: 49.93202974 | AA154: 0 | AB154: 0 | AC154: 0 | AD154: 0 | AE154: 0 | AF154: 0 | AG154: 0 | AH154: 0 | AI154: 0 | AJ154: 0 | AK154: 0 | AL154: 0 | AM154: 0 | AN154: 0 | AO154: 0 | AP154: 0 | AQ154: 0 | AR154: 8.900962517 | AS154: 6.966912986
Q155: 0.03168491188 | R155: 147 | S155: 8.869277605 | T155: 7.207455242 | U155: 0 | V155: 0 | W155: 0 | X155: 49.72361444 | Y155: 0 | Z155: 50.27638556 | AA155: 0 | AB155: 0 | AC155: 0 | AD155: 0 | AE155: 0 | AF155: 0 | AG155: 0 | AH155: 0 | AI155: 0 | AJ155: 0 | AK155: 0 | AL155: 0 | AM155: 0 | AN155: 0 | AO155: 0 | AP155: 0 | AQ155: 0 | AR155: 8.869277605 | AS155: 6.95956054
Q156: 0.03151648526 | R156: 148 | S156: 8.83776112 | T156: 7.199572582 | U156: 0 | V156: 0 | W156: 0 | X156: 49.37925862 | Y156: 0 | Z156: 50.62074138 | AA156: 0 | AB156: 0 | AC156: 0 | AD156: 0 | AE156: 0 | AF156: 0 | AG156: 0 | AH156: 0 | AI156: 0 | AJ156: 0 | AK156: 0 | AL156: 0 | AM156: 0 | AN156: 0 | AO156: 0 | AP156: 0 | AQ156: 0 | AR156: 8.83776112 | AS156: 6.952207553
Q157: 0.03134625049 | R157: 149 | S157: 8.80641487 | T157: 7.191689922 | U157: 0 | V157: 0 | W157: 0 | X157: 49.0349028 | Y157: 0 | Z157: 50.9650972 | AA157: 0 | AB157: 0 | AC157: 0 | AD157: 0 | AE157: 0 | AF157: 0 | AG157: 0 | AH157: 0 | AI157: 0 | AJ157: 0 | AK157: 0 | AL157: 0 | AM157: 0 | AN157: 0 | AO157: 0 | AP157: 0 | AQ157: 0 | AR157: 8.80641487 | AS157: 6.944854026
Q158: 0.03113487256 | R158: 150 | S158: 8.775279997 | T158: 7.183817231 | U158: 0 | V158: 0 | W158: 0 | X158: 48.69098251 | Y158: 0 | Z158: 51.30901749 | AA158: 0 | AB158: 0 | AC158: 0 | AD158: 0 | AE158: 0 | AF158: 0 | AG158: 0 | AH158: 0 | AI158: 0 | AJ158: 0 | AK158: 0 | AL158: 0 | AM158: 0 | AN158: 0 | AO158: 0 | AP158: 0 | AQ158: 0 | AR158: 8.775279997 | AS158: 6.937509259
Q159: 0.03103961083 | R159: 151 | S159: 8.744240386 | T159: 7.175924601 | U159: 0 | V159: 0 | W159: 0 | X159: 48.34619116 | Y159: 0 | Z159: 51.65380884 | AA159: 0 | AB159: 0 | AC159: 0 | AD159: 0 | AE159: 0 | AF159: 0 | AG159: 0 | AH159: 0 | AI159: 0 | AJ159: 0 | AK159: 0 | AL159: 0 | AM159: 0 | AN159: 0 | AO159: 0 | AP159: 0 | AQ159: 0 | AR159: 8.744240386 | AS159: 6.930145348
Q160: 0.03078566265 | R160: 152 | S160: 8.713454724 | T160: 7.16805191 | U160: 0 | V160: 0 | W160: 0 | X160: 48.00227086 | Y160: 0 | Z160: 51.99772914 | AA160: 0 | AB160: 0 | AC160: 0 | AD160: 0 | AE160: 0 | AF160: 0 | AG160: 0 | AH160: 0 | AI160: 0 | AJ160: 0 | AK160: 0 | AL160: 0 | AM160: 0 | AN160: 0 | AO160: 0 | AP160: 0 | AQ160: 0 | AR160: 8.713454724 | AS160: 6.9227995
Q161: 0.03064713539 | R161: 153 | S161: 8.682807588 | T161: 7.16016925 | U161: 0 | V161: 0 | W161: 0 | X161: 47.65791504 | Y161: 0 | Z161: 52.34208496 | AA161: 0 | AB161: 0 | AC161: 0 | AD161: 0 | AE161: 0 | AF161: 0 | AG161: 0 | AH161: 0 | AI161: 0 | AJ161: 0 | AK161: 0 | AL161: 0 | AM161: 0 | AN161: 0 | AO161: 0 | AP161: 0 | AQ161: 0 | AR161: 8.682807588 | AS161: 6.91544381
Q162: 0.03050604303 | R162: 154 | S162: 8.652301545 | T162: 7.15227662 | U162: 0 | V162: 0 | W162: 0 | X162: 47.31312369 | Y162: 0 | Z162: 52.68687631 | AA162: 0 | AB162: 0 | AC162: 0 | AD162: 0 | AE162: 0 | AF162: 0 | AG162: 0 | AH162: 0 | AI162: 0 | AJ162: 0 | AK162: 0 | AL162: 0 | AM162: 0 | AN162: 0 | AO162: 0 | AP162: 0 | AQ162: 0 | AR162: 8.652301545 | AS162: 6.908078274
Q163: 0.0302859772 | R163: 155 | S163: 8.622015568 | T163: 7.144393959 | U163: 0 | V163: 0 | W163: 0 | X163: 46.96876787 | Y163: 0 | Z163: 53.03123213 | AA163: 0 | AB163: 0 | AC163: 0 | AD163: 0 | AE163: 0 | AF163: 0 | AG163: 0 | AH163: 0 | AI163: 0 | AJ163: 0 | AK163: 0 | AL163: 0 | AM163: 0 | AN163: 0 | AO163: 0 | AP163: 0 | AQ163: 0 | AR163: 8.622015568 | AS163: 6.9007215
Q164: 0.03006468455 | R164: 156 | S164: 8.591950883 | T164: 7.136521269 | U164: 0 | V164: 0 | W164: 0 | X164: 46.62484758 | Y164: 0 | Z164: 53.37515242 | AA164: 0 | AB164: 0 | AC164: 0 | AD164: 0 | AE164: 0 | AF164: 0 | AG164: 0 | AH164: 0 | AI164: 0 | AJ164: 0 | AK164: 0 | AL164: 0 | AM164: 0 | AN164: 0 | AO164: 0 | AP164: 0 | AQ164: 0 | AR164: 8.591950883 | AS164: 6.893373491
Q165: 0.02995532705 | R165: 157 | S165: 8.561995556 | T165: 7.128628638 | U165: 0 | V165: 0 | W165: 0 | X165: 46.28005623 | Y165: 0 | Z165: 53.71994377 | AA165: 0 | AB165: 0 | AC165: 0 | AD165: 0 | AE165: 0 | AF165: 0 | AG165: 0 | AH165: 0 | AI165: 0 | AJ165: 0 | AK165: 0 | AL165: 0 | AM165: 0 | AN165: 0 | AO165: 0 | AP165: 0 | AQ165: 0 | AR165: 8.561995556 | AS165: 6.886006329
Q166: 0.02969266952 | R166: 158 | S166: 8.532302887 | T166: 7.120755948 | U166: 0 | V166: 0 | W166: 0 | X166: 45.93613593 | Y166: 0 | Z166: 54.06386407 | AA166: 0 | AB166: 0 | AC166: 0 | AD166: 0 | AE166: 0 | AF166: 0 | AG166: 0 | AH166: 0 | AI166: 0 | AJ166: 0 | AK166: 0 | AL166: 0 | AM166: 0 | AN166: 0 | AO166: 0 | AP166: 0 | AQ166: 0 | AR166: 8.532302887 | AS166: 6.878657239
Q167: 0.02957845189 | R167: 159 | S167: 8.502724435 | T167: 7.112863318 | U167: 0 | V167: 0 | W167: 0 | X167: 45.59134458 | Y167: 0 | Z167: 54.40865542 | AA167: 0 | AB167: 0 | AC167: 0 | AD167: 0 | AE167: 0 | AF167: 0 | AG167: 0 | AH167: 0 | AI167: 0 | AJ167: 0 | AK167: 0 | AL167: 0 | AM167: 0 | AN167: 0 | AO167: 0 | AP167: 0 | AQ167: 0 | AR167: 8.502724435 | AS167: 6.871288993
Q168: 0.02934980814 | R168: 160 | S168: 8.473374627 | T168: 7.104980657 | U168: 0 | V168: 0 | W168: 0 | X168: 45.24698876 | Y168: 0 | Z168: 54.75301124 | AA168: 0 | AB168: 0 | AC168: 0 | AD168: 0 | AE168: 0 | AF168: 0 | AG168: 0 | AH168: 0 | AI168: 0 | AJ168: 0 | AK168: 0 | AL168: 0 | AM168: 0 | AN168: 0 | AO168: 0 | AP168: 0 | AQ168: 0 | AR168: 8.473374627 | AS168: 6.863929512
Q169: 0.02915665337 | R169: 161 | S169: 8.444217973 | T169: 7.097097997 | U169: 0 | V169: 0 | W169: 0 | X169: 44.90263294 | Y169: 0 | Z169: 55.09736706 | AA169: 0 | AB169: 0 | AC169: 0 | AD169: 0 | AE169: 0 | AF169: 0 | AG169: 0 | AH169: 0 | AI169: 0 | AJ169: 0 | AK169: 0 | AL169: 0 | AM169: 0 | AN169: 0 | AO169: 0 | AP169: 0 | AQ169: 0 | AR169: 8.444217973 | AS169: 6.85656949
Q170: 0.02896149105 | R170: 162 | S170: 8.415256482 | T170: 7.089215336 | U170: 0 | V170: 0 | W170: 0 | X170: 44.55827712 | Y170: 0 | Z170: 55.44172288 | AA170: 0 | AB170: 0 | AC170: 0 | AD170: 0 | AE170: 0 | AF170: 0 | AG170: 0 | AH170: 0 | AI170: 0 | AJ170: 0 | AK170: 0 | AL170: 0 | AM170: 0 | AN170: 0 | AO170: 0 | AP170: 0 | AQ170: 0 | AR170: 8.415256482 | AS170: 6.849208926
Q171: 0.02876430684 | R171: 163 | S171: 8.386492176 | T171: 7.081332676 | U171: 0 | V171: 0 | W171: 0 | X171: 44.21392129 | Y171: 0 | Z171: 55.78607871 | AA171: 0 | AB171: 0 | AC171: 0 | AD171: 0 | AE171: 0 | AF171: 0 | AG171: 0 | AH171: 0 | AI171: 0 | AJ171: 0 | AK171: 0 | AL171: 0 | AM171: 0 | AN171: 0 | AO171: 0 | AP171: 0 | AQ171: 0 | AR171: 8.386492176 | AS171: 6.84184782
Q172: 0.02856508676 | R172: 164 | S172: 8.357927089 | T172: 7.073450016 | U172: 0 | V172: 0 | W172: 0 | X172: 43.86956547 | Y172: 0 | Z172: 56.13043453 | AA172: 0 | AB172: 0 | AC172: 0 | AD172: 0 | AE172: 0 | AF172: 0 | AG172: 0 | AH172: 0 | AI172: 0 | AJ172: 0 | AK172: 0 | AL172: 0 | AM172: 0 | AN172: 0 | AO172: 0 | AP172: 0 | AQ172: 0 | AR172: 8.357927089 | AS172: 6.834486172
Q173: 0.0283638171 | R173: 165 | S173: 8.329563272 | T173: 7.065567355 | U173: 0 | V173: 0 | W173: 0 | X173: 43.52520965 | Y173: 0 | Z173: 56.47479035 | AA173: 0 | AB173: 0 | AC173: 0 | AD173: 0 | AE173: 0 | AF173: 0 | AG173: 0 | AH173: 0 | AI173: 0 | AJ173: 0 | AK173: 0 | AL173: 0 | AM173: 0 | AN173: 0 | AO173: 0 | AP173: 0 | AQ173: 0 | AR173: 8.329563272 | AS173: 6.827123982
Q174: 0.02816048436 | R174: 166 | S174: 8.301402787 | T174: 7.057684695 | U174: 0 | V174: 0 | W174: 0 | X174: 43.18085383 | Y174: 0 | Z174: 56.81914617 | AA174: 0 | AB174: 0 | AC174: 0 | AD174: 0 | AE174: 0 | AF174: 0 | AG174: 0 | AH174: 0 | AI174: 0 | AJ174: 0 | AK174: 0 | AL174: 0 | AM174: 0 | AN174: 0 | AO174: 0 | AP174: 0 | AQ174: 0 | AR174: 8.301402787 | AS174: 6.81976125
Q175: 0.02791984949 | R175: 167 | S175: 8.273482938 | T175: 7.049812004 | U175: 0 | V175: 0 | W175: 0 | X175: 42.83693354 | Y175: 0 | Z175: 57.16306646 | AA175: 0 | AB175: 0 | AC175: 0 | AD175: 0 | AE175: 0 | AF175: 0 | AG175: 0 | AH175: 0 | AI175: 0 | AJ175: 0 | AK175: 0 | AL175: 0 | AM175: 0 | AN175: 0 | AO175: 0 | AP175: 0 | AQ175: 0 | AR175: 8.273482938 | AS175: 6.81240729
Q176: 0.02774784099 | R176: 168 | S176: 8.245735097 | T176: 7.041929344 | U176: 0 | V176: 0 | W176: 0 | X176: 42.49257771 | Y176: 0 | Z176: 57.50742229 | AA176: 0 | AB176: 0 | AC176: 0 | AD176: 0 | AE176: 0 | AF176: 0 | AG176: 0 | AH176: 0 | AI176: 0 | AJ176: 0 | AK176: 0 | AL176: 0 | AM176: 0 | AN176: 0 | AO176: 0 | AP176: 0 | AQ176: 0 | AR176: 8.245735097 | AS176: 6.805043474
Q177: 0.02757293922 | R177: 169 | S177: 8.218162158 | T177: 7.034036714 | U177: 0 | V177: 0 | W177: 0 | X177: 42.14778637 | Y177: 0 | Z177: 57.85221363 | AA177: 0 | AB177: 0 | AC177: 0 | AD177: 0 | AE177: 0 | AF177: 0 | AG177: 0 | AH177: 0 | AI177: 0 | AJ177: 0 | AK177: 0 | AL177: 0 | AM177: 0 | AN177: 0 | AO177: 0 | AP177: 0 | AQ177: 0 | AR177: 8.218162158 | AS177: 6.797669802
Q178: 0.02732626339 | R178: 170 | S178: 8.190835894 | T178: 7.026154053 | U178: 0 | V178: 0 | W178: 0 | X178: 41.80343054 | Y178: 0 | Z178: 58.19656946 | AA178: 0 | AB178: 0 | AC178: 0 | AD178: 0 | AE178: 0 | AF178: 0 | AG178: 0 | AH178: 0 | AI178: 0 | AJ178: 0 | AK178: 0 | AL178: 0 | AM178: 0 | AN178: 0 | AO178: 0 | AP178: 0 | AQ178: 0 | AR178: 8.190835894 | AS178: 6.790304901
Q179: 0.02711242327 | R179: 171 | S179: 8.163723471 | T179: 7.018271393 | U179: 0 | V179: 0 | W179: 0 | X179: 41.45907472 | Y179: 0 | Z179: 58.54092528 | AA179: 0 | AB179: 0 | AC179: 0 | AD179: 0 | AE179: 0 | AF179: 0 | AG179: 0 | AH179: 0 | AI179: 0 | AJ179: 0 | AK179: 0 | AL179: 0 | AM179: 0 | AN179: 0 | AO179: 0 | AP179: 0 | AQ179: 0 | AR179: 8.163723471 | AS179: 6.782939458
Q180: 0.02686256555 | R180: 172 | S180: 8.136860905 | T180: 7.010398702 | U180: 0 | V180: 0 | W180: 0 | X180: 41.11515443 | Y180: 0 | Z180: 58.88484557 | AA180: 0 | AB180: 0 | AC180: 0 | AD180: 0 | AE180: 0 | AF180: 0 | AG180: 0 | AH180: 0 | AI180: 0 | AJ180: 0 | AK180: 0 | AL180: 0 | AM180: 0 | AN180: 0 | AO180: 0 | AP180: 0 | AQ180: 0 | AR180: 8.136860905 | AS180: 6.775582788
Q181: 0.02671219933 | R181: 173 | S181: 8.110148706 | T181: 7.002506072 | U181: 0 | V181: 0 | W181: 0 | X181: 40.77036308 | Y181: 0 | Z181: 59.22963692 | AA181: 0 | AB181: 0 | AC181: 0 | AD181: 0 | AE181: 0 | AF181: 0 | AG181: 0 | AH181: 0 | AI181: 0 | AJ181: 0 | AK181: 0 | AL181: 0 | AM181: 0 | AN181: 0 | AO181: 0 | AP181: 0 | AQ181: 0 | AR181: 8.110148706 | AS181: 6.768206944
Q182: 0.02645803344 | R182: 174 | S182: 8.083690673 | T182: 6.994623412 | U182: 0 | V182: 0 | W182: 0 | X182: 40.42600726 | Y182: 0 | Z182: 59.57399274 | AA182: 0 | AB182: 0 | AC182: 0 | AD182: 0 | AE182: 0 | AF182: 0 | AG182: 0 | AH182: 0 | AI182: 0 | AJ182: 0 | AK182: 0 | AL182: 0 | AM182: 0 | AN182: 0 | AO182: 0 | AP182: 0 | AQ182: 0 | AR182: 8.083690673 | AS182: 6.760839872
Q183: 0.02620253714 | R183: 175 | S183: 8.057488135 | T183: 6.986750721 | U183: 0 | V183: 0 | W183: 0 | X183: 40.08208696 | Y183: 0 | Z183: 59.91791304 | AA183: 0 | AB183: 0 | AC183: 0 | AD183: 0 | AE183: 0 | AF183: 0 | AG183: 0 | AH183: 0 | AI183: 0 | AJ183: 0 | AK183: 0 | AL183: 0 | AM183: 0 | AN183: 0 | AO183: 0 | AP183: 0 | AQ183: 0 | AR183: 8.057488135 | AS183: 6.753481577
Q184: 0.02604561241 | R184: 176 | S184: 8.031442523 | T184: 6.978858092 | U184: 0 | V184: 0 | W184: 0 | X184: 39.78258069 | Y184: 0 | Z184: 60.05024945 | AA184: 0 | AB184: 0.1671698602 | AC184: 0 | AD184: 0 | AE184: 0 | AF184: 0 | AG184: 0 | AH184: 0 | AI184: 0 | AJ184: 0 | AK184: 0 | AL184: 0 | AM184: 0 | AN184: 0 | AO184: 0 | AP184: 0 | AQ184: 0 | AR184: 8.031442523 | AS184: 6.746104102
Q185: 0.0259117137 | R185: 177 | S185: 8.005530809 | T185: 6.970975431 | U185: 0 | V185: 0 | W185: 0 | X185: 39.48360263 | Y185: 0 | Z185: 60.18171541 | AA185: 0 | AB185: 0.3346819623 | AC185: 0 | AD185: 0 | AE185: 0 | AF185: 0 | AG185: 0 | AH185: 0 | AI185: 0 | AJ185: 0 | AK185: 0 | AL185: 0 | AM185: 0 | AN185: 0 | AO185: 0 | AP185: 0 | AQ185: 0 | AR185: 8.005530809 | AS185: 6.738735402
Q186: 0.02581021102 | R186: 178 | S186: 7.979720598 | T186: 6.963092771 | U186: 0 | V186: 0 | W186: 0 | X186: 39.18477778 | Y186: 0 | Z186: 60.31246255 | AA186: 0 | AB186: 0.5027596634 | AC186: 0 | AD186: 0 | AE186: 0 | AF186: 0 | AG186: 0 | AH186: 0 | AI186: 0 | AJ186: 0 | AK186: 0 | AL186: 0 | AM186: 0 | AN186: 0 | AO186: 0 | AP186: 0 | AQ186: 0 | AR186: 7.979720598 | AS186: 6.73136616
Q187: 0.02583625458 | R187: 179 | S187: 7.953884344 | T187: 6.955210111 | U187: 0 | V187: 0 | W187: 0 | X187: 38.99661983 | Y187: 0 | Z187: 59.92401593 | AA187: 0 | AB187: 1.079364244 | AC187: 0 | AD187: 0 | AE187: 0 | AF187: 0 | AG187: 0 | AH187: 0 | AI187: 0 | AJ187: 0 | AK187: 0 | AL187: 0 | AM187: 0 | AN187: 0 | AO187: 0 | AP187: 0 | AQ187: 0 | AR187: 7.953884344 | AS187: 6.723996375
Q188: 0.02570675164 | R188: 180 | S188: 7.928177592 | T188: 6.94732745 | U188: 0 | V188: 0 | W188: 0 | X188: 38.69771728 | Y188: 0 | Z188: 60.05512744 | AA188: 0 | AB188: 1.247155277 | AC188: 0 | AD188: 0 | AE188: 0 | AF188: 0 | AG188: 0 | AH188: 0 | AI188: 0 | AJ188: 0 | AK188: 0 | AL188: 0 | AM188: 0 | AN188: 0 | AO188: 0 | AP188: 0 | AQ188: 0 | AR188: 7.928177592 | AS188: 6.716626045
Q189: 0.02557081786 | R189: 181 | S189: 7.902606774 | T189: 6.939454759 | U189: 0 | V189: 0 | W189: 0 | X189: 38.39935154 | Y189: 0 | Z189: 60.18532843 | AA189: 0 | AB189: 1.415320022 | AC189: 0 | AD189: 0 | AE189: 0 | AF189: 0 | AG189: 0 | AH189: 0 | AI189: 0 | AJ189: 0 | AK189: 0 | AL189: 0 | AM189: 0 | AN189: 0 | AO189: 0 | AP189: 0 | AQ189: 0 | AR189: 7.902606774 | AS189: 6.709264495
Q190: 0.02571353242 | R190: 182 | S190: 7.876893242 | T190: 6.93156213 | U190: 0 | V190: 0 | W190: 0 | X190: 38.23156773 | Y190: 0 | Z190: 59.69968879 | AA190: 0 | AB190: 2.068743481 | AC190: 0 | AD190: 0 | AE190: 0 | AF190: 0 | AG190: 0 | AH190: 0 | AI190: 0 | AJ190: 0 | AK190: 0 | AL190: 0 | AM190: 0 | AN190: 0 | AO190: 0 | AP190: 0 | AQ190: 0 | AR190: 7.876893242 | AS190: 6.701883758
Q191: 0.02548316532 | R191: 183 | S191: 7.851410077 | T191: 6.923689438 | U191: 0 | V191: 0 | W191: 0 | X191: 37.93304705 | Y191: 0 | Z191: 59.83061649 | AA191: 0 | AB191: 2.236336461 | AC191: 0 | AD191: 0 | AE191: 0 | AF191: 0 | AG191: 0 | AH191: 0 | AI191: 0 | AJ191: 0 | AK191: 0 | AL191: 0 | AM191: 0 | AN191: 0 | AO191: 0 | AP191: 0 | AQ191: 0 | AR191: 7.851410077 | AS191: 6.694521122
Q192: 0.02552351221 | R192: 184 | S192: 7.825886564 | T192: 6.915796809 | U192: 0 | V192: 0 | W192: 0 | X192: 37.72153551 | Y192: 0 | Z192: 59.5501255 | AA192: 0 | AB192: 2.728338998 | AC192: 0 | AD192: 0 | AE192: 0 | AF192: 0 | AG192: 0 | AH192: 0 | AI192: 0 | AJ192: 0 | AK192: 0 | AL192: 0 | AM192: 0 | AN192: 0 | AO192: 0 | AP192: 0 | AQ192: 0 | AR192: 7.825886564 | AS192: 6.687139296
Q193: 0.02538464143 | R193: 185 | S193: 7.800501923 | T193: 6.907914148 | U193: 0 | V193: 0 | W193: 0 | X193: 37.42263977 | Y193: 0 | Z193: 59.68120508 | AA193: 0 | AB193: 2.89615515 | AC193: 0 | AD193: 0 | AE193: 0 | AF193: 0 | AG193: 0 | AH193: 0 | AI193: 0 | AJ193: 0 | AK193: 0 | AL193: 0 | AM193: 0 | AN193: 0 | AO193: 0 | AP193: 0 | AQ193: 0 | AR193: 7.800501923 | AS193: 6.679766249
Q194: 0.02532755386 | R194: 186 | S194: 7.775174369 | T194: 6.900041458 | U194: 0 | V194: 0 | W194: 0 | X194: 37.21182334 | Y194: 0 | Z194: 59.40066846 | AA194: 0 | AB194: 3.387508199 | AC194: 0 | AD194: 0 | AE194: 0 | AF194: 0 | AG194: 0 | AH194: 0 | AI194: 0 | AJ194: 0 | AK194: 0 | AL194: 0 | AM194: 0 | AN194: 0 | AO194: 0 | AP194: 0 | AQ194: 0 | AR194: 7.775174369 | AS194: 6.672401986
Q195: 0.02528329179 | R195: 187 | S195: 7.749891077 | T195: 6.892148827 | U195: 0 | V195: 0 | W195: 0 | X195: 36.9125527 | Y195: 0 | Z195: 59.53189919 | AA195: 0 | AB195: 3.555548114 | AC195: 0 | AD195: 0 | AE195: 0 | AF195: 0 | AG195: 0 | AH195: 0 | AI195: 0 | AJ195: 0 | AK195: 0 | AL195: 0 | AM195: 0 | AN195: 0 | AO195: 0 | AP195: 0 | AQ195: 0 | AR195: 7.749891077 | AS195: 6.665018526
Q196: 0.02522526585 | R196: 188 | S196: 7.724665811 | T196: 6.884266168 | U196: 0 | V196: 0 | W196: 0 | X196: 36.70146612 | Y196: 0 | Z196: 59.25102221 | AA196: 0 | AB196: 4.047511672 | AC196: 0 | AD196: 0 | AE196: 0 | AF196: 0 | AG196: 0 | AH196: 0 | AI196: 0 | AJ196: 0 | AK196: 0 | AL196: 0 | AM196: 0 | AN196: 0 | AO196: 0 | AP196: 0 | AQ196: 0 | AR196: 7.724665811 | AS196: 6.657643849
Q197: 0.02511540862 | R197: 189 | S197: 7.699550403 | T197: 6.876383506 | U197: 0 | V197: 0 | W197: 0 | X197: 36.40257643 | Y197: 0 | Z197: 59.38207344 | AA197: 0 | AB197: 4.215350126 | AC197: 0 | AD197: 0 | AE197: 0 | AF197: 0 | AG197: 0 | AH197: 0 | AI197: 0 | AJ197: 0 | AK197: 0 | AL197: 0 | AM197: 0 | AN197: 0 | AO197: 0 | AP197: 0 | AQ197: 0 | AR197: 7.699550403 | AS197: 6.650268627
Q198: 0.02508821426 | R198: 190 | S198: 7.674462189 | T198: 6.868500847 | U198: 0 | V198: 0 | W198: 0 | X198: 36.19143142 | Y198: 0 | Z198: 59.1014706 | AA198: 0 | AB198: 4.707097982 | AC198: 0 | AD198: 0 | AE198: 0 | AF198: 0 | AG198: 0 | AH198: 0 | AI198: 0 | AJ198: 0 | AK198: 0 | AL198: 0 | AM198: 0 | AN198: 0 | AO198: 0 | AP198: 0 | AQ198: 0 | AR198: 7.674462189 | AS198: 6.642892863
Q199: 0.02497679576 | R199: 191 | S199: 7.649485393 | T199: 6.860618186 | U199: 0 | V199: 0 | W199: 0 | X199: 35.89254497 | Y199: 0 | Z199: 59.23250663 | AA199: 0 | AB199: 4.874948401 | AC199: 0 | AD199: 0 | AE199: 0 | AF199: 0 | AG199: 0 | AH199: 0 | AI199: 0 | AJ199: 0 | AK199: 0 | AL199: 0 | AM199: 0 | AN199: 0 | AO199: 0 | AP199: 0 | AQ199: 0 | AR199: 7.649485393 | AS199: 6.635516553
Q200: 0.02491702399 | R200: 192 | S200: 7.624568369 | T200: 6.852745496 | U200: 0 | V200: 0 | W200: 0 | X200: 35.68171926 | Y200: 0 | Z200: 58.95201356 | AA200: 0 | AB200: 5.366267186 | AC200: 0 | AD200: 0 | AE200: 0 | AF200: 0 | AG200: 0 | AH200: 0 | AI200: 0 | AJ200: 0 | AK200: 0 | AL200: 0 | AM200: 0 | AN200: 0 | AO200: 0 | AP200: 0 | AQ200: 0 | AR200: 7.624568369 | AS200: 6.628149031
Q201: 0.02486687361 | R201: 193 | S201: 7.599701495 | T201: 6.844852865 | U201: 0 | V201: 0 | W201: 0 | X201: 35.38245838 | Y201: 0 | Z201: 59.08319848 | AA201: 0 | AB201: 5.534343137 | AC201: 0 | AD201: 0 | AE201: 0 | AF201: 0 | AG201: 0 | AH201: 0 | AI201: 0 | AJ201: 0 | AK201: 0 | AL201: 0 | AM201: 0 | AN201: 0 | AO201: 0 | AP201: 0 | AQ201: 0 | AR201: 7.599701495 | AS201: 6.620762302
Q202: 0.02480608716 | R202: 194 | S202: 7.574895408 | T202: 6.836970205 | U202: 0 | V202: 0 | W202: 0 | X202: 35.17136204 | Y202: 0 | Z202: 58.80236729 | AA202: 0 | AB202: 6.026270666 | AC202: 0 | AD202: 0 | AE202: 0 | AF202: 0 | AG202: 0 | AH202: 0 | AI202: 0 | AJ202: 0 | AK202: 0 | AL202: 0 | AM202: 0 | AN202: 0 | AO202: 0 | AP202: 0 | AQ202: 0 | AR202: =S202 -> 7.574895408 | AS202: =(LN(1+(T202/100)))*100 -> 6.613384361
Q203: =S202-S203 -> 0.02466014304 | R203: 195 | S203: 7.550235265 | T203: 6.829097514 | U203: 0 | V203: 0 | W203: 0 | X203: 34.87286041 | Y203: 0 | Z203: 58.93320571 | AA203: 0 | AB203: 6.193933886 | AC203: 0 | AD203: 0 | AE203: 0 | AF203: 0 | AG203: 0 | AH203: 0 | AI203: 0 | AJ203: 0 | AK203: 0 | AL203: 0 | AM203: 0 | AN203: 0 | AO203: 0 | AP203: 0 | AQ203: 0 | AR203: 7.550235265 | AS203: 6.606015206
... 805 more rows
